Workbook

Sheet Main
B10: 2018-11-21
B12: Sheet No. | C12: Template Name | D12: Summary
B13: 1 | C13: Future Intra | D13: For Intraday trading in F&O segment
B14: 2 | C14: Cash Intra | D14: For Intraday trading in cash market segment
B15: 3 | C15: Mid-cap Intra | D15: For Intraday trading in Mid-cap stocks
B16: 4 | C16: Bulk Deals | D16: Reveals Bulk Deals carried on NSE & BSE
B17: 5 | C17: Call Tracker

Sheet Future Intra
M5: Back to Main Page
A6: FOR INTRA DAY TRADING | L6: =Main!B10 -> 2018-11-21
A9: Sr.no | B9: Sector | C9: Scrip | D9: CLOSE RATE | E9: Pivot Point | F9: Supports | I9: Resistances
B10: Sector | D10: Point | E10: Point | F10: S1 | G10: S2 | H10: S3 | I10: R1 | J10: R2 | K10: R3 | L10: HIGH | M10: LOW | N10: OI | O10: % Change in OI
A11: 1 | B11: Index | C11: BANKNIFTY | D11: 26157.90 | E11: 26167.15 | F11: 26071.50 | G11: 25985.10 | H11: 25889.45 | I11: 26253.55 | J11: 26349.20 | K11: 26435.60 | L11: 26262.8 | M11: 26080.75 | N11: 1836420 | O11: -0.03%
A12: 2 | B12: Index | C12: NIFTY | D12: 10671.95 | E12: 10690.72 | F12: 10632.43 | G12: 10592.92 | H12: 10534.63 | I12: 10730.23 | J12: 10788.52 | K12: 10828.03 | L12: 10749 | M12: 10651.2 | N12: 25846875 | O12: -2.36%
A13: 5 | B13: Index | C13: NIFTYIT | D13: 14312.00 | E13: 14384.00 | F13: 14218.00 | G13: 14124.00 | H13: 13958.00 | I13: 14478.00 | J13: 14644.00 | K13: 14738.00 | L13: 14550 | M13: 14290 | N13: 19150 | O13: 39.27%
A14: 6 | B14: Index | C14: NIFTYMID50 | D14: 4848.00 | E14: 1616.00 | F14: 3232.00 | G14: 1616.00 | H14: 3232.00 | I14: 3232.00 | J14: 1616.00 | K14: 3232.00 | L14: 0 | M14: 0 | N14: 694870 | O14: 0.00%
A15: 8 | B15: Cement | C15: ACC | D15: 1475.00 | E15: 1483.28 | F15: 1464.07 | G15: 1453.13 | H15: 1433.92 | I15: 1494.22 | J15: 1513.43 | K15: 1524.37 | L15: 1502.5 | M15: 1472.35 | N15: 1082800 | O15: 0.11%
A16: 9 | B16: Others | C16: ADANIENT | D16: 160.70 | E16: 160.70 | F16: 157.40 | G16: 154.10 | H16: 150.80 | I16: 164.00 | J16: 167.30 | K16: 170.60 | L16: 164 | M16: 157.4 | N16: 45128000 | O16: -0.97%
A17: 10 | B17: Others | C17: ADANIPORTS | D17: 354.80 | E17: 353.82 | F17: 350.23 | G17: 345.67 | H17: 342.08 | I17: 358.38 | J17: 361.97 | K17: 366.53 | L17: 357.4 | M17: 349.25 | N17: 17527500 | O17: -1.02%
A18: 11 | B18: Power | C18: ADANIPOWER | D18: 47.45 | E18: 47.88 | F18: 46.47 | G18: 45.48 | H18: 44.07 | I18: 48.87 | J18: 50.28 | K18: 51.27 | L18: 49.3 | M18: 46.9 | N18: 154640000 | O18: -0.59%
A19: 12 | B19: Pharma | C19: AJANTPHARM | D19: 1109.10 | E19: 1118.07 | F19: 1092.23 | G19: 1075.37 | H19: 1049.53 | I19: 1134.93 | J19: 1160.77 | K19: 1177.63 | L19: 1143.9 | M19: 1101.2 | N19: 766000 | O19: -2.54%
A20: 13 | B20: Banking | C20: ALBK | D20: 44.75 | E20: 44.02 | F20: 42.93 | G20: 41.12 | H20: 40.03 | I20: 45.83 | J20: 46.92 | K20: 48.73 | L20: 45.1 | M20: 42.2 | N20: 21654000 | O20: 14.21%
A21: 14 | B21: Automobile | C21: AMARAJABAT | D21: 724.80 | E21: 728.20 | F21: 719.60 | G21: 714.40 | H21: 705.80 | I21: 733.40 | J21: 742.00 | K21: 747.20 | L21: 736.8 | M21: 723 | N21: 1282400 | O21: 3.44%
A22: 15 | B22: Cement | C22: AMBUJACEM | D22: 215.30 | E22: 216.38 | F22: 213.17 | G22: 211.03 | H22: 207.82 | I22: 218.52 | J22: 221.73 | K22: 223.87 | L22: 219.6 | M22: 214.25 | N22: 14795000 | O22: -1.05%
A23: 17 | B23: Others | C23: APOLLOHOSP | D23: 1197.45 | E23: 1211.23 | F23: 1179.77 | G23: 1162.08 | H23: 1130.62 | I23: 1228.92 | J23: 1260.38 | K23: 1278.07 | L23: 1242.7 | M23: 1193.55 | N23: 1556500 | O23: 4.25%
A24: 18 | B24: Automobile | C24: APOLLOTYRE | D24: 225.80 | E24: 226.95 | F24: 223.50 | G24: 221.20 | H24: 217.75 | I24: 229.25 | J24: 232.70 | K24: 235.00 | L24: 230.4 | M24: 224.65 | N24: 10146000 | O24: -1.51%
A25: 19 | B25: Textile | C25: ARVIND | D25: 319.35 | E25: 319.82 | F25: 315.53 | G25: 311.72 | H25: 307.43 | I25: 323.63 | J25: 327.92 | K25: 331.73 | L25: 324.1 | M25: 316 | N25: 8536000 | O25: -7.14%
A26: 20 | B26: Automobile | C26: ASHOKLEY | D26: 107.65 | E26: 108.32 | F26: 106.23 | G26: 104.82 | H26: 102.73 | I26: 109.73 | J26: 111.82 | K26: 113.23 | L26: 110.4 | M26: 106.9 | N26: 72380000 | O26: 1.73%
A27: 21 | B27: FMCG | C27: ASIANPAINT | D27: 1311.00 | E27: 1315.95 | F27: 1300.20 | G27: 1289.40 | H27: 1273.65 | I27: 1326.75 | J27: 1342.50 | K27: 1353.30 | L27: 1331.7 | M27: 1305.15 | N27: 5311800 | O27: 1.91%
A28: 22 | B28: Pharma | C28: AUROPHARMA | D28: 777.75 | E28: 782.47 | F28: 771.03 | G28: 764.32 | H28: 752.88 | I28: 789.18 | J28: 800.62 | K28: 807.33 | L28: 793.9 | M28: 775.75 | N28: 18396000 | O28: -0.79%
A29: 23 | B29: Banking | C29: AXISBANK | D29: 613.55 | E29: 615.05 | F29: 609.40 | G29: 605.25 | H29: 599.60 | I29: 619.20 | J29: 624.85 | K29: 629.00 | L29: 620.7 | M29: 610.9 | N29: 34002000 | O29: -0.61%
A30: 24 | B30: Automobile | C30: BAJAJ-AUTO | D30: 2673.35 | E30: 2673.37 | F30: 2660.98 | G30: 2648.62 | H30: 2636.23 | I30: 2685.73 | J30: 2698.12 | K30: 2710.48 | L30: 2685.75 | M30: 2661 | N30: 2239250 | O30: 1.15%
A31: 25 | B31: Others | C31: BAJAJFINSV | D31: 5678.55 | E31: 5693.58 | F31: 5623.12 | G31: 5567.68 | H31: 5497.22 | I31: 5749.02 | J31: 5819.48 | K31: 5874.92 | L31: 5764.05 | M31: 5638.15 | N31: 624125 | O31: -0.72%
A32: 26 | B32: Finance | C32: BAJFINANCE | D32: 2386.55 | E32: 2377.72 | F32: 2358.43 | G32: 2330.32 | H32: 2311.03 | I32: 2405.83 | J32: 2425.12 | K32: 2453.23 | L32: 2397 | M32: 2349.6 | N32: 6764500 | O32: 0.98%
A33: 27 | B33: Others | C33: BALKRISIND | D33: 953.70 | E33: 959.43 | F33: 945.87 | G33: 938.03 | H33: 924.47 | I33: 967.27 | J33: 980.83 | K33: 988.67 | L33: 973 | M33: 951.6 | N33: 2553600 | O33: 0.22%
A34: 29 | B34: Banking | C34: BANKBARODA | D34: 110.60 | E34: 112.03 | F34: 108.12 | G34: 105.63 | H34: 101.72 | I34: 114.52 | J34: 118.43 | K34: 120.92 | L34: 115.95 | M34: 109.55 | N34: 76712000 | O34: 4.84%
A35: 30 | B35: Banking | C35: BANKINDIA | D35: 86.05 | E35: 85.78 | F35: 83.22 | G35: 80.38 | H35: 77.82 | I35: 88.62 | J35: 91.18 | K35: 94.02 | L35: 88.35 | M35: 82.95 | N35: 24666000 | O35: -6.91%
A36: 31 | B36: FMCG | C36: BATAINDIA | D36: 987.50 | E36: 991.58 | F36: 980.02 | G36: 972.53 | H36: 960.97 | I36: 999.07 | J36: 1010.63 | K36: 1018.12 | L36: 1003.15 | M36: 984.1 | N36: 1652200 | O36: -0.30%
A37: 32 | B37: Capital_Goods | C37: BEL | D37: 92.60 | E37: 93.57 | F37: 91.03 | G37: 89.47 | H37: 86.93 | I37: 95.13 | J37: 97.67 | K37: 99.23 | L37: 96.1 | M37: 92 | N37: 24376200 | O37: 0.63%
A38: 33 | B38: Infrastructure | C38: BEML | D38: 755.95 | E38: 749.20 | F38: 728.75 | G38: 701.55 | H38: 681.10 | I38: 776.40 | J38: 796.85 | K38: 824.05 | L38: 769.65 | M38: 722 | N38: 1528500 | O38: 1.12%
A39: 34 | B39: Others | C39: BERGEPAINT | D39: 313.55 | E39: 314.53 | F39: 310.12 | G39: 306.68 | H39: 302.27 | I39: 317.97 | J39: 322.38 | K39: 325.82 | L39: 318.95 | M39: 311.1 | N39: 2871000 | O39: 4.07%
A40: 35 | B40: Finance | C40: BHARATFIN | D40: 963.05 | E40: 963.55 | F40: 951.10 | G40: 939.15 | H40: 926.70 | I40: 975.50 | J40: 987.95 | K40: 999.90 | L40: 976 | M40: 951.6 | N40: 6915500 | O40: -1.96%
A41: 36 | B41: Automobile | C41: BHARATFORG | D41: 577.95 | E41: 584.12 | F41: 566.43 | G41: 554.92 | H41: 537.23 | I41: 595.63 | J41: 613.32 | K41: 624.83 | L41: 601.8 | M41: 572.6 | N41: 7880400 | O41: 4.75%
A42: 37 | B42: Telecom | C42: BHARTIARTL | D42: 331.70 | E42: 333.23 | F42: 327.07 | G42: 322.43 | H42: 316.27 | I42: 337.87 | J42: 344.03 | K42: 348.67 | L42: 339.4 | M42: 328.6 | N42: 45422300 | O42: -3.01%
A43: 38 | B43: Capital_Goods | C43: BHEL | D43: 67.05 | E43: 67.22 | F43: 66.43 | G43: 65.82 | H43: 65.03 | I43: 67.83 | J43: 68.62 | K43: 69.23 | L43: 68 | M43: 66.6 | N43: 57735000 | O43: 2.80%
A44: 39 | B44: Pharma | C44: BIOCON | D44: 613.15 | E44: 621.22 | F44: 603.43 | G44: 593.72 | H44: 575.93 | I44: 630.93 | J44: 648.72 | K44: 658.43 | L44: 639 | M44: 611.5 | N44: 6255900 | O44: 7.57%
A45: 40 | B45: Automobile | C45: BOSCHLTD | D45: 18618.60 | E45: 18716.20 | F45: 18442.40 | G45: 18266.20 | H45: 17992.40 | I45: 18892.40 | J45: 19166.20 | K45: 19342.40 | L45: 18990 | M45: 18540 | N45: 155100 | O45: 4.05%
A46: 41 | B46: Oil_Gas | C46: BPCL | D46: 322.60 | E46: 324.43 | F46: 319.12 | G46: 315.63 | H46: 310.32 | I46: 327.92 | J46: 333.23 | K46: 336.72 | L46: 329.75 | M46: 320.95 | N46: 11808000 | O46: 3.80%
A47: 42 | B47: FMCG | C47: BRITANNIA | D47: 5901.25 | E47: 5921.88 | F47: 5838.37 | G47: 5775.48 | H47: 5691.97 | I47: 5984.77 | J47: 6068.28 | K47: 6131.17 | L47: 6005.4 | M47: 5859 | N47: 1467300 | O47: -0.21%
A48: 43 | B48: Pharma | C48: CADILAHC | D48: 355.50 | E48: 357.45 | F48: 350.40 | G48: 345.30 | H48: 338.25 | I48: 362.55 | J48: 369.60 | K48: 374.70 | L48: 364.5 | M48: 352.35 | N48: 8852800 | O48: -0.70%
A49: 44 | B49: Banking | C49: CANBK | D49: 257.30 | E49: 259.32 | F49: 253.78 | G49: 250.27 | H49: 244.73 | I49: 262.83 | J49: 268.37 | K49: 271.88 | L49: 264.85 | M49: 255.8 | N49: 12156000 | O49: 3.54%
A50: 45 | B50: Others | C50: CANFINHOME | D50: 257.65 | E50: 259.93 | F50: 252.72 | G50: 247.78 | H50: 240.57 | I50: 264.87 | J50: 272.08 | K50: 277.02 | L50: 267.15 | M50: 255 | N50: 4173150 | O50: 7.35%
A51: 46 | B51: Finance | C51: CAPF | D51: 481.00 | E51: 482.97 | F51: 476.13 | G51: 471.27 | H51: 464.43 | I51: 487.83 | J51: 494.67 | K51: 499.53 | L51: 489.8 | M51: 478.1 | N51: 6720200 | O51: -0.07%
A52: 47 | B52: Oil_Gas | C52: CASTROLIND | D52: 151.85 | E52: 151.10 | F52: 149.35 | G52: 146.85 | H52: 145.10 | I52: 153.60 | J52: 155.35 | K52: 157.85 | L52: 152.85 | M52: 148.6 | N52: 8533600 | O52: 1.33%
A53: 48 | B53: Automobile | C53: CEATLTD | D53: 1244.55 | E53: 1252.58 | F53: 1230.52 | G53: 1216.48 | H53: 1194.42 | I53: 1266.62 | J53: 1288.68 | K53: 1302.72 | L53: 1274.65 | M53: 1238.55 | N53: 925950 | O53: 4.96%
A54: 49 | B54: Textile | C54: CENTURYTEX | D54: 898.50 | E54: 906.92 | F54: 886.83 | G54: 875.17 | H54: 855.08 | I54: 918.58 | J54: 938.67 | K54: 950.33 | L54: 927 | M54: 895.25 | N54: 4760250 | O54: -2.26%
A55: 50 | B55: Power | C55: CESC | D55: 682.85 | E55: 685.75 | F55: 677.50 | G55: 672.15 | H55: 663.90 | I55: 691.10 | J55: 699.35 | K55: 704.70 | L55: 694 | M55: 680.4 | N55: 1582350 | O55: -2.51%
A56: 51 | B56: Power | C56: CGPOWER | D56: 38.05 | E56: 38.23 | F56: 37.37 | G56: 36.68 | H56: 35.82 | I56: 38.92 | J56: 39.78 | K56: 40.47 | L56: 39.1 | M56: 37.55 | N56: 50136000 | O56: -0.57%
A57: 52 | B57: Others | C57: CHENNPETRO | D57: 262.80 | E57: 264.12 | F57: 259.23 | G57: 255.67 | H57: 250.78 | I57: 267.68 | J57: 272.57 | K57: 276.13 | L57: 269 | M57: 260.55 | N57: 1260000 | O57: 4.22%
A58: 53 | B58: Others | C58: CHOLAFIN | D58: 1261.10 | E58: 1266.70 | F58: 1224.50 | G58: 1187.90 | H58: 1145.70 | I58: 1303.30 | J58: 1345.50 | K58: 1382.10 | L58: 1308.9 | M58: 1230.1 | N58: 645000 | O58: -3.80%
A59: 54 | B59: Pharma | C59: CIPLA | D59: 522.05 | E59: 524.42 | F59: 517.88 | G59: 513.72 | H59: 507.18 | I59: 528.58 | J59: 535.12 | K59: 539.28 | L59: 530.95 | M59: 520.25 | N59: 11024000 | O59: 2.58%
A60: 55 | B60: Others | C60: COALINDIA | D60: 261.00 | E60: 262.33 | F60: 259.22 | G60: 257.43 | H60: 254.32 | I60: 264.12 | J60: 267.23 | K60: 269.02 | L60: 265.45 | M60: 260.55 | N60: 24076800 | O60: -0.46%
A61: 56 | B61: FMCG | C61: COLPAL | D61: 1154.40 | E61: 1157.60 | F61: 1147.00 | G61: 1139.60 | H61: 1129.00 | I61: 1165.00 | J61: 1175.60 | K61: 1183.00 | L61: 1168.2 | M61: 1150.2 | N61: 1632400 | O61: -9.33%
A62: 57 | B62: Others | C62: CONCOR | D62: 678.85 | E62: 678.18 | F62: 668.72 | G62: 658.58 | H62: 649.12 | I62: 688.32 | J62: 697.78 | K62: 707.92 | L62: 687.65 | M62: 668.05 | N62: 2921250 | O62: -2.26%
A63: 58 | B63: Capital_Goods | C63: CUMMINSIND | D63: 787.05 | E63: 790.95 | F63: 775.55 | G63: 764.05 | H63: 748.65 | I63: 802.45 | J63: 817.85 | K63: 829.35 | L63: 806.35 | M63: 779.45 | N63: 1360100 | O63: -3.38%
A64: 59 | B64: FMCG | C64: DABUR | D64: 395.20 | E64: 398.62 | F64: 390.23 | G64: 385.27 | H64: 376.88 | I64: 403.58 | J64: 411.97 | K64: 416.93 | L64: 407 | M64: 393.65 | N64: 12436250 | O64: -1.05%
A65: 60 | B65: Cement | C65: DALMIABHA | D65: 2256.45 | E65: 2250.83 | F65: 2206.67 | G65: 2156.88 | H65: 2112.72 | I65: 2300.62 | J65: 2344.78 | K65: 2394.57 | L65: 2295 | M65: 2201.05 | N65: 506100 | O65: 16.51%
A66: 61 | B66: Banking | C66: DCBBANK | D66: 157.05 | E66: 157.62 | F66: 155.28 | G66: 153.52 | H66: 151.18 | I66: 159.38 | J66: 161.72 | K66: 163.48 | L66: 159.95 | M66: 155.85 | N66: 5265000 | O66: 2.36%
A67: 62 | B67: Finance | C67: DHFL | D67: 223.00 | E67: 226.42 | F67: 212.13 | G67: 201.27 | H67: 186.98 | I67: 237.28 | J67: 251.57 | K67: 262.43 | L67: 240.7 | M67: 215.55 | N67: 26001000 | O67: 8.92%
A68: 63 | B68: Media | C68: DISHTV | D68: 37.95 | E68: 38.08 | F68: 37.22 | G68: 36.48 | H68: 35.62 | I68: 38.82 | J68: 39.68 | K68: 40.42 | L68: 38.95 | M68: 37.35 | N68: 47880000 | O68: 0.10%
A69: 64 | B69: Pharma | C69: DIVISLAB | D69: 1535.05 | E69: 1544.93 | F69: 1521.72 | G69: 1508.38 | H69: 1485.17 | I69: 1558.27 | J69: 1581.48 | K69: 1594.82 | L69: 1568.15 | M69: 1531.6 | N69: 2644000 | O69: -5.61%
A70: 65 | B70: Realty | C70: DLF | D70: 174.80 | E70: 173.67 | F70: 171.73 | G70: 168.67 | H70: 166.73 | I70: 176.73 | J70: 178.67 | K70: 181.73 | L70: 175.6 | M70: 170.6 | N70: 27463600 | O70: -4.12%
A71: 66 | B71: Pharma | C71: DRREDDY | D71: 2446.70 | E71: 2469.35 | F71: 2419.70 | G71: 2392.70 | H71: 2343.05 | I71: 2496.35 | J71: 2546.00 | K71: 2573.00 | L71: 2519 | M71: 2442.35 | N71: 3958750 | O71: 3.88%
A72: 67 | B72: Automobile | C72: EICHERMOT | D72: 24612.65 | E72: 24825.88 | F72: 24311.77 | G72: 24010.88 | H72: 23496.77 | I72: 25126.77 | J72: 25640.88 | K72: 25941.77 | L72: 25340 | M72: 24525 | N72: 259225 | O72: -2.74%
A73: 68 | B73: Infrastructure | C73: ENGINERSIN | D73: 117.00 | E73: 117.05 | F73: 115.30 | G73: 113.60 | H73: 111.85 | I73: 118.75 | J73: 120.50 | K73: 122.20 | L73: 118.8 | M73: 115.35 | N73: 6461000 | O73: -2.89%
A74: 69 | B74: Finance | C74: EQUITAS | D74: 108.50 | E74: 110.03 | F74: 106.12 | G74: 103.73 | H74: 99.82 | I74: 112.42 | J74: 116.33 | K74: 118.72 | L74: 113.95 | M74: 107.65 | N74: 14068000 | O74: -0.93%
A75: 70 | B75: Automobile | C75: ESCORTS | D75: 660.35 | E75: 665.55 | F75: 651.30 | G75: 642.25 | H75: 628.00 | I75: 674.60 | J75: 688.85 | K75: 697.90 | L75: 679.8 | M75: 656.5 | N75: 4419800 | O75: 2.84%
A76: 71 | B76: Automobile | C76: EXIDEIND | D76: 239.35 | E76: 240.32 | F76: 236.23 | G76: 233.12 | H76: 229.03 | I76: 243.43 | J76: 247.52 | K76: 250.63 | L76: 244.4 | M76: 237.2 | N76: 8254000 | O76: 0.51%
A77: 72 | B77: Banking | C77: FEDERALBNK | D77: 79.60 | E77: 80.25 | F77: 78.30 | G77: 77.00 | H77: 75.05 | I77: 81.55 | J77: 83.50 | K77: 84.80 | L77: 82.2 | M77: 78.95 | N77: 47645500 | O77: -0.06%
A78: 73 | B78: Oil_Gas | C78: GAIL | D78: 343.80 | E78: 342.85 | F78: 339.05 | G78: 334.30 | H78: 330.50 | I78: 347.60 | J78: 351.40 | K78: 356.15 | L78: 346.65 | M78: 338.1 | N78: 23413593 | O78: -0.02%
A79: 74 | B79: Pharma | C79: GLENMARK | D79: 636.45 | E79: 638.62 | F79: 625.93 | G79: 615.42 | H79: 602.73 | I79: 649.13 | J79: 661.82 | K79: 672.33 | L79: 651.3 | M79: 628.1 | N79: 4485000 | O79: 9.95%
A80: 75 | B80: Infrastructure | C80: GMRINFRA | D80: 16.25 | E80: 16.50 | F80: 15.90 | G80: 15.55 | H80: 14.95 | I80: 16.85 | J80: 17.45 | K80: 17.80 | L80: 17.1 | M80: 16.15 | N80: 176895000 | O80: 1.24%
A81: 76 | B81: Others | C81: GODFRYPHLP | D81: 855.25 | E81: 862.70 | F81: 843.75 | G81: 832.25 | H81: 813.30 | I81: 874.20 | J81: 893.15 | K81: 904.65 | L81: 881.65 | M81: 851.2 | N81: 546700 | O81: -2.62%
A82: 77 | B82: FMCG | C82: GODREJCP | D82: 709.90 | E82: 714.93 | F82: 701.92 | G82: 693.93 | H82: 680.92 | I82: 722.92 | J82: 735.93 | K82: 743.92 | L82: 727.95 | M82: 706.95 | N82: 5592000 | O82: 2.28%
A83: 78 | B83: FMCG | C83: GODREJIND | D83: 524.05 | E83: 525.32 | F83: 517.53 | G83: 511.02 | H83: 503.23 | I83: 531.83 | J83: 539.62 | K83: 546.13 | L83: 533.1 | M83: 518.8 | N83: 2161500 | O83: -4.82%
A84: 79 | B84: Pharma | C84: GRANULES | D84: 98.30 | E84: 99.52 | F84: 95.98 | G84: 93.67 | H84: 90.13 | I84: 101.83 | J84: 105.37 | K84: 107.68 | L84: 103.05 | M84: 97.2 | N84: 11850000 | O84: 0.64%
A85: 80 | B85: Cement | C85: GRASIM | D85: 840.15 | E85: 846.40 | F85: 827.85 | G85: 815.55 | H85: 797.00 | I85: 858.70 | J85: 877.25 | K85: 889.55 | L85: 864.95 | M85: 834.1 | N85: 8583750 | O85: 2.57%
A86: 81 | B86: Others | C86: GSFC | D86: 104.35 | E86: 105.57 | F86: 102.43 | G86: 100.52 | H86: 97.38 | I86: 107.48 | J86: 110.62 | K86: 112.53 | L86: 108.7 | M86: 103.65 | N86: 16745700 | O86: -0.80%
A87: 82 | B87: Others | C87: HAVELLS | D87: 677.70 | E87: 679.48 | F87: 673.47 | G87: 669.23 | H87: 663.22 | I87: 683.72 | J87: 689.73 | K87: 693.97 | L87: 685.5 | M87: 675.25 | N87: 5102000 | O87: 0.24%
A88: 83 | B88: Others | C88: HCC | D88: 12.55 | E88: 12.72 | F88: 12.13 | G88: 11.72 | H88: 11.13 | I88: 13.13 | J88: 13.72 | K88: 14.13 | L88: 13.3 | M88: 12.3 | N88: 19701866 | O88: -12.16%
A89: 84 | B89: Technology | C89: HCLTECH | D89: 1011.80 | E89: 1016.57 | F89: 1001.73 | G89: 991.67 | H89: 976.83 | I89: 1026.63 | J89: 1041.47 | K89: 1051.53 | L89: 1031.4 | M89: 1006.5 | N89: 7949200 | O89: 0.93%
A90: 85 | B90: Finance | C90: HDFC | D90: 1880.60 | E90: 1886.62 | F90: 1870.08 | G90: 1859.57 | H90: 1843.03 | I90: 1897.13 | J90: 1913.67 | K90: 1924.18 | L90: 1903.15 | M90: 1876.1 | N90: 23919000 | O90: 0.52%
A91: 86 | B91: Banking | C91: HDFCBANK | D91: 2015.60 | E91: 2010.82 | F91: 2003.38 | G91: 1991.17 | H91: 1983.73 | I91: 2023.03 | J91: 2030.47 | K91: 2042.68 | L91: 2018.25 | M91: 1998.6 | N91: 14219250 | O91: -2.51%
A92: 88 | B92: Automobile | C92: HEROMOTOCO | D92: 2965.35 | E92: 2966.20 | F92: 2941.90 | G92: 2918.45 | H92: 2894.15 | I92: 2989.65 | J92: 3013.95 | K92: 3037.40 | L92: 2990.5 | M92: 2942.75 | N92: 1346600 | O92: -3.00%
A93: 89 | B93: Technology | C93: HEXAWARE | D93: 308.25 | E93: 309.97 | F93: 304.53 | G93: 300.82 | H93: 295.38 | I93: 313.68 | J93: 319.12 | K93: 322.83 | L93: 315.4 | M93: 306.25 | N93: 5352000 | O93: -3.52%
A94: 90 | B94: Metals | C94: HINDALCO | D94: 222.20 | E94: 225.40 | F94: 217.80 | G94: 213.40 | H94: 205.80 | I94: 229.80 | J94: 237.40 | K94: 241.80 | L94: 233 | M94: 221 | N94: 35829500 | O94: 1.73%
A95: 91 | B95: Oil_Gas | C95: HINDPETRO | D95: 243.90 | E95: 246.35 | F95: 239.95 | G95: 236.00 | H95: 229.60 | I95: 250.30 | J95: 256.70 | K95: 260.65 | L95: 252.75 | M95: 242.4 | N95: 19278000 | O95: 3.26%
A96: 92 | B96: FMCG | C96: HINDUNILVR | D96: 1697.80 | E96: 1699.63 | F96: 1687.22 | G96: 1676.63 | H96: 1664.22 | I96: 1710.22 | J96: 1722.63 | K96: 1733.22 | L96: 1712.05 | M96: 1689.05 | N96: 7842000 | O96: -0.40%
A97: 93 | B97: Metals | C97: HINDZINC | D97: 263.85 | E97: 265.32 | F97: 261.53 | G97: 259.22 | H97: 255.43 | I97: 267.63 | J97: 271.42 | K97: 273.73 | L97: 269.1 | M97: 263 | N97: 6416000 | O97: -2.58%
A98: 94 | B98: Finance | C98: IBULHSGFIN | D98: 708.60 | E98: 718.57 | F98: 691.23 | G98: 673.87 | H98: 646.53 | I98: 735.93 | J98: 763.27 | K98: 780.63 | L98: 745.9 | M98: 701.2 | N98: 23265000 | O98: 6.10%
A99: 95 | B99: Banking | C99: ICICIBANK | D99: 358.95 | E99: 360.05 | F99: 354.20 | G99: 349.45 | H99: 343.60 | I99: 364.80 | J99: 370.65 | K99: 375.40 | L99: 365.9 | M99: 355.3 | N99: 101849000 | O99: 1.51%
A100: 96 | B100: Others | C100: ICICIPRULI | D100: 321.35 | E100: 322.75 | F100: 318.25 | G100: 315.15 | H100: 310.65 | I100: 325.85 | J100: 330.35 | K100: 333.45 | L100: 327.25 | M100: 319.65 | N100: 4105400 | O100: 2.10%
A101: 97 | B101: Banking | C101: IDBI | D101: 60.30 | E101: 60.53 | F101: 59.82 | G101: 59.33 | H101: 58.62 | I101: 61.02 | J101: 61.73 | K101: 62.22 | L101: 61.25 | M101: 60.05 | N101: 39400000 | O101: -0.86%
A102: 98 | B102: Telecom | C102: IDEA | D102: 42.45 | E102: 42.30 | F102: 40.65 | G102: 38.85 | H102: 37.20 | I102: 44.10 | J102: 45.75 | K102: 47.55 | L102: 43.95 | M102: 40.5 | N102: 131884000 | O102: 0.21%
A103: 99 | B103: Finance | C103: IDFC | D103: 38.25 | E103: 38.50 | F103: 37.85 | G103: 37.45 | H103: 36.80 | I103: 38.90 | J103: 39.55 | K103: 39.95 | L103: 39.15 | M103: 38.1 | N103: 107448000 | O103: -1.18%
A104: 100 | B104: Banking | C104: IDFCBANK | D104: 35.50 | E104: 35.65 | F104: 35.15 | G104: 34.80 | H104: 34.30 | I104: 36.00 | J104: 36.50 | K104: 36.85 | L104: 36.15 | M104: 35.3 | N104: 126730000 | O104: 1.41%
A105: 101 | B105: Finance | C105: IFCI | D105: 14.00 | E105: 14.10 | F105: 13.80 | G105: 13.60 | H105: 13.30 | I105: 14.30 | J105: 14.60 | K105: 14.80 | L105: 14.4 | M105: 13.9 | N105: 50865000 | O105: 0.44%
A106: 102 | B106: Oil_Gas | C106: IGL | D106: 265.05 | E106: 266.27 | F106: 261.33 | G106: 257.62 | H106: 252.68 | I106: 269.98 | J106: 274.92 | K106: 278.63 | L106: 271.2 | M106: 262.55 | N106: 4716250 | O106: 0.18%
A107: 103 | B107: Cement | C107: INDIACEM | D107: 91.95 | E107: 93.17 | F107: 90.38 | G107: 88.82 | H107: 86.03 | I107: 94.73 | J107: 97.52 | K107: 99.08 | L107: 95.95 | M107: 91.6 | N107: 18577500 | O107: -0.15%
A108: 104 | B108: Banking | C108: INDIANB | D108: 228.25 | E108: 229.75 | F108: 224.00 | G108: 219.75 | H108: 214.00 | I108: 234.00 | J108: 239.75 | K108: 244.00 | L108: 235.5 | M108: 225.5 | N108: 6108000 | O108: -4.83%
A109: 105 | B109: Others | C109: INDIGO | D109: 1037.05 | E109: 1043.55 | F109: 1025.10 | G109: 1013.15 | H109: 994.70 | I109: 1055.50 | J109: 1073.95 | K109: 1085.90 | L109: 1062 | M109: 1031.6 | N109: 4649400 | O109: 1.79%
A110: 106 | B110: Banking | C110: INDUSINDBK | D110: 1557.65 | E110: 1549.55 | F110: 1529.35 | G110: 1501.05 | H110: 1480.85 | I110: 1577.85 | J110: 1598.05 | K110: 1626.35 | L110: 1569.75 | M110: 1521.25 | N110: 5686500 | O110: -4.32%
A111: 107 | B111: Technology | C111: INFIBEAM | D111: 47.05 | E111: 47.78 | F111: 45.27 | G111: 43.48 | H111: 40.97 | I111: 49.57 | J111: 52.08 | K111: 53.87 | L111: 50.3 | M111: 46 | N111: 14756000 | O111: 2.44%
A112: 108 | B112: Telecom | C112: INFRATEL | D112: 261.10 | E112: 260.52 | F112: 259.03 | G112: 256.97 | H112: 255.48 | I112: 262.58 | J112: 264.07 | K112: 266.13 | L112: 262 | M112: 258.45 | N112: 7559900 | O112: 1.02%
A113: 109 | B113: Technology | C113: INFY | D113: 642.35 | E113: 646.22 | F113: 637.58 | G113: 632.82 | H113: 624.18 | I113: 650.98 | J113: 659.62 | K113: 664.38 | L113: 654.85 | M113: 641.45 | N113: 42012000 | O113: 1.07%
A114: 110 | B114: Oil_Gas | C114: IOC | D114: 139.20 | E114: 140.73 | F114: 136.77 | G114: 134.33 | H114: 130.37 | I114: 143.17 | J114: 147.13 | K114: 149.57 | L114: 144.7 | M114: 138.3 | N114: 35019000 | O114: 14.92%
A115: 111 | B115: Infrastructure | C115: IRB | D115: 136.80 | E115: 137.72 | F115: 135.18 | G115: 133.57 | H115: 131.03 | I115: 139.33 | J115: 141.87 | K115: 143.48 | L115: 140.25 | M115: 136.1 | N115: 12345700 | O115: -0.46%
A116: 112 | B116: FMCG | C116: ITC | D116: 283.85 | E116: 284.12 | F116: 281.53 | G116: 279.22 | H116: 276.63 | I116: 286.43 | J116: 289.02 | K116: 291.33 | L116: 286.7 | M116: 281.8 | N116: 75650400 | O116: -2.51%
A117: 113 | B117: Others | C117: JETAIRWAYS | D117: 305.45 | E117: 306.57 | F117: 297.38 | G117: 289.32 | H117: 280.13 | I117: 314.63 | J117: 323.82 | K117: 331.88 | L117: 315.75 | M117: 298.5 | N117: 6440200 | O117: -8.77%
A118: 114 | B118: Metals | C118: JINDALSTEL | D118: 171.00 | E118: 173.33 | F118: 167.87 | G118: 164.73 | H118: 159.27 | I118: 176.47 | J118: 181.93 | K118: 185.07 | L118: 178.8 | M118: 170.2 | N118: 23710500 | O118: 6.04%
A119: 115 | B119: Others | C119: JISLJALEQS | D119: 69.90 | E119: 71.17 | F119: 68.23 | G119: 66.57 | H119: 63.63 | I119: 72.83 | J119: 75.77 | K119: 77.43 | L119: 74.1 | M119: 69.5 | N119: 32571000 | O119: 1.46%
A120: 116 | B120: Realty | C120: JPASSOCIAT | D120: 6.70 | E120: 6.77 | F120: 6.53 | G120: 6.37 | H120: 6.13 | I120: 6.93 | J120: 7.17 | K120: 7.33 | L120: 7 | M120: 6.6 | N120: 119524000 | O120: -0.81%
A121: 117 | B121: Metals | C121: JSWSTEEL | D121: 329.00 | E121: 330.42 | F121: 325.83 | G121: 322.67 | H121: 318.08 | I121: 333.58 | J121: 338.17 | K121: 341.33 | L121: 335 | M121: 327.25 | N121: 49480500 | O121: 1.24%
A122: 118 | B122: Others | C122: JUBLFOOD | D122: 1209.15 | E122: 1212.78 | F122: 1199.57 | G122: 1189.98 | H122: 1176.77 | I122: 1222.37 | J122: 1235.58 | K122: 1245.17 | L122: 1226 | M122: 1203.2 | N122: 2821000 | O122: 0.11%
A123: 119 | B123: Others | C123: JUSTDIAL | D123: 511.15 | E123: 505.20 | F123: 494.50 | G123: 477.85 | H123: 467.15 | I123: 521.85 | J123: 532.55 | K123: 549.20 | L123: 515.9 | M123: 488.55 | N123: 2151800 | O123: 16.70%
A124: 120 | B124: Others | C124: KAJARIACER | D124: 447.45 | E124: 445.98 | F124: 441.97 | G124: 436.48 | H124: 432.47 | I124: 451.47 | J124: 455.48 | K124: 460.97 | L124: 450 | M124: 440.5 | N124: 1933000 | O124: -1.88%
A125: 121 | B125: Banking | C125: KOTAKBANK | D125: 1172.25 | E125: 1170.53 | F125: 1163.62 | G125: 1154.98 | H125: 1148.07 | I125: 1179.17 | J125: 1186.08 | K125: 1194.72 | L125: 1177.45 | M125: 1161.9 | N125: 11864000 | O125: -1.95%
A126: 122 | B126: Technology | C126: KPIT | D126: 205.35 | E126: 205.90 | F126: 202.70 | G126: 200.05 | H126: 196.85 | I126: 208.55 | J126: 211.75 | K126: 214.40 | L126: 209.1 | M126: 203.25 | N126: 7213500 | O126: 0.03%
A127: 123 | B127: Others | C127: KSCL | D127: 506.00 | E127: 504.98 | F127: 493.12 | G127: 480.23 | H127: 468.37 | I127: 517.87 | J127: 529.73 | K127: 542.62 | L127: 516.85 | M127: 492.1 | N127: 1398000 | O127: -3.22%
A128: 124 | B128: Banking | C128: KTKBANK | D128: 104.20 | E128: 105.07 | F128: 102.88 | G128: 101.57 | H128: 99.38 | I128: 106.38 | J128: 108.57 | K128: 109.88 | L128: 107.25 | M128: 103.75 | N128: 15476100 | O128: 3.83%
A129: 125 | B129: Finance | C129: L&TFH | D129: 131.75 | E129: 132.12 | F129: 129.83 | G129: 127.92 | H129: 125.63 | I129: 134.03 | J129: 136.32 | K129: 138.23 | L129: 134.4 | M129: 130.2 | N129: 24502500 | O129: 0.11%
A130: 126 | B130: Finance | C130: LICHSGFIN | D130: 457.70 | E130: 458.93 | F130: 451.47 | G130: 445.23 | H130: 437.77 | I130: 465.17 | J130: 472.63 | K130: 478.87 | L130: 466.4 | M130: 452.7 | N130: 10299300 | O130: 1.54%
A131: 127 | B131: Capital_Goods | C131: LT | D131: 1414.70 | E131: 1414.68 | F131: 1407.52 | G131: 1400.33 | H131: 1393.17 | I131: 1421.87 | J131: 1429.03 | K131: 1436.22 | L131: 1421.85 | M131: 1407.5 | N131: 10138125 | O131: -1.48%
A132: 128 | B132: Pharma | C132: LUPIN | D132: 849.15 | E132: 851.67 | F132: 840.23 | G132: 831.32 | H132: 819.88 | I132: 860.58 | J132: 872.02 | K132: 880.93 | L132: 863.1 | M132: 842.75 | N132: 8705900 | O132: 0.26%
A133: 129 | B133: Automobile | C133: M&M | D133: 782.45 | E133: 782.82 | F133: 773.13 | G133: 763.82 | H133: 754.13 | I133: 792.13 | J133: 801.82 | K133: 811.13 | L133: 792.5 | M133: 773.5 | N133: 13427000 | O133: -3.05%
A134: 130 | B134: Finance | C134: M&MFIN | D134: 426.85 | E134: 429.97 | F134: 422.08 | G134: 417.32 | H134: 409.43 | I134: 434.73 | J134: 442.62 | K134: 447.38 | L134: 437.85 | M134: 425.2 | N134: 8478750 | O134: 0.65%
A135: 131 | B135: Others | C135: MANAPPURAM | D135: 84.95 | E135: 85.08 | F135: 84.42 | G135: 83.88 | H135: 83.22 | I135: 85.62 | J135: 86.28 | K135: 86.82 | L135: 85.75 | M135: 84.55 | N135: 13512000 | O135: -0.22%
A136: 132 | B136: FMCG | C136: MARICO | D136: 351.25 | E136: 351.78 | F136: 349.07 | G136: 346.88 | H136: 344.17 | I136: 353.97 | J136: 356.68 | K136: 358.87 | L136: 354.5 | M136: 349.6 | N136: 8598200 | O136: -2.62%
A137: 133 | B137: Automobile | C137: MARUTI | D137: 7350.55 | E137: 7374.13 | F137: 7303.27 | G137: 7255.98 | H137: 7185.12 | I137: 7421.42 | J137: 7492.28 | K137: 7539.57 | L137: 7445 | M137: 7326.85 | N137: 2333550 | O137: 1.24%
A138: 134 | B138: FMCG | C138: MCDOWELL-N | D138: 626.80 | E138: 633.18 | F138: 616.12 | G138: 605.43 | H138: 588.37 | I138: 643.87 | J138: 660.93 | K138: 671.62 | L138: 650.25 | M138: 622.5 | N138: 9746250 | O138: 0.52%
A139: 135 | B139: Others | C139: MCX | D139: 707.90 | E139: 713.30 | F139: 700.25 | G139: 692.60 | H139: 679.55 | I139: 720.95 | J139: 734.00 | K139: 741.65 | L139: 726.35 | M139: 705.65 | N139: 3364200 | O139: -0.41%
A140: 136 | B140: Finance | C140: MFSL | D140: 429.40 | E140: 429.77 | F140: 422.58 | G140: 415.77 | H140: 408.58 | I140: 436.58 | J140: 443.77 | K140: 450.58 | L140: 436.95 | M140: 422.95 | N140: 2295600 | O140: -0.26%
A141: 137 | B141: Others | C141: MGL | D141: 860.55 | E141: 857.92 | F141: 852.33 | G141: 844.12 | H141: 838.53 | I141: 866.13 | J141: 871.72 | K141: 879.93 | L141: 863.5 | M141: 849.7 | N141: 1347000 | O141: -2.94%
A142: 138 | B142: Technology | C142: MINDTREE | D142: 835.15 | E142: 840.40 | F142: 827.40 | G142: 819.65 | H142: 806.65 | I142: 848.15 | J142: 861.15 | K142: 868.90 | L142: 853.4 | M142: 832.65 | N142: 2937000 | O142: -0.61%
A143: 139 | B143: Automobile | C143: MOTHERSUMI | D143: 152.70 | E143: 152.58 | F143: 149.82 | G143: 146.93 | H143: 144.17 | I143: 155.47 | J143: 158.23 | K143: 161.12 | L143: 155.35 | M143: 149.7 | N143: 32580300 | O143: -2.04%
A144: 140 | B144: Automobile | C144: MRF | D144: 65992.25 | E144: 66028.85 | F144: 65763.40 | G144: 65534.55 | H144: 65269.10 | I144: 66257.70 | J144: 66523.15 | K144: 66752.00 | L144: 66294.3 | M144: 65800 | N144: 24020 | O144: -0.95%
A145: 141 | B145: Others | C145: MRPL | D145: 76.75 | E145: 77.75 | F145: 74.50 | G145: 72.25 | H145: 69.00 | I145: 80.00 | J145: 83.25 | K145: 85.50 | L145: 81 | M145: 75.5 | N145: 3897000 | O145: 5.10%
A146: 142 | B146: Finance | C146: MUTHOOTFIN | D146: 454.30 | E146: 457.23 | F146: 448.52 | G146: 442.73 | H146: 434.02 | I146: 463.02 | J146: 471.73 | K146: 477.52 | L146: 465.95 | M146: 451.45 | N146: 2017500 | O146: 1.20%
A147: 143 | B147: Others | C147: NATIONALUM | D147: 65.40 | E147: 65.95 | F147: 64.50 | G147: 63.60 | H147: 62.15 | I147: 66.85 | J147: 68.30 | K147: 69.20 | L147: 67.4 | M147: 65.05 | N147: 32072000 | O147: 6.45%
A148: 144 | B148: Others | C148: NBCC | D148: 59.30 | E148: 59.52 | F148: 58.68 | G148: 58.07 | H148: 57.23 | I148: 60.13 | J148: 60.97 | K148: 61.58 | L148: 60.35 | M148: 58.9 | N148: 27222000 | O148: -3.50%
A149: 145 | B149: Infrastructure | C149: NCC | D149: 85.75 | E149: 86.22 | F149: 83.83 | G149: 81.92 | H149: 79.53 | I149: 88.13 | J149: 90.52 | K149: 92.43 | L149: 88.6 | M149: 84.3 | N149: 51760000 | O149: -0.77%
A150: 146 | B150: Others | C150: NESTLEIND | D150: 10281.50 | E150: 10332.25 | F150: 10146.55 | G150: 10011.60 | H150: 9825.90 | I150: 10467.20 | J150: 10652.90 | K150: 10787.85 | L150: 10517.95 | M150: 10197.3 | N150: 317450 | O150: 3.14%
A151: 147 | B151: Power | C151: NHPC | D151: 25.95 | E151: 26.02 | F151: 25.83 | G151: 25.72 | H151: 25.53 | I151: 26.13 | J151: 26.32 | K151: 26.43 | L151: 26.2 | M151: 25.9 | N151: 25218000 | O151: -0.43%
A152: 148 | B152: Technology | C152: NIITTECH | D152: 1112.10 | E152: 1118.53 | F152: 1099.62 | G152: 1087.13 | H152: 1068.22 | I152: 1131.02 | J152: 1149.93 | K152: 1162.42 | L152: 1137.45 | M152: 1106.05 | N152: 1779750 | O152: 0.17%
A153: 149 | B153: Metals | C153: NMDC | D153: 99.30 | E153: 99.75 | F153: 98.00 | G153: 96.70 | H153: 94.95 | I153: 101.05 | J153: 102.80 | K153: 104.10 | L153: 101.5 | M153: 98.45 | N153: 23100000 | O153: 6.15%
A154: 150 | B154: Power | C154: NTPC | D154: 148.95 | E154: 150.13 | F154: 147.32 | G154: 145.68 | H154: 142.87 | I154: 151.77 | J154: 154.58 | K154: 156.22 | L154: 152.95 | M154: 148.5 | N154: 37864000 | O154: 7.26%
A155: 151 | B155: Technology | C155: OFSS | D155: 3424.65 | E155: 3442.38 | F155: 3392.37 | G155: 3360.08 | H155: 3310.07 | I155: 3474.67 | J155: 3524.68 | K155: 3556.97 | L155: 3492.4 | M155: 3410.1 | N155: 200550 | O155: -1.69%
A156: 152 | B156: Oil_Gas | C156: OIL | D156: 200.70 | E156: 201.15 | F156: 198.55 | G156: 196.40 | H156: 193.80 | I156: 203.30 | J156: 205.90 | K156: 208.05 | L156: 203.75 | M156: 199 | N156: 4095795 | O156: 5.61%
A157: 153 | B157: Oil_Gas | C157: ONGC | D157: 152.45 | E157: 153.35 | F157: 151.10 | G157: 149.75 | H157: 147.50 | I157: 154.70 | J157: 156.95 | K157: 158.30 | L157: 155.6 | M157: 152 | N157: 42052500 | O157: 6.40%
A158: 154 | B158: Banking | C158: ORIENTBANK | D158: 87.20 | E158: 86.87 | F158: 84.43 | G158: 81.67 | H158: 79.23 | I158: 89.63 | J158: 92.07 | K158: 94.83 | L158: 89.3 | M158: 84.1 | N158: 11293000 | O158: -1.56%
A159: 155 | B159: Textile | C159: PAGEIND | D159: 27508.40 | E159: 27230.13 | F159: 26740.27 | G159: 25972.13 | H159: 25482.27 | I159: 27998.27 | J159: 28488.13 | K159: 29256.27 | L159: 27720 | M159: 26462 | N159: 144675 | O159: 1.30%
A160: 156 | B160: Others | C160: PCJEWELLER | D160: 76.20 | E160: 76.20 | F160: 74.40 | G160: 72.60 | H160: 70.80 | I160: 78.00 | J160: 79.80 | K160: 81.60 | L160: 78 | M160: 74.4 | N160: 11003500 | O160: -4.97%
A161: 157 | B161: Pharma | C161: PEL | D161: 2288.05 | E161: 2310.03 | F161: 2243.07 | G161: 2198.08 | H161: 2131.12 | I161: 2355.02 | J161: 2421.98 | K161: 2466.97 | L161: 2377 | M161: 2265.05 | N161: 3007316 | O161: 0.88%
A162: 158 | B162: Oil_Gas | C162: PETRONET | D162: 215.90 | E162: 216.95 | F162: 214.15 | G162: 212.40 | H162: 209.60 | I162: 218.70 | J162: 221.50 | K162: 223.25 | L162: 219.75 | M162: 215.2 | N162: 12774000 | O162: 1.02%
A163: 159 | B163: Finance | C163: PFC | D163: 102.60 | E163: 103.38 | F163: 100.57 | G163: 98.53 | H163: 95.72 | I163: 105.42 | J163: 108.23 | K163: 110.27 | L163: 106.2 | M163: 101.35 | N163: 29355200 | O163: -0.97%
A164: 160 | B164: FMCG | C164: PIDILITIND | D164: 1128.10 | E164: 1123.67 | F164: 1113.43 | G164: 1098.77 | H164: 1088.53 | I164: 1138.33 | J164: 1148.57 | K164: 1163.23 | L164: 1133.9 | M164: 1109 | N164: 3724000 | O164: -1.15%
A165: 161 | B165: Banking | C165: PNB | D165: 71.35 | E165: 72.18 | F165: 69.87 | G165: 68.38 | H165: 66.07 | I165: 73.67 | J165: 75.98 | K165: 77.47 | L165: 74.5 | M165: 70.7 | N165: 109218500 | O165: -0.37%
A166: 162 | B166: Power | C166: POWERGRID | D166: 188.35 | E166: 188.77 | F166: 187.33 | G166: 186.32 | H166: 184.88 | I166: 189.78 | J166: 191.22 | K166: 192.23 | L166: 190.2 | M166: 187.75 | N166: 38148000 | O166: -1.18%
A167: 163 | B167: Power | C167: PTC | D167: 80.35 | E167: 81.32 | F167: 79.03 | G167: 77.72 | H167: 75.43 | I167: 82.63 | J167: 84.92 | K167: 86.23 | L167: 83.6 | M167: 80 | N167: 9432000 | O167: 1.81%
A168: 164 | B168: Others | C168: PVR | D168: 1407.85 | E168: 1420.32 | F168: 1383.63 | G168: 1359.42 | H168: 1322.73 | I168: 1444.53 | J168: 1481.22 | K168: 1505.43 | L168: 1457 | M168: 1396.1 | N168: 1227200 | O168: 1.59%
A169: 165 | B169: Cement | C169: RAMCOCEM | D169: 628.90 | E169: 630.08 | F169: 623.42 | G169: 617.93 | H169: 611.27 | I169: 635.57 | J169: 642.23 | K169: 647.72 | L169: 636.75 | M169: 624.6 | N169: 717600 | O169: 1.13%
A170: 166 | B170: Others | C170: RAYMOND | D170: 788.30 | E170: 785.60 | F170: 777.70 | G170: 767.10 | H170: 759.20 | I170: 796.20 | J170: 804.10 | K170: 814.70 | L170: 793.5 | M170: 775 | N170: 3832800 | O170: -1.22%
A171: 167 | B171: Banking | C171: RBLBANK | D171: 553.85 | E171: 554.72 | F171: 548.63 | G171: 543.42 | H171: 537.33 | I171: 559.93 | J171: 566.02 | K171: 571.23 | L171: 560.8 | M171: 549.5 | N171: 7498800 | O171: 4.25%
A172: 168 | B172: Telecom | C172: RCOM | D172: 13.60 | E172: 13.78 | F172: 13.22 | G172: 12.83 | H172: 12.27 | I172: 14.17 | J172: 14.73 | K172: 15.12 | L172: 14.35 | M172: 13.4 | N172: 83050000 | O172: -3.70%
A173: 169 | B173: Power | C173: RECLTD | D173: 122.75 | E173: 123.65 | F173: 120.70 | G173: 118.65 | H173: 115.70 | I173: 125.70 | J173: 128.65 | K173: 130.70 | L173: 126.6 | M173: 121.6 | N173: 38208000 | O173: 8.99%
A174: 170 | B174: Finance | C174: RELCAPITAL | D174: 241.80 | E174: 242.80 | F174: 237.75 | G174: 233.70 | H174: 228.65 | I174: 246.85 | J174: 251.90 | K174: 255.95 | L174: 247.85 | M174: 238.75 | N174: 12064500 | O174: 0.61%
A175: 171 | B175: Oil_Gas | C175: RELIANCE | D175: 1137.75 | E175: 1140.92 | F175: 1126.23 | G175: 1114.72 | H175: 1100.03 | I175: 1152.43 | J175: 1167.12 | K175: 1178.63 | L175: 1155.6 | M175: 1129.4 | N175: 43774500 | O175: -2.12%
A176: 172 | B176: Power | C176: RELINFRA | D176: 356.60 | E176: 356.02 | F176: 350.63 | G176: 344.67 | H176: 339.28 | I176: 361.98 | J176: 367.37 | K176: 373.33 | L176: 361.4 | M176: 350.05 | N176: 7135700 | O176: -0.51%
A177: 173 | B177: Others | C177: REPCOHOME | D177: 393.90 | E177: 388.45 | F177: 378.90 | G177: 363.90 | H177: 354.35 | I177: 403.45 | J177: 413.00 | K177: 428.00 | L177: 398 | M177: 373.45 | N177: 788400 | O177: 11.17%
A178: 174 | B178: Power | C178: RPOWER | D178: 30.50 | E178: 30.93 | F178: 29.92 | G178: 29.33 | H178: 28.32 | I178: 31.52 | J178: 32.53 | K178: 33.12 | L178: 31.95 | M178: 30.35 | N178: 45068000 | O178: 2.03%
A179: 175 | B179: Metals | C179: SAIL | D179: 62.45 | E179: 62.95 | F179: 61.60 | G179: 60.75 | H179: 59.40 | I179: 63.80 | J179: 65.15 | K179: 66.00 | L179: 64.3 | M179: 62.1 | N179: 83916000 | O179: 9.28%
A180: 176 | B180: Banking | C180: SBIN | D180: 283.45 | E180: 284.98 | F180: 280.97 | G180: 278.48 | H180: 274.47 | I180: 287.47 | J180: 291.48 | K180: 293.97 | L180: 289 | M180: 282.5 | N180: 99228000 | O180: -1.16%
A181: 177 | B181: Cement | C181: SHREECEM | D181: 15903.70 | E181: 15961.23 | F181: 15767.47 | G181: 15631.23 | H181: 15437.47 | I181: 16097.47 | J181: 16291.23 | K181: 16427.47 | L181: 16155 | M181: 15825 | N181: 108850 | O181: 0.83%
A182: 178 | B182: Capital_Goods | C182: SIEMENS | D182: 925.90 | E182: 928.67 | F182: 918.03 | G182: 910.17 | H182: 899.53 | I182: 936.53 | J182: 947.17 | K182: 955.03 | L182: 939.3 | M182: 920.8 | N182: 2564950 | O182: 8.87%
A183: 179 | B183: Banking | C183: SOUTHBANK | D183: 14.25 | E183: 14.37 | F183: 14.08 | G183: 13.92 | H183: 13.63 | I183: 14.53 | J183: 14.82 | K183: 14.98 | L183: 14.65 | M183: 14.2 | N183: 137137458 | O183: 2.12%
A184: 180 | B184: Others | C184: SREINFRA | D184: 32.55 | E184: 32.75 | F184: 31.75 | G184: 30.95 | H184: 29.95 | I184: 33.55 | J184: 34.55 | K184: 35.35 | L184: 33.75 | M184: 31.95 | N184: 14392000 | O184: -0.44%
A185: 181 | B185: Textile | C185: SRF | D185: 2083.70 | E185: 2098.57 | F185: 2053.13 | G185: 2022.57 | H185: 1977.13 | I185: 2129.13 | J185: 2174.57 | K185: 2205.13 | L185: 2144 | M185: 2068 | N185: 602000 | O185: -12.88%
A186: 182 | B186: Finance | C186: SRTRANSFIN | D186: 1194.90 | E186: 1200.68 | F186: 1177.37 | G186: 1159.83 | H186: 1136.52 | I186: 1218.22 | J186: 1241.53 | K186: 1259.07 | L186: 1224 | M186: 1183.15 | N186: 3598800 | O186: 3.47%
A187: 183 | B187: Pharma | C187: STAR | D187: 459.90 | E187: 460.17 | F187: 454.63 | G187: 449.37 | H187: 443.83 | I187: 465.43 | J187: 470.97 | K187: 476.23 | L187: 465.7 | M187: 454.9 | N187: 3236800 | O187: -2.25%
A188: 184 | B188: Pharma | C188: SUNPHARMA | D188: 526.00 | E188: 527.15 | F188: 521.35 | G188: 516.70 | H188: 510.90 | I188: 531.80 | J188: 537.60 | K188: 542.25 | L188: 532.95 | M188: 522.5 | N188: 34965700 | O188: -0.86%
A189: 185 | B189: Media | C189: SUNTV | D189: 610.50 | E189: 614.47 | F189: 604.03 | G189: 597.57 | H189: 587.13 | I189: 620.93 | J189: 631.37 | K189: 637.83 | L189: 624.9 | M189: 608 | N189: 8214000 | O189: 1.02%
A190: 186 | B190: Power | C190: SUZLON | D190: 5.45 | E190: 5.47 | F190: 5.33 | G190: 5.22 | H190: 5.08 | I190: 5.58 | J190: 5.72 | K190: 5.83 | L190: 5.6 | M190: 5.35 | N190: 314733000 | O190: 1.00%
A191: 187 | B191: Banking | C191: SYNDIBANK | D191: 35.30 | E191: 35.52 | F191: 34.88 | G191: 34.47 | H191: 33.83 | I191: 35.93 | J191: 36.57 | K191: 36.98 | L191: 36.15 | M191: 35.1 | N191: 24648000 | O191: 5.21%
A192: 188 | B192: Fertilisers | C192: TATACHEM | D192: 691.55 | E192: 696.05 | F192: 682.80 | G192: 674.05 | H192: 660.80 | I192: 704.80 | J192: 718.05 | K192: 726.80 | L192: 709.3 | M192: 687.3 | N192: 2690250 | O192: 6.50%
A193: 189 | B193: Telecom | C193: TATACOMM | D193: 532.70 | E193: 534.57 | F193: 526.03 | G193: 519.37 | H193: 510.83 | I193: 541.23 | J193: 549.77 | K193: 556.43 | L193: 543.1 | M193: 527.9 | N193: 2751200 | O193: -2.80%
A194: 190 | B194: Technology | C194: TATAELXSI | D194: 991.40 | E194: 989.23 | F194: 969.97 | G194: 948.53 | H194: 929.27 | I194: 1010.67 | J194: 1029.93 | K194: 1051.37 | L194: 1008.5 | M194: 967.8 | N194: 1596400 | O194: -1.60%
A195: 191 | B195: FMCG | C195: TATAGLOBAL | D195: 216.35 | E195: 219.03 | F195: 212.62 | G195: 208.88 | H195: 202.47 | I195: 222.77 | J195: 229.18 | K195: 232.92 | L195: 225.45 | M195: 215.3 | N195: 10514250 | O195: 2.43%
A196: 192 | B196: Automobile | C196: TATAMOTORS | D196: 183.80 | E196: 185.15 | F196: 181.90 | G196: 180.00 | H196: 176.75 | I196: 187.05 | J196: 190.30 | K196: 192.20 | L196: 188.4 | M196: 183.25 | N196: 60819500 | O196: -1.47%
A197: 193 | B197: Automobile | C197: TATAMTRDVR | D197: 100.25 | E197: 100.88 | F197: 98.92 | G197: 97.58 | H197: 95.62 | I197: 102.22 | J197: 104.18 | K197: 105.52 | L197: 102.85 | M197: 99.55 | N197: 26369000 | O197: 0.80%
A198: 194 | B198: Power | C198: TATAPOWER | D198: 78.25 | E198: 77.87 | F198: 76.98 | G198: 75.72 | H198: 74.83 | I198: 79.13 | J198: 80.02 | K198: 81.28 | L198: 78.75 | M198: 76.6 | N198: 49338000 | O198: -2.94%
A199: 195 | B199: Metals | C199: TATASTEEL | D199: 564.25 | E199: 568.37 | F199: 557.78 | G199: 551.32 | H199: 540.73 | I199: 574.83 | J199: 585.42 | K199: 591.88 | L199: 578.95 | M199: 561.9 | N199: 35366313 | O199: 1.02%
A200: 196 | B200: Technology | C200: TCS | D200: 1882.65 | E200: 1886.22 | F200: 1872.43 | G200: 1862.22 | H200: 1848.43 | I200: 1896.43 | J200: 1910.22 | K200: 1920.43 | L200: 1900 | M200: 1876 | N200: 10630000 | O200: 0.63%
A201: 197 | B201: Technology | C201: TECHM | D201: 711.65 | E201: 714.40 | F201: 702.70 | G201: 693.75 | H201: 682.05 | I201: 723.35 | J201: 735.05 | K201: 744.00 | L201: 726.1 | M201: 705.45 | N201: 11866800 | O201: -1.00%
A202: 198 | B202: FMCG | C202: TITAN | D202: 917.50 | E202: 918.50 | F202: 910.10 | G202: 902.70 | H202: 894.30 | I202: 925.90 | J202: 934.30 | K202: 941.70 | L202: 926.9 | M202: 911.1 | N202: 13371000 | O202: -1.40%
A203: 199 | B203: Pharma | C203: TORNTPHARM | D203: 1643.85 | E203: 1648.62 | F203: 1632.48 | G203: 1621.12 | H203: 1604.98 | I203: 1659.98 | J203: 1676.12 | K203: 1687.48 | L203: 1664.75 | M203: 1637.25 | N203: 365500 | O203: 1.81%
A204: 200 | B204: Power | C204: TORNTPOWER | D204: 258.45 | E204: 260.38 | F204: 255.12 | G204: 251.78 | H204: 246.52 | I204: 263.72 | J204: 268.98 | K204: 272.32 | L204: 265.65 | M204: 257.05 | N204: 3246000 | O204: 2.17%
A205: 201 | B205: Media | C205: TV18BRDCST | D205: 36.70 | E205: 37.00 | F205: 36.10 | G205: 35.50 | H205: 34.60 | I205: 37.60 | J205: 38.50 | K205: 39.10 | L205: 37.9 | M205: 36.4 | N205: 47090000 | O205: 0.05%
A206: 202 | B206: Automobile | C206: TVSMOTOR | D206: 538.45 | E206: 541.45 | F206: 529.55 | G206: 520.65 | H206: 508.75 | I206: 550.35 | J206: 562.25 | K206: 571.15 | L206: 553.35 | M206: 532.55 | N206: 7459000 | O206: 3.55%
... 30 more rows

Sheet Cash Intra
M5: Back to Main Page
A6: FOR INTRA DAY TRADING | K6: =Main!B10 -> 2018-11-21
A8: Sr.no | B8: Scrip | C8: CLOSE RATE | D8: Pivot Point | E8: Supports | H8: Resistances
C9: Point | E9: S1 | F9: S2 | G9: S3 | H9: R1 | I9: R2 | J9: R3 | K9: HIGH | L9: LOW | M9: Total Trade Quanity in Lakhs
A10: 1 | B10: Nifty 50 | C10: 10656.2 | D10: 10679.30 | E10: 10617.75 | F10: 10579.30 | G10: 10517.75 | H10: 10717.75 | I10: 10779.30 | J10: 10817.75 | K10: 10740.85 | L10: 10640.85
A11: 2 | B11: Nifty Bank | C11: 26113.35 | D11: 26138.18 | E11: 26016.97 | F11: 25920.58 | G11: 25799.37 | H11: 26234.57 | I11: 26355.78 | J11: 26452.17 | K11: 26259.4 | L11: 26041.8
A12: 3 | B12: Nifty CPSE | C12: 2131.45 | D12: 2144.30 | E12: 2114.45 | F12: 2097.45 | G12: 2067.60 | H12: 2161.30 | I12: 2191.15 | J12: 2208.15 | K12: 2174.15 | L12: 2127.3
A13: 4 | B13: Nifty Infra | C13: 3121.25 | D13: 3125.72 | E13: 3109.18 | F13: 3097.12 | G13: 3080.58 | H13: 3137.78 | I13: 3154.32 | J13: 3166.38 | K13: 3142.25 | L13: 3113.65
A14: 5 | B14: Nifty IT | C14: 14285.05 | D14: 14374.20 | E14: 14173.15 | F14: 14061.25 | G14: 13860.20 | H14: 14486.10 | I14: 14687.15 | J14: 14799.05 | K14: 14575.25 | L14: 14262.3
A15: 6 | B15: Nifty PSE | C15: 3381.85 | D15: 3396.68 | E15: 3361.57 | F15: 3341.28 | G15: 3306.17 | H15: 3416.97 | I15: 3452.08 | J15: 3472.37 | K15: 3431.8 | L15: 3376.4
A16: 7 | B16: Nifty Midcap 50 | C16: 4786.7 | D16: 4807.03 | E16: 4756.42 | F16: 4726.13 | G16: 4675.52 | H16: 4837.32 | I16: 4887.93 | J16: 4918.22 | K16: 4857.65 | L16: 4776.75
A17: 8 | B17: ABB | C17: 1342.7 | D17: 1343.20 | E17: 1336.40 | F17: 1330.10 | G17: 1323.30 | H17: 1349.50 | I17: 1356.30 | J17: 1362.60 | K17: 1350 | L17: 1336.9 | M17: 0.3758
A18: 9 | B18: ACC | C18: 1469.95 | D18: 1478.52 | E18: 1458.73 | F18: 1447.52 | G18: 1427.73 | H18: 1489.73 | I18: 1509.52 | J18: 1520.73 | K18: 1498.3 | L18: 1467.3 | M18: 4.62997
A19: 10 | B19: AIAENG | C19: 1641.05 | D19: 1646.45 | E19: 1619.60 | F19: 1598.15 | G19: 1571.30 | H19: 1667.90 | I19: 1694.75 | J19: 1716.20 | K19: 1673.3 | L19: 1625 | M19: 0.53178
A20: 11 | B20: AUBANK | C20: 588.75 | D20: 584.33 | E20: 564.77 | F20: 540.78 | G20: 521.22 | H20: 608.32 | I20: 627.88 | J20: 651.87 | K20: 603.9 | L20: 560.35 | M20: 4.07832
A21: 12 | B21: ADANIENT | C21: 160.15 | D21: 160.25 | E21: 156.85 | F21: 153.55 | G21: 150.15 | H21: 163.55 | I21: 166.95 | J21: 170.25 | K21: 163.65 | L21: 156.95 | M21: 42.93856
A22: 13 | B22: ADANIPORTS | C22: 355.25 | D22: 353.27 | E22: 348.98 | F22: 342.72 | G22: 338.43 | H22: 359.53 | I22: 363.82 | J22: 370.08 | K22: 357.55 | L22: 347 | M22: 57.78336
A23: 14 | B23: ADANIPOWER | C23: 47.25 | D23: 47.67 | E23: 46.33 | F23: 45.42 | G23: 44.08 | H23: 48.58 | I23: 49.92 | J23: 50.83 | K23: 49 | L23: 46.75 | M23: 141.51952
A24: 15 | B24: ABFRL | C24: 187.6 | D24: 188.15 | E24: 185.70 | F24: 183.80 | G24: 181.35 | H24: 190.05 | I24: 192.50 | J24: 194.40 | K24: 190.6 | L24: 186.25 | M24: 5.51764
A25: 16 | B25: AJANTPHARM | C25: 1107.95 | D25: 1118.32 | E25: 1088.63 | F25: 1069.32 | G25: 1039.63 | H25: 1137.63 | I25: 1167.32 | J25: 1186.63 | K25: 1148 | L25: 1099 | M25: 2.73737
A26: 17 | B26: ALKEM | C26: 1947.75 | D26: 1942.37 | E26: 1922.58 | F26: 1897.42 | G26: 1877.63 | H26: 1967.53 | I26: 1987.32 | J26: 2012.48 | K26: 1962.15 | L26: 1917.2 | M26: 0.09224
A27: 18 | B27: AMARAJABAT | C27: 725.9 | D27: 728.18 | E27: 720.72 | F27: 715.53 | G27: 708.07 | H27: 733.37 | I27: 740.83 | J27: 746.02 | K27: 735.65 | L27: 723 | M27: 2.37231
A28: 19 | B28: AMBUJACEM | C28: 215 | D28: 216.10 | E28: 212.95 | F28: 210.90 | G28: 207.75 | H28: 218.15 | I28: 221.30 | J28: 223.35 | K28: 219.25 | L28: 214.05 | M28: 12.07441
A29: 20 | B29: APOLLOHOSP | C29: 1192.8 | D29: 1207.08 | E29: 1174.27 | F29: 1155.73 | G29: 1122.92 | H29: 1225.62 | I29: 1258.43 | J29: 1276.97 | K29: 1239.9 | L29: 1188.55 | M29: 9.33231
A30: 21 | B30: APOLLOTYRE | C30: 225.3 | D30: 226.58 | E30: 223.37 | F30: 221.43 | G30: 218.22 | H30: 228.52 | I30: 231.73 | J30: 233.67 | K30: 229.8 | L30: 224.65 | M30: 28.20381
A31: 22 | B31: ARVIND | C31: 318.65 | D31: 319.00 | E31: 314.75 | F31: 310.85 | G31: 306.60 | H31: 322.90 | I31: 327.15 | J31: 331.05 | K31: 323.25 | L31: 315.1 | M31: 28.86552
A32: 23 | B32: ASHOKLEY | C32: 107.65 | D32: 108.25 | E32: 106.25 | F32: 104.85 | G32: 102.85 | H32: 109.65 | I32: 111.65 | J32: 113.05 | K32: 110.25 | L32: 106.85 | M32: 309.08911
A33: 24 | B33: ASIANPAINT | C33: 1306.85 | D33: 1314.20 | E33: 1297.35 | F33: 1287.85 | G33: 1271.00 | H33: 1323.70 | I33: 1340.55 | J33: 1350.05 | K33: 1331.05 | L33: 1304.7 | M33: 8.67729
A34: 25 | B34: AUROPHARMA | C34: 778.9 | D34: 782.85 | E34: 773.05 | F34: 767.20 | G34: 757.40 | H34: 788.70 | I34: 798.50 | J34: 804.35 | K34: 792.65 | L34: 777 | M34: 12.13467
A35: 26 | B35: DMART | C35: 1412.5 | D35: 1415.85 | E35: 1394.30 | F35: 1376.10 | G35: 1354.55 | H35: 1434.05 | I35: 1455.60 | J35: 1473.80 | K35: 1437.4 | L35: 1397.65 | M35: 5.77012
A36: 27 | B36: AXISBANK | C36: 612.65 | D36: 613.93 | E36: 608.27 | F36: 603.88 | G36: 598.22 | H36: 618.32 | I36: 623.98 | J36: 628.37 | K36: 619.6 | L36: 609.55 | M36: 66.58508
A37: 28 | B37: BAJAJ-AUTO | C37: 2666.5 | D37: 2667.05 | E37: 2654.45 | F37: 2642.40 | G37: 2629.80 | H37: 2679.10 | I37: 2691.70 | J37: 2703.75 | K37: 2679.65 | L37: 2655 | M37: 1.46989
A38: 29 | B38: BAJFINANCE | C38: 2380.1 | D38: 2372.93 | E38: 2352.92 | F38: 2325.73 | G38: 2305.72 | H38: 2400.12 | I38: 2420.13 | J38: 2447.32 | K38: 2392.95 | L38: 2345.75 | M38: 12.37702
A39: 30 | B39: BAJAJFINSV | C39: 5688.55 | D39: 5700.42 | E39: 5636.13 | F39: 5583.72 | G39: 5519.43 | H39: 5752.83 | I39: 5817.12 | J39: 5869.53 | K39: 5764.7 | L39: 5648 | M39: 1.22296
A40: 31 | B40: BALKRISIND | C40: 953.4 | D40: 958.33 | E40: 944.07 | F40: 934.73 | G40: 920.47 | H40: 967.67 | I40: 981.93 | J40: 991.27 | K40: 972.6 | L40: 949 | M40: 8.83159
A41: 32 | B41: BANKBARODA | C41: 110.2 | D41: 111.68 | E41: 107.77 | F41: 105.33 | G41: 101.42 | H41: 114.12 | I41: 118.03 | J41: 120.47 | K41: 115.6 | L41: 109.25 | M41: 282.58376
A42: 33 | B42: BANKINDIA | C42: 85.85 | D42: 85.62 | E42: 83.13 | F42: 80.42 | G42: 77.93 | H42: 88.33 | I42: 90.82 | J42: 93.53 | K42: 88.1 | L42: 82.9 | M42: 138.67586
A43: 34 | B43: BATAINDIA | C43: 984.85 | D43: 988.25 | E43: 976.60 | F43: 968.35 | G43: 956.70 | H43: 996.50 | I43: 1008.15 | J43: 1016.40 | K43: 999.9 | L43: 980 | M43: 3.80682
A44: 35 | B44: BERGEPAINT | C44: 312.9 | D44: 314.42 | E44: 308.63 | F44: 304.37 | G44: 298.58 | H44: 318.68 | I44: 324.47 | J44: 328.73 | K44: 320.2 | L44: 310.15 | M44: 4.99115
A45: 36 | B45: BEL | C45: 92.9 | D45: 93.73 | E45: 91.47 | F45: 90.03 | G45: 87.77 | H45: 95.17 | I45: 97.43 | J45: 98.87 | K45: 96 | L45: 92.3 | M45: 70.64888
A46: 37 | B46: BHARATFIN | C46: 965.2 | D46: 962.17 | E46: 948.33 | F46: 931.47 | G46: 917.63 | H46: 979.03 | I46: 992.87 | J46: 1009.73 | K46: 976 | L46: 945.3 | M46: 10.23702
A47: 38 | B47: BHARATFORG | C47: 577.1 | D47: 582.95 | E47: 565.15 | F47: 553.20 | G47: 535.40 | H47: 594.90 | I47: 612.70 | J47: 624.65 | K47: 600.75 | L47: 571 | M47: 12.16501
A48: 39 | B48: BHEL | C48: 67.4 | D48: 67.47 | E48: 66.88 | F48: 66.37 | G48: 65.78 | H48: 67.98 | I48: 68.57 | J48: 69.08 | K48: 68.05 | L48: 66.95 | M48: 113.70903
A49: 40 | B49: BPCL | C49: 322.9 | D49: 324.65 | E49: 319.35 | F49: 315.80 | G49: 310.50 | H49: 328.20 | I49: 333.50 | J49: 337.05 | K49: 329.95 | L49: 321.1 | M49: 44.42573
A50: 41 | B50: BHARTIARTL | C50: 331.95 | D50: 333.23 | E50: 327.02 | F50: 322.08 | G50: 315.87 | H50: 338.17 | I50: 344.38 | J50: 349.32 | K50: 339.45 | L50: 328.3 | M50: 107.34672
A51: 42 | B51: INFRATEL | C51: 260.3 | D51: 259.82 | E51: 258.38 | F51: 256.47 | G51: 255.03 | H51: 261.73 | I51: 263.17 | J51: 265.08 | K51: 261.25 | L51: 257.9 | M51: 10.05059
A52: 43 | B52: BIOCON | C52: 612.5 | D52: 620.20 | E52: 602.55 | F52: 592.60 | G52: 574.95 | H52: 630.15 | I52: 647.80 | J52: 657.75 | K52: 637.85 | L52: 610.25 | M52: 19.58119
A53: 44 | B53: BOSCHLTD | C53: 18595.3 | D53: 18683.47 | E53: 18416.93 | F53: 18238.57 | G53: 17972.03 | H53: 18861.83 | I53: 19128.37 | J53: 19306.73 | K53: 18950 | L53: 18505.1 | M53: 0.29951
A54: 45 | B54: BRITANNIA | C54: 5888.7 | D54: 5911.82 | E54: 5817.73 | F54: 5746.77 | G54: 5652.68 | H54: 5982.78 | I54: 6076.87 | J54: 6147.83 | K54: 6005.9 | L54: 5840.85 | M54: 1.08251
A55: 46 | B55: CRISIL | C55: 1496.5 | D55: 1498.12 | E55: 1488.48 | F55: 1480.47 | G55: 1470.83 | H55: 1506.13 | I55: 1515.77 | J55: 1523.78 | K55: 1507.75 | L55: 1490.1 | M55: 0.07766
A56: 47 | B56: CADILAHC | C56: 355 | D56: 357.03 | E56: 350.02 | F56: 345.03 | G56: 338.02 | H56: 362.02 | I56: 369.03 | J56: 374.02 | K56: 364.05 | L56: 352.05 | M56: 7.64219
A57: 48 | B57: CANBK | C57: 256.85 | D57: 258.82 | E57: 253.38 | F57: 249.92 | G57: 244.48 | H57: 262.28 | I57: 267.72 | J57: 271.18 | K57: 264.25 | L57: 255.35 | M57: 76.43669
A58: 49 | B58: CASTROLIND | C58: 153.2 | D58: 151.88 | E58: 149.67 | F58: 146.13 | G58: 143.92 | H58: 155.42 | I58: 157.63 | J58: 161.17 | K58: 154.1 | L58: 148.35 | M58: 12.1566
A59: 50 | B59: CENTRALBK | C59: 30.75 | D59: 31.10 | E59: 30.20 | F59: 29.65 | G59: 28.75 | H59: 31.65 | I59: 32.55 | J59: 33.10 | K59: 32 | L59: 30.55 | M59: 3.20853
A60: 51 | B60: CENTURYTEX | C60: 898.5 | D60: 906.62 | E60: 886.48 | F60: 874.47 | G60: 854.33 | H60: 918.63 | I60: 938.77 | J60: 950.78 | K60: 926.75 | L60: 894.6 | M60: 6.56186
A61: 52 | B61: CHOLAFIN | C61: 1260.2 | D61: 1262.10 | E61: 1216.10 | F61: 1172.00 | G61: 1126.00 | H61: 1306.20 | I61: 1352.20 | J61: 1396.30 | K61: 1308.1 | L61: 1218 | M61: 4.18865
A62: 53 | B62: CIPLA | C62: 520.7 | D62: 523.07 | E62: 516.28 | F62: 511.87 | G62: 505.08 | H62: 527.48 | I62: 534.27 | J62: 538.68 | K62: 529.85 | L62: 518.65 | M62: 17.07971
A63: 54 | B63: COALINDIA | C63: 261.45 | D63: 262.68 | E63: 259.77 | F63: 258.08 | G63: 255.17 | H63: 264.37 | I63: 267.28 | J63: 268.97 | K63: 265.6 | L63: 261 | M63: 42.53683
A64: 55 | B64: COLPAL | C64: 1157.95 | D64: 1159.47 | E64: 1148.33 | F64: 1138.72 | G64: 1127.58 | H64: 1169.08 | I64: 1180.22 | J64: 1189.83 | K64: 1170.6 | L64: 1149.85 | M64: 5.97121
A65: 56 | B65: CONCOR | C65: 676.4 | D65: 676.43 | E65: 666.97 | F65: 657.53 | G65: 648.07 | H65: 685.87 | I65: 695.33 | J65: 704.77 | K65: 685.9 | L65: 667 | M65: 5.20569
A66: 57 | B66: COROMANDEL | C66: 400.65 | D66: 403.20 | E66: 395.50 | F66: 390.35 | G66: 382.65 | H66: 408.35 | I66: 416.05 | J66: 421.20 | K66: 410.9 | L66: 398.05 | M66: 1.00401
A67: 58 | B67: CROMPTON | C67: 204 | D67: 204.02 | E67: 202.03 | F67: 200.07 | G67: 198.08 | H67: 205.98 | I67: 207.97 | J67: 209.93 | K67: 206 | L67: 202.05 | M67: 5.98727
A68: 59 | B68: CUMMINSIND | C68: 785.25 | D68: 788.52 | E68: 772.23 | F68: 759.22 | G68: 742.93 | H68: 801.53 | I68: 817.82 | J68: 830.83 | K68: 804.8 | L68: 775.5 | M68: 11.58802
A69: 60 | B69: DLF | C69: 174.9 | D69: 173.48 | E69: 171.32 | F69: 167.73 | G69: 165.57 | H69: 177.07 | I69: 179.23 | J69: 182.82 | K69: 175.65 | L69: 169.9 | M69: 69.84983
A70: 61 | B70: DABUR | C70: 394.1 | D70: 397.88 | E70: 389.32 | F70: 384.53 | G70: 375.97 | H70: 402.67 | I70: 411.23 | J70: 416.02 | K70: 406.45 | L70: 393.1 | M70: 17.34543
A71: 62 | B71: DALMIABHA | C71: 2258.6 | D71: 2257.88 | E71: 2222.72 | F71: 2186.83 | G71: 2151.67 | H71: 2293.77 | I71: 2328.93 | J71: 2364.82 | K71: 2293.05 | L71: 2222 | M71: 0.698
A72: 63 | B72: DHFL | C72: 225.3 | D72: 228.92 | E72: 216.38 | F72: 207.47 | G72: 194.93 | H72: 237.83 | I72: 250.37 | J72: 259.28 | K72: 241.45 | L72: 220 | M72: 221.2057
A73: 64 | B73: DISHTV | C73: 37.8 | D73: 38.02 | E73: 37.03 | F73: 36.27 | G73: 35.28 | H73: 38.78 | I73: 39.77 | J73: 40.53 | K73: 39 | L73: 37.25 | M73: 48.47608
A74: 65 | B74: DIVISLAB | C74: 1534.3 | D74: 1544.47 | E74: 1519.93 | F74: 1505.57 | G74: 1481.03 | H74: 1558.83 | I74: 1583.37 | J74: 1597.73 | K74: 1569 | L74: 1530.1 | M74: 5.0827
A75: 66 | B75: LALPATHLAB | C75: 857 | D75: 851.33 | E75: 841.67 | F75: 826.33 | G75: 816.67 | H75: 866.67 | I75: 876.33 | J75: 891.67 | K75: 861 | L75: 836 | M75: 0.8368
A76: 67 | B76: DRREDDY | C76: 2443.15 | D76: 2466.93 | E76: 2413.77 | F76: 2384.38 | G76: 2331.22 | H76: 2496.32 | I76: 2549.48 | J76: 2578.87 | K76: 2520.1 | L76: 2437.55 | M76: 5.41117
A77: 68 | B77: EDELWEISS | C77: 171.2 | D77: 172.77 | E77: 168.58 | F77: 165.97 | G77: 161.78 | H77: 175.38 | I77: 179.57 | J77: 182.18 | K77: 176.95 | L77: 170.15 | M77: 24.69637
A78: 69 | B78: EICHERMOT | C78: 24595.8 | D78: 24798.78 | E78: 24247.57 | F78: 23899.33 | G78: 23348.12 | H78: 25147.02 | I78: 25698.23 | J78: 26046.47 | K78: 25350 | L78: 24450.55 | M78: 1.03074
A79: 70 | B79: EMAMILTD | C79: 444.7 | D79: 446.88 | E79: 435.87 | F79: 427.03 | G79: 416.02 | H79: 455.72 | I79: 466.73 | J79: 475.57 | K79: 457.9 | L79: 438.05 | M79: 1.19029
A80: 71 | B80: ENDURANCE | C80: 1102.9 | D80: 1106.57 | E80: 1094.33 | F80: 1085.77 | G80: 1073.53 | H80: 1115.13 | I80: 1127.37 | J80: 1135.93 | K80: 1118.8 | L80: 1098 | M80: 0.32051
A81: 72 | B81: ENGINERSIN | C81: 116.75 | D81: 116.80 | E81: 115.20 | F81: 113.65 | G81: 112.05 | H81: 118.35 | I81: 119.95 | J81: 121.50 | K81: 118.4 | L81: 115.25 | M81: 12.72939
A82: 73 | B82: EXIDEIND | C82: 238.9 | D82: 239.57 | E82: 236.38 | F82: 233.87 | G82: 230.68 | H82: 242.08 | I82: 245.27 | J82: 247.78 | K82: 242.75 | L82: 237.05 | M82: 42.34658
A83: 74 | B83: FEDERALBNK | C83: 80 | D83: 80.27 | E83: 78.63 | F83: 77.27 | G83: 75.63 | H83: 81.63 | I83: 83.27 | J83: 84.63 | K83: 81.9 | L83: 78.9 | M83: 99.27482
A84: 75 | B84: GAIL | C84: 344.05 | D84: 342.58 | E84: 339.17 | F84: 334.28 | G84: 330.87 | H84: 347.47 | I84: 350.88 | J84: 355.77 | K84: 346 | L84: 337.7 | M84: 62.11451
A85: 76 | B85: GMRINFRA | C85: 16.25 | D85: 16.50 | E85: 15.90 | F85: 15.55 | G85: 14.95 | H85: 16.85 | I85: 17.45 | J85: 17.80 | K85: 17.1 | L85: 16.15 | M85: 247.09162
A86: 77 | B86: GSKCONS | C86: 7147.35 | D86: 7169.62 | E86: 7100.23 | F86: 7053.12 | G86: 6983.73 | H86: 7216.73 | I86: 7286.12 | J86: 7333.23 | K86: 7239 | L86: 7122.5 | M86: 0.2411
A87: 78 | B87: GLAXO | C87: 1355.5 | D87: 1351.87 | E87: 1338.73 | F87: 1321.97 | G87: 1308.83 | H87: 1368.63 | I87: 1381.77 | J87: 1398.53 | K87: 1365 | L87: 1335.1 | M87: 0.07217
A88: 79 | B88: GLENMARK | C88: 635.4 | D88: 637.37 | E88: 625.28 | F88: 615.17 | G88: 603.08 | H88: 647.48 | I88: 659.57 | J88: 669.68 | K88: 649.45 | L88: 627.25 | M88: 10.53489
A89: 80 | B89: GODREJCP | C89: 708.2 | D89: 713.88 | E89: 699.42 | F89: 690.63 | G89: 676.17 | H89: 722.67 | I89: 737.13 | J89: 745.92 | K89: 728.35 | L89: 705.1 | M89: 4.78063
A90: 81 | B90: GODREJIND | C90: 524.4 | D90: 524.50 | E90: 515.35 | F90: 506.30 | G90: 497.15 | H90: 533.55 | I90: 542.70 | J90: 551.75 | K90: 533.65 | L90: 515.45 | M90: 10.29639
A91: 82 | B91: GRUH | C91: 294.15 | D91: 294.12 | E91: 290.53 | F91: 286.92 | G91: 283.33 | H91: 297.73 | I91: 301.32 | J91: 304.93 | K91: 297.7 | L91: 290.5 | M91: 1.713
A92: 83 | B92: GPPL | C92: 95.95 | D92: 96.55 | E92: 94.60 | F92: 93.25 | G92: 91.30 | H92: 97.90 | I92: 99.85 | J92: 101.20 | K92: 98.5 | L92: 95.2 | M92: 0.63831
A93: 84 | B93: GSPL | C93: 182.05 | D93: 181.98 | E93: 179.97 | F93: 177.88 | G93: 175.87 | H93: 184.07 | I93: 186.08 | J93: 188.17 | K93: 184 | L93: 179.9 | M93: 1.48048
A94: 85 | B94: HCLTECH | C94: 1008.95 | D94: 1015.75 | E94: 996.50 | F94: 984.05 | G94: 964.80 | H94: 1028.20 | I94: 1047.45 | J94: 1059.90 | K94: 1035 | L94: 1003.3 | M94: 13.14282
A95: 86 | B95: HDFCBANK | C95: 2012.45 | D95: 2010.37 | E95: 2001.13 | F95: 1989.82 | G95: 1980.58 | H95: 2021.68 | I95: 2030.92 | J95: 2042.23 | K95: 2019.6 | L95: 1999.05 | M95: 14.26292
A96: 87 | B96: HAVELLS | C96: 677.7 | D96: 679.42 | E96: 673.33 | F96: 668.97 | G96: 662.88 | H96: 683.78 | I96: 689.87 | J96: 694.23 | K96: 685.5 | L96: 675.05 | M96: 7.09538
A97: 88 | B97: HEROMOTOCO | C97: 2960.1 | D97: 2965.35 | E97: 2935.75 | F97: 2911.40 | G97: 2881.80 | H97: 2989.70 | I97: 3019.30 | J97: 3043.65 | K97: 2994.95 | L97: 2941 | M97: 1.61818
A98: 89 | B98: HEXAWARE | C98: 308.75 | D98: 310.30 | E98: 305.60 | F98: 302.45 | G98: 297.75 | H98: 313.45 | I98: 318.15 | J98: 321.30 | K98: 315 | L98: 307.15 | M98: 14.51455
A99: 90 | B99: HINDALCO | C99: 221.95 | D99: 225.40 | E99: 216.95 | F99: 211.95 | G99: 203.50 | H99: 230.40 | I99: 238.85 | J99: 243.85 | K99: 233.85 | L99: 220.4 | M99: 147.61307
A100: 91 | B100: HINDPETRO | C100: 243.25 | D100: 245.78 | E100: 239.07 | F100: 234.88 | G100: 228.17 | H100: 249.97 | I100: 256.68 | J100: 260.87 | K100: 252.5 | L100: 241.6 | M100: 71.54042
A101: 92 | B101: HINDUNILVR | C101: 1694 | D101: 1696.32 | E101: 1682.73 | F101: 1671.47 | G101: 1657.88 | H101: 1707.58 | I101: 1721.17 | J101: 1732.43 | K101: 1709.9 | L101: 1685.05 | M101: 7.40827
A102: 93 | B102: HINDZINC | C102: 263.55 | D102: 264.98 | E102: 261.47 | F102: 259.38 | G102: 255.87 | H102: 267.07 | I102: 270.58 | J102: 272.67 | K102: 268.5 | L102: 262.9 | M102: 4.65585
A103: 94 | B103: HUDCO | C103: 44.3 | D103: 44.52 | E103: 43.88 | F103: 43.47 | G103: 42.83 | H103: 44.93 | I103: 45.57 | J103: 45.98 | K103: 45.15 | L103: 44.1 | M103: 4.44717
A104: 95 | B104: HDFC | C104: 1876.8 | D104: 1884.28 | E104: 1864.57 | F104: 1852.33 | G104: 1832.62 | H104: 1896.52 | I104: 1916.23 | J104: 1928.47 | K104: 1904 | L104: 1872.05 | M104: 21.23458
A105: 96 | B105: ITC | C105: 283.85 | D105: 284.10 | E105: 281.55 | F105: 279.25 | G105: 276.70 | H105: 286.40 | I105: 288.95 | J105: 291.25 | K105: 286.65 | L105: 281.8 | M105: 77.96633
A106: 97 | B106: ICICIBANK | C106: 357.9 | D106: 359.32 | E106: 353.18 | F106: 348.47 | G106: 342.33 | H106: 364.03 | I106: 370.17 | J106: 374.88 | K106: 365.45 | L106: 354.6 | M106: 195.91217
A107: 98 | B107: ICICIPRULI | C107: 321 | D107: 322.33 | E107: 317.77 | F107: 314.53 | G107: 309.97 | H107: 325.57 | I107: 330.13 | J107: 333.37 | K107: 326.9 | L107: 319.1 | M107: 5.00464
A108: 99 | B108: IDBI | C108: 60.25 | D108: 60.35 | E108: 59.70 | F108: 59.15 | G108: 58.50 | H108: 60.90 | I108: 61.55 | J108: 62.10 | K108: 61 | L108: 59.8 | M108: 31.16896
A109: 100 | B109: IDFCBANK | C109: 35.5 | D109: 35.63 | E109: 35.17 | F109: 34.83 | G109: 34.37 | H109: 35.97 | I109: 36.43 | J109: 36.77 | K109: 36.1 | L109: 35.3 | M109: 52.64955
A110: 101 | B110: IDFC | C110: 38.2 | D110: 38.47 | E110: 37.83 | F110: 37.47 | G110: 36.83 | H110: 38.83 | I110: 39.47 | J110: 39.83 | K110: 39.1 | L110: 38.1 | M110: 10.33185
A111: 102 | B111: IRB | C111: 136.95 | D111: 137.73 | E111: 135.42 | F111: 133.88 | G111: 131.57 | H111: 139.27 | I111: 141.58 | J111: 143.12 | K111: 140.05 | L111: 136.2 | M111: 13.74053
A112: 103 | B112: IDEA | C112: 42.35 | D112: 42.43 | E112: 41.02 | F112: 39.68 | G112: 38.27 | H112: 43.77 | I112: 45.18 | J112: 46.52 | K112: 43.85 | L112: 41.1 | M112: 343.71275
A113: 104 | B113: IBULHSGFIN | C113: 706.6 | D113: 716.83 | E113: 689.77 | F113: 672.93 | G113: 645.87 | H113: 733.67 | I113: 760.73 | J113: 777.57 | K113: 743.9 | L113: 700 | M113: 120.46063
A114: 105 | B114: INDIANB | C114: 228.05 | D114: 229.47 | E114: 223.98 | F114: 219.92 | G114: 214.43 | H114: 233.53 | I114: 239.02 | J114: 243.08 | K114: 234.95 | L114: 225.4 | M114: 26.44085
A115: 106 | B115: INDHOTEL | C115: 134.75 | D115: 134.37 | E115: 133.33 | F115: 131.92 | G115: 130.88 | H115: 135.78 | I115: 136.82 | J115: 138.23 | K115: 135.4 | L115: 132.95 | M115: 3.73522
A116: 107 | B116: IOC | C116: 139.05 | D116: 140.65 | E116: 136.40 | F116: 133.75 | G116: 129.50 | H116: 143.30 | I116: 147.55 | J116: 150.20 | K116: 144.9 | L116: 138 | M116: 100.75993
A117: 108 | B117: IGL | C117: 266.25 | D117: 266.30 | E117: 262.20 | F117: 258.15 | G117: 254.05 | H117: 270.35 | I117: 274.45 | J117: 278.50 | K117: 270.4 | L117: 262.25 | M117: 18.09351
A118: 109 | B118: INDUSINDBK | C118: 1557.85 | D118: 1552.03 | E118: 1534.17 | F118: 1510.48 | G118: 1492.62 | H118: 1575.72 | I118: 1593.58 | J118: 1617.27 | K118: 1569.9 | L118: 1528.35 | M118: 27.18989
A119: 110 | B119: NAUKRI | C119: 1400.3 | D119: 1392.77 | E119: 1377.53 | F119: 1354.77 | G119: 1339.53 | H119: 1415.53 | I119: 1430.77 | J119: 1453.53 | K119: 1408 | L119: 1370 | M119: 0.91149
A120: 111 | B120: INFY | C120: 641.4 | D120: 645.83 | E120: 635.67 | F120: 629.93 | G120: 619.77 | H120: 651.57 | I120: 661.73 | J120: 667.47 | K120: 656 | L120: 640.1 | M120: 53.8483
A121: 112 | B121: INDIGO | C121: 1033.15 | D121: 1039.43 | E121: 1020.87 | F121: 1008.58 | G121: 990.02 | H121: 1051.72 | I121: 1070.28 | J121: 1082.57 | K121: 1058 | L121: 1027.15 | M121: 6.83279
A122: 113 | B122: IPCALAB | C122: 745.15 | D122: 750.48 | E122: 734.97 | F122: 724.78 | G122: 709.27 | H122: 760.67 | I122: 776.18 | J122: 786.37 | K122: 766 | L122: 740.3 | M122: 1.47354
A123: 114 | B123: JSWENERGY | C123: 69.6 | D123: 69.82 | E123: 68.38 | F123: 67.17 | G123: 65.73 | H123: 71.03 | I123: 72.47 | J123: 73.68 | K123: 71.25 | L123: 68.6 | M123: 5.93899
A124: 115 | B124: JSWSTEEL | C124: 328.25 | D124: 329.83 | E124: 325.42 | F124: 322.58 | G124: 318.17 | H124: 332.67 | I124: 337.08 | J124: 339.92 | K124: 334.25 | L124: 327 | M124: 39.54871
A125: 116 | B125: JINDALSTEL | C125: 171 | D125: 173.68 | E125: 167.47 | F125: 163.93 | G125: 157.72 | H125: 177.22 | I125: 183.43 | J125: 186.97 | K125: 179.9 | L125: 170.15 | M125: 93.00857
A126: 117 | B126: JUBLFOOD | C126: 1214.2 | D126: 1215.72 | E126: 1203.48 | F126: 1192.77 | G126: 1180.53 | H126: 1226.43 | I126: 1238.67 | J126: 1249.38 | K126: 1227.95 | L126: 1205 | M126: 15.60063
A127: 118 | B127: JUBILANT | C127: 728.25 | D127: 736.95 | E127: 712.35 | F127: 696.45 | G127: 671.85 | H127: 752.85 | I127: 777.45 | J127: 793.35 | K127: 761.55 | L127: 721.05 | M127: 1.47257
A128: 119 | B128: KARURVYSYA | C128: 80.25 | D128: 80.63 | E128: 79.42 | F128: 78.58 | G128: 77.37 | H128: 81.47 | I128: 82.68 | J128: 83.52 | K128: 81.85 | L128: 79.8 | M128: 4.68674
A129: 120 | B129: KOTAKBANK | C129: 1169.95 | D129: 1170.13 | E129: 1161.97 | F129: 1153.98 | G129: 1145.82 | H129: 1178.12 | I129: 1186.28 | J129: 1194.27 | K129: 1178.3 | L129: 1162.15 | M129: 18.05161
A130: 121 | B130: L&TFH | C130: 131.6 | D130: 131.93 | E130: 129.87 | F130: 128.13 | G130: 126.07 | H130: 133.67 | I130: 135.73 | J130: 137.47 | K130: 134 | L130: 130.2 | M130: 44.30735
A131: 122 | B131: LICHSGFIN | C131: 458.45 | D131: 459.08 | E131: 451.67 | F131: 444.88 | G131: 437.47 | H131: 465.87 | I131: 473.28 | J131: 480.07 | K131: 466.5 | L131: 452.3 | M131: 18.70588
A132: 123 | B132: LT | C132: 1413.1 | D132: 1414.63 | E132: 1406.17 | F132: 1399.23 | G132: 1390.77 | H132: 1421.57 | I132: 1430.03 | J132: 1436.97 | K132: 1423.1 | L132: 1407.7 | M132: 18.89461
A133: 124 | B133: LUPIN | C133: 848.6 | D133: 851.02 | E133: 840.58 | F133: 832.57 | G133: 822.13 | H133: 859.03 | I133: 869.47 | J133: 877.48 | K133: 861.45 | L133: 843 | M133: 8.75924
A134: 125 | B134: MRF | C134: 66024.45 | D134: 66022.55 | E134: 65715.10 | F134: 65405.75 | G134: 65098.30 | H134: 66331.90 | I134: 66639.35 | J134: 66948.70 | K134: 66330 | L134: 65713.2 | M134: 0.03325
A135: 126 | B135: MGL | C135: 863.45 | D135: 857.83 | E135: 848.67 | F135: 833.88 | G135: 824.72 | H135: 872.62 | I135: 881.78 | J135: 896.57 | K135: 867 | L135: 843.05 | M135: 3.43998
A136: 127 | B136: M&MFIN | C136: 426.05 | D136: 428.98 | E136: 421.07 | F136: 416.08 | G136: 408.17 | H136: 433.97 | I136: 441.88 | J136: 446.87 | K136: 436.9 | L136: 424 | M136: 8.29441
A137: 128 | B137: M&M | C137: 782.6 | D137: 782.78 | E137: 773.17 | F137: 763.73 | G137: 754.12 | H137: 792.22 | I137: 801.83 | J137: 811.27 | K137: 792.4 | L137: 773.35 | M137: 29.0288
A138: 129 | B138: MANAPPURAM | C138: 84.9 | D138: 84.95 | E138: 84.25 | F138: 83.60 | G138: 82.90 | H138: 85.60 | I138: 86.30 | J138: 86.95 | K138: 85.65 | L138: 84.3 | M138: 15.97545
A139: 130 | B139: MRPL | C139: 77 | D139: 77.83 | E139: 74.77 | F139: 72.53 | G139: 69.47 | H139: 80.07 | I139: 83.13 | J139: 85.37 | K139: 80.9 | L139: 75.6 | M139: 26.98918
A140: 131 | B140: MARICO | C140: 351.1 | D140: 351.57 | E140: 348.93 | F140: 346.77 | G140: 344.13 | H140: 353.73 | I140: 356.37 | J140: 358.53 | K140: 354.2 | L140: 349.4 | M140: 17.09189
A141: 132 | B141: MARUTI | C141: 7333.95 | D141: 7363.37 | E141: 7282.23 | F141: 7230.52 | G141: 7149.38 | H141: 7415.08 | I141: 7496.22 | J141: 7547.93 | K141: 7444.5 | L141: 7311.65 | M141: 6.37243
A142: 133 | B142: MFSL | C142: 430.45 | D142: 429.92 | E142: 422.83 | F142: 415.22 | G142: 408.13 | H142: 437.53 | I142: 444.62 | J142: 452.23 | K142: 437 | L142: 422.3 | M142: 7.92714
A143: 134 | B143: MINDTREE | C143: 836.5 | D143: 841.90 | E143: 829.60 | F143: 822.70 | G143: 810.40 | H143: 848.80 | I143: 861.10 | J143: 868.00 | K143: 854.2 | L143: 835 | M143: 10.43524
A144: 135 | B144: MOTHERSUMI | C144: 152.75 | D144: 152.58 | E144: 150.17 | F144: 147.58 | G144: 145.17 | H144: 155.17 | I144: 157.58 | J144: 160.17 | K144: 155 | L144: 150 | M144: 59.88299
A145: 136 | B145: MPHASIS | C145: 930.4 | D145: 934.77 | E145: 917.63 | F145: 904.87 | G145: 887.73 | H145: 947.53 | I145: 964.67 | J145: 977.43 | K145: 951.9 | L145: 922 | M145: 2.90281
A146: 137 | B146: MUTHOOTFIN | C146: 453.05 | D146: 456.42 | E146: 446.63 | F146: 440.22 | G146: 430.43 | H146: 462.83 | I146: 472.62 | J146: 479.03 | K146: 466.2 | L146: 450 | M146: 5.05017
A147: 138 | B147: NATCOPHARM | C147: 732.05 | D147: 736.35 | E147: 724.70 | F147: 717.35 | G147: 705.70 | H147: 743.70 | I147: 755.35 | J147: 762.70 | K147: 748 | L147: 729 | M147: 2.47216
A148: 139 | B148: NBCC | C148: 59.3 | D148: 59.47 | E148: 58.58 | F148: 57.87 | G148: 56.98 | H148: 60.18 | I148: 61.07 | J148: 61.78 | K148: 60.35 | L148: 58.75 | M148: 38.66293
A149: 140 | B149: NHPC | C149: 26 | D149: 26.08 | E149: 25.92 | F149: 25.83 | G149: 25.67 | H149: 26.17 | I149: 26.33 | J149: 26.42 | K149: 26.25 | L149: 26 | M149: 30.56614
A150: 141 | B150: NMDC | C150: 99.35 | D150: 99.77 | E150: 98.13 | F150: 96.92 | G150: 95.28 | H150: 100.98 | I150: 102.62 | J150: 103.83 | K150: 101.4 | L150: 98.55 | M150: 28.35691
A151: 142 | B151: NTPC | C151: 149.15 | D151: 150.25 | E151: 147.40 | F151: 145.65 | G151: 142.80 | H151: 152.00 | I151: 154.85 | J151: 156.60 | K151: 153.1 | L151: 148.5 | M151: 38.33428
A152: 143 | B152: NATIONALUM | C152: 66.35 | D152: 66.53 | E152: 65.02 | F152: 63.68 | G152: 62.17 | H152: 67.87 | I152: 69.38 | J152: 70.72 | K152: 68.05 | L152: 65.2 | M152: 88.9694
A153: 144 | B153: OBEROIRLTY | C153: 421.6 | D153: 421.18 | E153: 415.37 | F153: 409.13 | G153: 403.32 | H153: 427.42 | I153: 433.23 | J153: 439.47 | K153: 427 | L153: 414.95 | M153: 1.37844
A154: 145 | B154: ONGC | C154: 153.1 | D154: 153.85 | E154: 151.90 | F154: 150.70 | G154: 148.75 | H154: 155.05 | I154: 157.00 | J154: 158.20 | K154: 155.8 | L154: 152.65 | M154: 54.8047
A155: 146 | B155: OIL | C155: 202.8 | D155: 202.27 | E155: 200.03 | F155: 197.27 | G155: 195.03 | H155: 205.03 | I155: 207.27 | J155: 210.03 | K155: 204.5 | L155: 199.5 | M155: 16.47832
A156: 147 | B156: OFSS | C156: 3440.4 | D156: 3455.13 | E156: 3411.27 | F156: 3382.13 | G156: 3338.27 | H156: 3484.27 | I156: 3528.13 | J156: 3557.27 | K156: 3499 | L156: 3426 | M156: 0.51723
A157: 148 | B157: PCJEWELLER | C157: 76.9 | D157: 77.18 | E157: 75.62 | F157: 74.33 | G157: 72.77 | H157: 78.47 | I157: 80.03 | J157: 81.32 | K157: 78.75 | L157: 75.9 | M157: 182.56126
A158: 149 | B158: PIIND | C158: 838.9 | D158: 837.75 | E158: 826.50 | F158: 814.10 | G158: 802.85 | H158: 850.15 | I158: 861.40 | J158: 873.80 | K158: 849 | L158: 825.35 | M158: 0.60397
A159: 150 | B159: PNBHOUSING | C159: 992.65 | D159: 988.22 | E159: 967.48 | F159: 942.32 | G159: 921.58 | H159: 1013.38 | I159: 1034.12 | J159: 1059.28 | K159: 1008.95 | L159: 963.05 | M159: 6.03973
A160: 151 | B160: PAGEIND | C160: 27638.55 | D160: 27286.52 | E160: 26803.03 | F160: 25967.52 | G160: 25484.03 | H160: 28122.03 | I160: 28605.52 | J160: 29441.03 | K160: 27770 | L160: 26451 | M160: 0.78866
A161: 152 | B161: PETRONET | C161: 215.2 | D161: 216.17 | E161: 213.33 | F161: 211.47 | G161: 208.63 | H161: 218.03 | I161: 220.87 | J161: 222.73 | K161: 219 | L161: 214.3 | M161: 37.3059
A162: 153 | B162: PIDILITIND | C162: 1128.1 | D162: 1125.37 | E162: 1117.73 | F162: 1107.37 | G162: 1099.73 | H162: 1135.73 | I162: 1143.37 | J162: 1153.73 | K162: 1133 | L162: 1115 | M162: 4.56389
A163: 154 | B163: PEL | C163: 2286.55 | D163: 2309.27 | E163: 2244.13 | F163: 2201.72 | G163: 2136.58 | H163: 2351.68 | I163: 2416.82 | J163: 2459.23 | K163: 2374.4 | L163: 2266.85 | M163: 3.38691
A164: 155 | B164: PFC | C164: 102.7 | D164: 103.43 | E164: 100.77 | F164: 98.83 | G164: 96.17 | H164: 105.37 | I164: 108.03 | J164: 109.97 | K164: 106.1 | L164: 101.5 | M164: 119.36029
A165: 156 | B165: POWERGRID | C165: 188.4 | D165: 189.00 | E165: 186.90 | F165: 185.40 | G165: 183.30 | H165: 190.50 | I165: 192.60 | J165: 194.10 | K165: 191.1 | L165: 187.5 | M165: 15.03751
A166: 157 | B166: PRESTIGE | C166: 174 | D166: 175.63 | E166: 171.47 | F166: 168.93 | G166: 164.77 | H166: 178.17 | I166: 182.33 | J166: 184.87 | K166: 179.8 | L166: 173.1 | M166: 0.6734
A167: 158 | B167: PGHH | C167: 9483.9 | D167: 9458.67 | E167: 9427.38 | F167: 9370.87 | G167: 9339.58 | H167: 9515.18 | I167: 9546.47 | J167: 9602.98 | K167: 9489.95 | L167: 9402.15 | M167: 0.04277
A168: 159 | B168: PNB | C168: 71.3 | D168: 72.08 | E168: 69.87 | F168: 68.43 | G168: 66.22 | H168: 73.52 | I168: 75.73 | J168: 77.17 | K168: 74.3 | L168: 70.65 | M168: 227.72511
A169: 160 | B169: RBLBANK | C169: 555.95 | D169: 557.18 | E169: 550.87 | F169: 545.78 | G169: 539.47 | H169: 562.27 | I169: 568.58 | J169: 573.67 | K169: 563.5 | L169: 552.1 | M169: 10.0259
A170: 161 | B170: RAJESHEXPO | C170: 569.9 | D170: 570.43 | E170: 569.27 | F170: 568.63 | G170: 567.47 | H170: 571.07 | I170: 572.23 | J170: 572.87 | K170: 571.6 | L170: 569.8 | M170: 6.38631
A171: 162 | B171: RELCAPITAL | C171: 241.4 | D171: 242.53 | E171: 237.87 | F171: 234.33 | G171: 229.67 | H171: 246.07 | I171: 250.73 | J171: 254.27 | K171: 247.2 | L171: 239 | M171: 43.18459
A172: 163 | B172: RCOM | C172: 13.55 | D172: 13.73 | E172: 13.17 | F172: 12.78 | G172: 12.22 | H172: 14.12 | I172: 14.68 | J172: 15.07 | K172: 14.3 | L172: 13.35 | M172: 569.65684
A173: 164 | B173: RELIANCE | C173: 1137.4 | D173: 1141.10 | E173: 1126.30 | F173: 1115.20 | G173: 1100.40 | H173: 1152.20 | I173: 1167.00 | J173: 1178.10 | K173: 1155.9 | L173: 1130 | M173: 57.19901
A174: 165 | B174: RELINFRA | C174: 356.4 | D174: 355.18 | E174: 349.87 | F174: 343.33 | G174: 338.02 | H174: 361.72 | I174: 367.03 | J174: 373.57 | K174: 360.5 | L174: 348.65 | M174: 47.75179
A175: 166 | B175: RPOWER | C175: 30.5 | D175: 30.90 | E175: 29.90 | F175: 29.30 | G175: 28.30 | H175: 31.50 | I175: 32.50 | J175: 33.10 | K175: 31.9 | L175: 30.3 | M175: 77.23323
A176: 167 | B176: RECLTD | C176: 122.9 | D176: 123.67 | E176: 120.88 | F176: 118.87 | G176: 116.08 | H176: 125.68 | I176: 128.47 | J176: 130.48 | K176: 126.45 | L176: 121.65 | M176: 65.67351
A177: 168 | B177: SRF | C177: 2081.5 | D177: 2096.65 | E177: 2053.30 | F177: 2025.10 | G177: 1981.75 | H177: 2124.85 | I177: 2168.20 | J177: 2196.40 | K177: 2140 | L177: 2068.45 | M177: 6.65509
A178: 169 | B178: SHREECEM | C178: 15905.1 | D178: 15943.38 | E178: 15737.62 | F178: 15570.13 | G178: 15364.37 | H178: 16110.87 | I178: 16316.63 | J178: 16484.12 | K178: 16149.15 | L178: 15775.9 | M178: 0.13891
A179: 170 | B179: SRTRANSFIN | C179: 1192.6 | D179: 1201.37 | E179: 1173.23 | F179: 1153.87 | G179: 1125.73 | H179: 1220.73 | I179: 1248.87 | J179: 1268.23 | K179: 1229.5 | L179: 1182 | M179: 8.51877
A180: 171 | B180: SIEMENS | C180: 935.25 | D180: 935.40 | E180: 925.00 | F180: 914.75 | G180: 904.35 | H180: 945.65 | I180: 956.05 | J180: 966.30 | K180: 945.8 | L180: 925.15 | M180: 15.19385
A181: 172 | B181: SBIN | C181: 283.45 | D181: 284.83 | E181: 281.12 | F181: 278.78 | G181: 275.07 | H181: 287.17 | I181: 290.88 | J181: 293.22 | K181: 288.55 | L181: 282.5 | M181: 129.00924
A182: 173 | B182: SAIL | C182: 62.4 | D182: 62.93 | E182: 61.62 | F182: 60.83 | G182: 59.52 | H182: 63.72 | I182: 65.03 | J182: 65.82 | K182: 64.25 | L182: 62.15 | M182: 85.16248
A183: 174 | B183: SPARC | C183: 273.1 | D183: 276.37 | E183: 268.73 | F183: 264.37 | G183: 256.73 | H183: 280.73 | I183: 288.37 | J183: 292.73 | K183: 284 | L183: 272 | M183: 2.31292
A184: 175 | B184: SUNPHARMA | C184: 525.45 | D184: 526.45 | E184: 520.30 | F184: 515.15 | G184: 509.00 | H184: 531.60 | I184: 537.75 | J184: 542.90 | K184: 532.6 | L184: 521.3 | M184: 30.84743
A185: 176 | B185: SUNTV | C185: 609.05 | D185: 613.02 | E185: 602.53 | F185: 596.02 | G185: 585.53 | H185: 619.53 | I185: 630.02 | J185: 636.53 | K185: 623.5 | L185: 606.5 | M185: 15.19601
A186: 177 | B186: SUZLON | C186: 5.4 | D186: 5.42 | E186: 5.28 | F186: 5.17 | G186: 5.03 | H186: 5.53 | I186: 5.67 | J186: 5.78 | K186: 5.55 | L186: 5.3 | M186: 333.82689
A187: 178 | B187: SYNDIBANK | C187: 35.35 | D187: 35.48 | E187: 34.97 | F187: 34.58 | G187: 34.07 | H187: 35.87 | I187: 36.38 | J187: 36.77 | K187: 36 | L187: 35.1 | M187: 34.97944
A188: 179 | B188: SYNGENE | C188: 565.2 | D188: 567.20 | E188: 560.55 | F188: 555.90 | G188: 549.25 | H188: 571.85 | I188: 578.50 | J188: 583.15 | K188: 573.85 | L188: 562.55 | M188: 0.92895
A189: 180 | B189: TV18BRDCST | C189: 36.85 | D189: 37.12 | E189: 36.33 | F189: 35.82 | G189: 35.03 | H189: 37.63 | I189: 38.42 | J189: 38.93 | K189: 37.9 | L189: 36.6 | M189: 31.72342
A190: 181 | B190: TVSMOTOR | C190: 538.15 | D190: 541.42 | E190: 528.83 | F190: 519.52 | G190: 506.93 | H190: 550.73 | I190: 563.32 | J190: 572.63 | K190: 554 | L190: 532.1 | M190: 6.98154
A191: 182 | B191: TATACHEM | C191: 691.5 | D191: 695.45 | E191: 682.90 | F191: 674.30 | G191: 661.75 | H191: 704.05 | I191: 716.60 | J191: 725.20 | K191: 708 | L191: 686.85 | M191: 6.57786
A192: 183 | B192: TATACOMM | C192: 531 | D192: 533.13 | E192: 524.17 | F192: 517.33 | G192: 508.37 | H192: 539.97 | I192: 548.93 | J192: 555.77 | K192: 542.1 | L192: 526.3 | M192: 2.33847
A193: 184 | B193: TCS | C193: 1878.25 | D193: 1884.82 | E193: 1867.63 | F193: 1857.02 | G193: 1839.83 | H193: 1895.43 | I193: 1912.62 | J193: 1923.23 | K193: 1902 | L193: 1874.2 | M193: 11.90182
A194: 185 | B194: TATAGLOBAL | C194: 215.95 | D194: 218.60 | E194: 212.35 | F194: 208.75 | G194: 202.50 | H194: 222.20 | I194: 228.45 | J194: 232.05 | K194: 224.85 | L194: 215 | M194: 9.13551
A195: 186 | B195: TATAMTRDVR | C195: 99.9 | D195: 100.62 | E195: 98.63 | F195: 97.37 | G195: 95.38 | H195: 101.88 | I195: 103.87 | J195: 105.13 | K195: 102.6 | L195: 99.35 | M195: 22.06898
A196: 187 | B196: TATAMOTORS | C196: 183.75 | D196: 185.08 | E196: 181.87 | F196: 179.98 | G196: 176.77 | H196: 186.97 | I196: 190.18 | J196: 192.07 | K196: 188.3 | L196: 183.2 | M196: 131.14982
A197: 188 | B197: TATAPOWER | C197: 78.3 | D197: 77.83 | E197: 76.82 | F197: 75.33 | G197: 74.32 | H197: 79.32 | I197: 80.33 | J197: 81.82 | K197: 78.85 | L197: 76.35 | M197: 105.67258
A198: 189 | B198: TATASTEEL | C198: 563.3 | D198: 567.77 | E198: 557.53 | F198: 551.77 | G198: 541.53 | H198: 573.53 | I198: 583.77 | J198: 589.53 | K198: 578 | L198: 562 | M198: 76.36368
A199: 190 | B199: TECHM | C199: 709.7 | D199: 715.42 | E199: 698.33 | F199: 686.97 | G199: 669.88 | H199: 726.78 | I199: 743.87 | J199: 755.23 | K199: 732.5 | L199: 704.05 | M199: 26.67937
A200: 191 | B200: RAMCOCEM | C200: 627 | D200: 628.00 | E200: 621.00 | F200: 615.00 | G200: 608.00 | H200: 634.00 | I200: 641.00 | J200: 647.00 | K200: 635 | L200: 622 | M200: 2.3308
A201: 192 | B201: TITAN | C201: 915.45 | D201: 916.50 | E201: 907.80 | F201: 900.15 | G201: 891.45 | H201: 924.15 | I201: 932.85 | J201: 940.50 | K201: 925.2 | L201: 908.85 | M201: 15.40046
A202: 193 | B202: TORNTPHARM | C202: 1644.55 | D202: 1649.30 | E202: 1630.70 | F202: 1616.85 | G202: 1598.25 | H202: 1663.15 | I202: 1681.75 | J202: 1695.60 | K202: 1667.9 | L202: 1635.45 | M202: 1.35209
A203: 194 | B203: TORNTPOWER | C203: 257.55 | D203: 259.67 | E203: 254.13 | F203: 250.72 | G203: 245.18 | H203: 263.08 | I203: 268.62 | J203: 272.03 | K203: 265.2 | L203: 256.25 | M203: 11.80713
A204: 195 | B204: UPL | C204: 759.2 | D204: 759.67 | E204: 746.53 | F204: 733.87 | G204: 720.73 | H204: 772.33 | I204: 785.47 | J204: 798.13 | K204: 772.8 | L204: 747 | M204: 32.85928
A205: 196 | B205: ULTRACEMCO | C205: 3976.45 | D205: 3994.32 | E205: 3942.13 | F205: 3907.82 | G205: 3855.63 | H205: 4028.63 | I205: 4080.82 | J205: 4115.13 | K205: 4046.5 | L205: 3960 | M205: 1.83485
... 30 more rows

Sheet MidCap Intra
L5: Back To Main Page
A6: FOR INTRA DAY TRADING | K6: =Main!B10 -> 2018-11-21
A9: Sr.no | B9: Scrip | C9: CLOSE RATE | D9: Pivot Point | E9: Supports | H9: Resistances
C10: Point | E10: S1 | F10: S2 | G10: S3 | H10: R1 | I10: R2 | J10: R3 | K10: HIGH | L10: LOW | M10: Total Trade Quanity in Lakhs
A11: 1 | B11: 3MINDIA | C11: 20290.2 | D11: 20330.00 | E11: 20160.20 | F11: 20030.20 | G11: 19860.40 | H11: 20460.00 | I11: 20629.80 | J11: 20759.80 | K11: 20499.8 | L11: 20200 | M11: 0.01274
A12: 2 | B12: 8KMILES | C12: 130.8 | D12: 127.73 | E12: 124.67 | F12: 118.53 | G12: 115.47 | H12: 133.87 | I12: 136.93 | J12: 143.07 | K12: 130.8 | L12: 121.6 | M12: 8.16549
A13: 3 | B13: AARTIIND | C13: 1491.65 | D13: 1481.55 | E13: 1461.10 | F13: 1430.55 | G13: 1410.10 | H13: 1512.10 | I13: 1532.55 | J13: 1563.10 | K13: 1502 | L13: 1451 | M13: 1.19984
A14: 4 | B14: ABAN | C14: 81.45 | D14: 81.97 | E14: 80.13 | F14: 78.82 | G14: 76.98 | H14: 83.28 | I14: 85.12 | J14: 86.43 | K14: 83.8 | L14: 80.65 | M14: 5.90732
A15: 5 | B15: ABB | C15: 1342.7 | D15: 1343.20 | E15: 1336.40 | F15: 1330.10 | G15: 1323.30 | H15: 1349.50 | I15: 1356.30 | J15: 1362.60 | K15: 1350 | L15: 1336.9 | M15: 0.3758
A16: 6 | B16: ABCAPITAL | C16: 112.8 | D16: 113.62 | E16: 111.48 | F16: 110.17 | G16: 108.03 | H16: 114.93 | I16: 117.07 | J16: 118.38 | K16: 115.75 | L16: 112.3 | M16: 15.58279
A17: 7 | B17: ABFRL | C17: 187.6 | D17: 188.15 | E17: 185.70 | F17: 183.80 | G17: 181.35 | H17: 190.05 | I17: 192.50 | J17: 194.40 | K17: 190.6 | L17: 186.25 | M17: 5.51764
A18: 8 | B18: ACC | C18: 1469.95 | D18: 1478.52 | E18: 1458.73 | F18: 1447.52 | G18: 1427.73 | H18: 1489.73 | I18: 1509.52 | J18: 1520.73 | K18: 1498.3 | L18: 1467.3 | M18: 4.62997
A19: 9 | B19: ADANIPORTS | C19: 355.25 | D19: 353.27 | E19: 348.98 | F19: 342.72 | G19: 338.43 | H19: 359.53 | I19: 363.82 | J19: 370.08 | K19: 357.55 | L19: 347 | M19: 57.78336
A20: 10 | B20: ADANIPOWER | C20: 47.25 | D20: 47.67 | E20: 46.33 | F20: 45.42 | G20: 44.08 | H20: 48.58 | I20: 49.92 | J20: 50.83 | K20: 49 | L20: 46.75 | M20: 141.51952
A21: 11 | B21: ADANITRANS | C21: 237.15 | D21: 235.02 | E21: 228.13 | F21: 219.12 | G21: 212.23 | H21: 244.03 | I21: 250.92 | J21: 259.93 | K21: 241.9 | L21: 226 | M21: 11.34477
A22: 12 | B22: ADVENZYMES | C22: 183.8 | D22: 184.58 | E22: 182.22 | F22: 180.63 | G22: 178.27 | H22: 186.17 | I22: 188.53 | J22: 190.12 | K22: 186.95 | L22: 183 | M22: 0.57574
A23: 13 | B23: AEGISCHEM | C23: 225.75 | D23: 226.92 | E23: 220.83 | F23: 215.92 | G23: 209.83 | H23: 231.83 | I23: 237.92 | J23: 242.83 | K23: 233 | L23: 222 | M23: 3.68527
A24: 14 | B24: AIAENG | C24: 1641.05 | D24: 1646.45 | E24: 1619.60 | F24: 1598.15 | G24: 1571.30 | H24: 1667.90 | I24: 1694.75 | J24: 1716.20 | K24: 1673.3 | L24: 1625 | M24: 0.53178
A25: 15 | B25: AJANTPHARM | C25: 1107.95 | D25: 1118.32 | E25: 1088.63 | F25: 1069.32 | G25: 1039.63 | H25: 1137.63 | I25: 1167.32 | J25: 1186.63 | K25: 1148 | L25: 1099 | M25: 2.73737
A26: 16 | B26: AKZOINDIA | C26: 1593.05 | D26: 1589.73 | E26: 1579.47 | F26: 1565.88 | G26: 1555.62 | H26: 1603.32 | I26: 1613.58 | J26: 1627.17 | K26: 1600 | L26: 1576.15 | M26: 0.01749
A27: 17 | B27: ALBK | C27: 44.65 | D27: 43.88 | E27: 42.87 | F27: 41.08 | G27: 40.07 | H27: 45.67 | I27: 46.68 | J27: 48.47 | K27: 44.9 | L27: 42.1 | M27: 116.31687
A28: 18 | B28: ALKEM | C28: 1947.75 | D28: 1942.37 | E28: 1922.58 | F28: 1897.42 | G28: 1877.63 | H28: 1967.53 | I28: 1987.32 | J28: 2012.48 | K28: 1962.15 | L28: 1917.2 | M28: 0.09224
A29: 19 | B29: ALLCARGO | C29: 108 | D29: 107.83 | E29: 106.22 | F29: 104.43 | G29: 102.82 | H29: 109.62 | I29: 111.23 | J29: 113.02 | K29: 109.45 | L29: 106.05 | M29: 2.61938
A30: 20 | B30: AMARAJABAT | C30: 725.9 | D30: 728.18 | E30: 720.72 | F30: 715.53 | G30: 708.07 | H30: 733.37 | I30: 740.83 | J30: 746.02 | K30: 735.65 | L30: 723 | M30: 2.37231
A31: 21 | B31: AMBUJACEM | C31: 215 | D31: 216.10 | E31: 212.95 | F31: 210.90 | G31: 207.75 | H31: 218.15 | I31: 221.30 | J31: 223.35 | K31: 219.25 | L31: 214.05 | M31: 12.07441
A32: 22 | B32: ANDHRABANK | C32: 28.6 | D32: 28.67 | E32: 28.18 | F32: 27.77 | G32: 27.28 | H32: 29.08 | I32: 29.57 | J32: 29.98 | K32: 29.15 | L32: 28.25 | M32: 9.83748
A33: 23 | B33: APLAPOLLO | C33: 1290.25 | D33: 1282.08 | E33: 1267.17 | F33: 1244.08 | G33: 1229.17 | H33: 1305.17 | I33: 1320.08 | J33: 1343.17 | K33: 1297 | L33: 1259 | M33: 0.12557
A34: 24 | B34: APLLTD | C34: 565.25 | D34: 568.18 | E34: 561.37 | F34: 557.48 | G34: 550.67 | H34: 572.07 | I34: 578.88 | J34: 582.77 | K34: 575 | L34: 564.3 | M34: 0.31938
A35: 25 | B35: APOLLOHOSP | C35: 1192.8 | D35: 1207.08 | E35: 1174.27 | F35: 1155.73 | G35: 1122.92 | H35: 1225.62 | I35: 1258.43 | J35: 1276.97 | K35: 1239.9 | L35: 1188.55 | M35: 9.33231
A36: 26 | B36: APOLLOTYRE | C36: 225.3 | D36: 226.58 | E36: 223.37 | F36: 221.43 | G36: 218.22 | H36: 228.52 | I36: 231.73 | J36: 233.67 | K36: 229.8 | L36: 224.65 | M36: 28.20381
A37: 27 | B37: ARVIND | C37: 318.65 | D37: 319.00 | E37: 314.75 | F37: 310.85 | G37: 306.60 | H37: 322.90 | I37: 327.15 | J37: 331.05 | K37: 323.25 | L37: 315.1 | M37: 28.86552
A38: 28 | B38: ASAHIINDIA | C38: 265.2 | D38: 267.97 | E38: 261.23 | F38: 257.27 | G38: 250.53 | H38: 271.93 | I38: 278.67 | J38: 282.63 | K38: 274.7 | L38: 264 | M38: 0.16652
A39: 29 | B39: ASHOKA | C39: 125.1 | D39: 125.60 | E39: 124.20 | F39: 123.30 | G39: 121.90 | H39: 126.50 | I39: 127.90 | J39: 128.80 | K39: 127 | L39: 124.7 | M39: 1.35504
A40: 30 | B40: ASHOKLEY | C40: 107.65 | D40: 108.25 | E40: 106.25 | F40: 104.85 | G40: 102.85 | H40: 109.65 | I40: 111.65 | J40: 113.05 | K40: 110.25 | L40: 106.85 | M40: 309.08911
A41: 31 | B41: ASIANPAINT | C41: 1306.85 | D41: 1314.20 | E41: 1297.35 | F41: 1287.85 | G41: 1271.00 | H41: 1323.70 | I41: 1340.55 | J41: 1350.05 | K41: 1331.05 | L41: 1304.7 | M41: 8.67729
A42: 32 | B42: ASTRAL | C42: 1046.4 | D42: 1041.57 | E42: 1028.78 | F42: 1011.17 | G42: 998.38 | H42: 1059.18 | I42: 1071.97 | J42: 1089.58 | K42: 1054.35 | L42: 1023.95 | M42: 0.76742
A43: 33 | B43: ATUL | C43: 3553.05 | D43: 3556.22 | E43: 3512.43 | F43: 3471.82 | G43: 3428.03 | H43: 3596.83 | I43: 3640.62 | J43: 3681.23 | K43: 3600 | L43: 3515.6 | M43: 0.26245
A44: 34 | B44: AUBANK | C44: 588.75 | D44: 584.33 | E44: 564.77 | F44: 540.78 | G44: 521.22 | H44: 608.32 | I44: 627.88 | J44: 651.87 | K44: 603.9 | L44: 560.35 | M44: 4.07832
A45: 35 | B45: AUROPHARMA | C45: 778.9 | D45: 782.85 | E45: 773.05 | F45: 767.20 | G45: 757.40 | H45: 788.70 | I45: 798.50 | J45: 804.35 | K45: 792.65 | L45: 777 | M45: 12.13467
A46: 36 | B46: AVANTIFEED | C46: 366.95 | D46: 369.72 | E46: 362.23 | F46: 357.52 | G46: 350.03 | H46: 374.43 | I46: 381.92 | J46: 386.63 | K46: 377.2 | L46: 365 | M46: 2.85344
A47: 37 | B47: AXISBANK | C47: 612.65 | D47: 613.93 | E47: 608.27 | F47: 603.88 | G47: 598.22 | H47: 618.32 | I47: 623.98 | J47: 628.37 | K47: 619.6 | L47: 609.55 | M47: 66.58508
A48: 38 | B48: BAJAJ-AUTO | C48: 2666.5 | D48: 2667.05 | E48: 2654.45 | F48: 2642.40 | G48: 2629.80 | H48: 2679.10 | I48: 2691.70 | J48: 2703.75 | K48: 2679.65 | L48: 2655 | M48: 1.46989
A49: 39 | B49: BAJAJCORP | C49: 354.15 | D49: 354.70 | E49: 350.55 | F49: 346.95 | G49: 342.80 | H49: 358.30 | I49: 362.45 | J49: 366.05 | K49: 358.85 | L49: 351.1 | M49: 2.70409
A50: 40 | B50: BAJAJELEC | C50: 482.05 | D50: 483.78 | E50: 478.77 | F50: 475.48 | G50: 470.47 | H50: 487.07 | I50: 492.08 | J50: 495.37 | K50: 488.8 | L50: 480.5 | M50: 2.13447
A51: 41 | B51: BAJAJFINSV | C51: 5688.55 | D51: 5700.42 | E51: 5636.13 | F51: 5583.72 | G51: 5519.43 | H51: 5752.83 | I51: 5817.12 | J51: 5869.53 | K51: 5764.7 | L51: 5648 | M51: 1.22296
A52: 42 | B52: BAJAJHIND | C52: 10.5 | D52: 10.58 | E52: 10.32 | F52: 10.13 | G52: 9.87 | H52: 10.77 | I52: 11.03 | J52: 11.22 | K52: 10.85 | L52: 10.4 | M52: 29.64379
A53: 43 | B53: BAJAJHLDNG | C53: 3025.65 | D53: 3034.20 | E53: 2991.45 | F53: 2957.25 | G53: 2914.50 | H53: 3068.40 | I53: 3111.15 | J53: 3145.35 | K53: 3076.95 | L53: 3000 | M53: 0.10365
A54: 44 | B54: BAJFINANCE | C54: 2380.1 | D54: 2372.93 | E54: 2352.92 | F54: 2325.73 | G54: 2305.72 | H54: 2400.12 | I54: 2420.13 | J54: 2447.32 | K54: 2392.95 | L54: 2345.75 | M54: 12.37702
A55: 45 | B55: BALKRISIND | C55: 953.4 | D55: 958.33 | E55: 944.07 | F55: 934.73 | G55: 920.47 | H55: 967.67 | I55: 981.93 | J55: 991.27 | K55: 972.6 | L55: 949 | M55: 8.83159
A56: 46 | B56: BALLARPUR | C56: 6.55 | D56: 6.47 | E56: 6.18 | F56: 5.82 | G56: 5.53 | H56: 6.83 | I56: 7.12 | J56: 7.48 | K56: 6.75 | L56: 6.1 | M56: 60.91465
A57: 47 | B57: BALMLAWRIE | C57: 193.25 | D57: 193.23 | E57: 191.02 | F57: 188.78 | G57: 186.57 | H57: 195.47 | I57: 197.68 | J57: 199.92 | K57: 195.45 | L57: 191 | M57: 0.32574
A58: 48 | B58: BALRAMCHIN | C58: 106.25 | D58: 107.68 | E58: 104.57 | F58: 102.88 | G58: 99.77 | H58: 109.37 | I58: 112.48 | J58: 114.17 | K58: 110.8 | L58: 106 | M58: 24.75269
A59: 49 | B59: BANKBARODA | C59: 110.2 | D59: 111.68 | E59: 107.77 | F59: 105.33 | G59: 101.42 | H59: 114.12 | I59: 118.03 | J59: 120.47 | K59: 115.6 | L59: 109.25 | M59: 282.58376
A60: 50 | B60: BANKINDIA | C60: 85.85 | D60: 85.62 | E60: 83.13 | F60: 80.42 | G60: 77.93 | H60: 88.33 | I60: 90.82 | J60: 93.53 | K60: 88.1 | L60: 82.9 | M60: 138.67586
A61: 51 | B61: BASF | C61: 1562.95 | D61: 1565.33 | E61: 1545.72 | F61: 1528.48 | G61: 1508.87 | H61: 1582.57 | I61: 1602.18 | J61: 1619.42 | K61: 1584.95 | L61: 1548.1 | M61: 0.04742
A62: 52 | B62: BATAINDIA | C62: 984.85 | D62: 988.25 | E62: 976.60 | F62: 968.35 | G62: 956.70 | H62: 996.50 | I62: 1008.15 | J62: 1016.40 | K62: 999.9 | L62: 980 | M62: 3.80682
A63: 53 | B63: BBTC | C63: 1332.6 | D63: 1343.82 | E63: 1317.28 | F63: 1301.97 | G63: 1275.43 | H63: 1359.13 | I63: 1385.67 | J63: 1400.98 | K63: 1370.35 | L63: 1328.5 | M63: 0.5541
A64: 54 | B64: BEL | C64: 92.9 | D64: 93.73 | E64: 91.47 | F64: 90.03 | G64: 87.77 | H64: 95.17 | I64: 97.43 | J64: 98.87 | K64: 96 | L64: 92.3 | M64: 70.64888
A65: 55 | B65: BEML | C65: 755.95 | D65: 747.67 | E65: 727.53 | F65: 699.12 | G65: 678.98 | H65: 776.08 | I65: 796.22 | J65: 824.63 | K65: 767.8 | L65: 719.25 | M65: 41.03602
A66: 56 | B66: BERGEPAINT | C66: 312.9 | D66: 314.42 | E66: 308.63 | F66: 304.37 | G66: 298.58 | H66: 318.68 | I66: 324.47 | J66: 328.73 | K66: 320.2 | L66: 310.15 | M66: 4.99115
A67: 57 | B67: BFUTILITIE | C67: 211.2 | D67: 212.32 | E67: 207.53 | F67: 203.87 | G67: 199.08 | H67: 215.98 | I67: 220.77 | J67: 224.43 | K67: 217.1 | L67: 208.65 | M67: 1.53417
A68: 58 | B68: BGRENERGY | C68: 64.25 | D68: 65.55 | E68: 62.10 | F68: 59.95 | G68: 56.50 | H68: 67.70 | I68: 71.15 | J68: 73.30 | K68: 69 | L68: 63.4 | M68: 2.50138
A69: 59 | B69: BHARATFIN | C69: 965.2 | D69: 962.17 | E69: 948.33 | F69: 931.47 | G69: 917.63 | H69: 979.03 | I69: 992.87 | J69: 1009.73 | K69: 976 | L69: 945.3 | M69: 10.23702
A70: 60 | B70: BHARATFORG | C70: 577.1 | D70: 582.95 | E70: 565.15 | F70: 553.20 | G70: 535.40 | H70: 594.90 | I70: 612.70 | J70: 624.65 | K70: 600.75 | L70: 571 | M70: 12.16501
A71: 61 | B71: BHARTIARTL | C71: 331.95 | D71: 333.23 | E71: 327.02 | F71: 322.08 | G71: 315.87 | H71: 338.17 | I71: 344.38 | J71: 349.32 | K71: 339.45 | L71: 328.3 | M71: 107.34672
A72: 62 | B72: BHEL | C72: 67.4 | D72: 67.47 | E72: 66.88 | F72: 66.37 | G72: 65.78 | H72: 67.98 | I72: 68.57 | J72: 69.08 | K72: 68.05 | L72: 66.95 | M72: 113.70903
A73: 63 | B73: BHUSANSTL | C73: 26.7 | D73: 26.82 | E73: 26.48 | F73: 26.27 | G73: 25.93 | H73: 27.03 | I73: 27.37 | J73: 27.58 | K73: 27.15 | L73: 26.6 | M73: 3.64748
A74: 64 | B74: BIOCON | C74: 612.5 | D74: 620.20 | E74: 602.55 | F74: 592.60 | G74: 574.95 | H74: 630.15 | I74: 647.80 | J74: 657.75 | K74: 637.85 | L74: 610.25 | M74: 19.58119
A75: 65 | B75: BIRLACORPN | C75: 651.4 | D75: 654.60 | E75: 641.80 | F75: 632.20 | G75: 619.40 | H75: 664.20 | I75: 677.00 | J75: 686.60 | K75: 667.4 | L75: 645 | M75: 0.14994
A76: 66 | B76: BLISSGVS | C76: 162.25 | D76: 163.50 | E76: 160.10 | F76: 157.95 | G76: 154.55 | H76: 165.65 | I76: 169.05 | J76: 171.20 | K76: 166.9 | L76: 161.35 | M76: 1.04991
A77: 67 | B77: BLUEDART | C77: 3120.2 | D77: 3125.07 | E77: 3095.13 | F77: 3070.07 | G77: 3040.13 | H77: 3150.13 | I77: 3180.07 | J77: 3205.13 | K77: 3155 | L77: 3100 | M77: 0.01145
A78: 68 | B78: BLUESTARCO | C78: 627.35 | D78: 635.08 | E78: 617.27 | F78: 607.18 | G78: 589.37 | H78: 645.17 | I78: 662.98 | J78: 673.07 | K78: 652.9 | L78: 625 | M78: 0.37766
A79: 69 | B79: BOMDYEING | C79: 109 | D79: 110.47 | E79: 106.83 | F79: 104.67 | G79: 101.03 | H79: 112.63 | I79: 116.27 | J79: 118.43 | K79: 114.1 | L79: 108.3 | M79: 11.49304
A80: 70 | B80: BOSCHLTD | C80: 18595.3 | D80: 18683.47 | E80: 18416.93 | F80: 18238.57 | G80: 17972.03 | H80: 18861.83 | I80: 19128.37 | J80: 19306.73 | K80: 18950 | L80: 18505.1 | M80: 0.29951
A81: 71 | B81: BPCL | C81: 322.9 | D81: 324.65 | E81: 319.35 | F81: 315.80 | G81: 310.50 | H81: 328.20 | I81: 333.50 | J81: 337.05 | K81: 329.95 | L81: 321.1 | M81: 44.42573
A82: 72 | B82: BRFL | C82: 13 | D82: 13.32 | E82: 12.68 | F82: 12.37 | G82: 11.73 | H82: 13.63 | I82: 14.27 | J82: 14.58 | K82: 13.95 | L82: 13 | M82: 3.12157
A83: 73 | B83: BRIGADE | C83: 191.2 | D83: 190.75 | E83: 188.60 | F83: 186.00 | G83: 183.85 | H83: 193.35 | I83: 195.50 | J83: 198.10 | K83: 192.9 | L83: 188.15 | M83: 0.18209
A84: 74 | B84: BRITANNIA | C84: 5888.7 | D84: 5911.82 | E84: 5817.73 | F84: 5746.77 | G84: 5652.68 | H84: 5982.78 | I84: 6076.87 | J84: 6147.83 | K84: 6005.9 | L84: 5840.85 | M84: 1.08251
A85: 75 | B85: BSE | C85: 602.95 | D85: 606.38 | E85: 597.57 | F85: 592.18 | G85: 583.37 | H85: 611.77 | I85: 620.58 | J85: 625.97 | K85: 615.2 | L85: 601 | M85: 0.44823
A86: 77 | B86: CADILAHC | C86: 355 | D86: 357.03 | E86: 350.02 | F86: 345.03 | G86: 338.02 | H86: 362.02 | I86: 369.03 | J86: 374.02 | K86: 364.05 | L86: 352.05 | M86: 7.64219
A87: 78 | B87: CANBK | C87: 256.85 | D87: 258.82 | E87: 253.38 | F87: 249.92 | G87: 244.48 | H87: 262.28 | I87: 267.72 | J87: 271.18 | K87: 264.25 | L87: 255.35 | M87: 76.43669
A88: 79 | B88: CANFINHOME | C88: 257.65 | D88: 259.62 | E88: 252.43 | F88: 247.22 | G88: 240.03 | H88: 264.83 | I88: 272.02 | J88: 277.23 | K88: 266.8 | L88: 254.4 | M88: 10.32154
A89: 80 | B89: CAPF | C89: 480.3 | D89: 479.87 | E89: 470.73 | F89: 461.17 | G89: 452.03 | H89: 489.43 | I89: 498.57 | J89: 508.13 | K89: 489 | L89: 470.3 | M89: 4.3198
A90: 81 | B90: CAPLIPOINT | C90: 410.1 | D90: 413.77 | E90: 402.53 | F90: 394.97 | G90: 383.73 | H90: 421.33 | I90: 432.57 | J90: 440.13 | K90: 425 | L90: 406.2 | M90: 0.18295
A91: 82 | B91: CARBORUNIV | C91: 353.65 | D91: 352.17 | E91: 349.43 | F91: 345.22 | G91: 342.48 | H91: 356.38 | I91: 359.12 | J91: 363.33 | K91: 354.9 | L91: 347.95 | M91: 0.18856
A92: 83 | B92: CARERATING | C92: 1026.6 | D92: 1023.40 | E92: 1015.20 | F92: 1003.80 | G92: 995.60 | H92: 1034.80 | I92: 1043.00 | J92: 1054.40 | K92: 1031.6 | L92: 1012 | M92: 0.22713
A93: 84 | B93: CASTROLIND | C93: 153.2 | D93: 151.88 | E93: 149.67 | F93: 146.13 | G93: 143.92 | H93: 155.42 | I93: 157.63 | J93: 161.17 | K93: 154.1 | L93: 148.35 | M93: 12.1566
A94: 85 | B94: CCL | C94: 273.1 | D94: 272.68 | E94: 270.67 | F94: 268.23 | G94: 266.22 | H94: 275.12 | I94: 277.13 | J94: 279.57 | K94: 274.7 | L94: 270.25 | M94: 0.87715
A95: 86 | B95: CDSL | C95: 238.2 | D95: 237.53 | E95: 235.67 | F95: 233.13 | G95: 231.27 | H95: 240.07 | I95: 241.93 | J95: 244.47 | K95: 239.4 | L95: 235 | M95: 0.95985
A96: 87 | B96: CEATLTD | C96: 1244.5 | D96: 1251.75 | E96: 1230.75 | F96: 1217.00 | G96: 1196.00 | H96: 1265.50 | I96: 1286.50 | J96: 1300.25 | K96: 1272.75 | L96: 1238 | M96: 4.27195
A97: 88 | B97: CENTRALBK | C97: 30.75 | D97: 31.10 | E97: 30.20 | F97: 29.65 | G97: 28.75 | H97: 31.65 | I97: 32.55 | J97: 33.10 | K97: 32 | L97: 30.55 | M97: 3.20853
A98: 89 | B98: CENTURYPLY | C98: 163.85 | D98: 164.32 | E98: 161.68 | F98: 159.52 | G98: 156.88 | H98: 166.48 | I98: 169.12 | J98: 171.28 | K98: 166.95 | L98: 162.15 | M98: 0.96763
A99: 90 | B99: CENTURYTEX | C99: 898.5 | D99: 906.62 | E99: 886.48 | F99: 874.47 | G99: 854.33 | H99: 918.63 | I99: 938.77 | J99: 950.78 | K99: 926.75 | L99: 894.6 | M99: 6.56186
A100: 91 | B100: CERA | C100: 2406 | D100: 2416.30 | E100: 2393.05 | F100: 2380.10 | G100: 2356.85 | H100: 2429.25 | I100: 2452.50 | J100: 2465.45 | K100: 2439.55 | L100: 2403.35 | M100: 0.02033
A101: 92 | B101: CGPOWER | C101: 37.95 | D101: 38.17 | E101: 37.23 | F101: 36.52 | G101: 35.58 | H101: 38.88 | I101: 39.82 | J101: 40.53 | K101: 39.1 | L101: 37.45 | M101: 64.95181
A102: 93 | B102: CHAMBLFERT | C102: 143.4 | D102: 143.10 | E102: 140.80 | F102: 138.20 | G102: 135.90 | H102: 145.70 | I102: 148.00 | J102: 150.60 | K102: 145.4 | L102: 140.5 | M102: 1.81508
A103: 94 | B103: CHENNPETRO | C103: 262.1 | D103: 263.30 | E103: 258.80 | F103: 255.50 | G103: 251.00 | H103: 266.60 | I103: 271.10 | J103: 274.40 | K103: 267.8 | L103: 260 | M103: 5.48572
A104: 95 | B104: CHOLAFIN | C104: 1260.2 | D104: 1262.10 | E104: 1216.10 | F104: 1172.00 | G104: 1126.00 | H104: 1306.20 | I104: 1352.20 | J104: 1396.30 | K104: 1308.1 | L104: 1218 | M104: 4.18865
A105: 96 | B105: CIPLA | C105: 520.7 | D105: 523.07 | E105: 516.28 | F105: 511.87 | G105: 505.08 | H105: 527.48 | I105: 534.27 | J105: 538.68 | K105: 529.85 | L105: 518.65 | M105: 17.07971
A106: 97 | B106: COALINDIA | C106: 261.45 | D106: 262.68 | E106: 259.77 | F106: 258.08 | G106: 255.17 | H106: 264.37 | I106: 267.28 | J106: 268.97 | K106: 265.6 | L106: 261 | M106: 42.53683
A107: 98 | B107: COCHINSHIP | C107: 380.1 | D107: 381.68 | E107: 376.42 | F107: 372.73 | G107: 367.47 | H107: 385.37 | I107: 390.63 | J107: 394.32 | K107: 386.95 | L107: 378 | M107: 0.88804
A108: 99 | B108: COFFEEDAY | C108: 262.35 | D108: 265.97 | E108: 257.88 | F108: 253.42 | G108: 245.33 | H108: 270.43 | I108: 278.52 | J108: 282.98 | K108: 274.05 | L108: 261.5 | M108: 0.94321
A109: 100 | B109: COLPAL | C109: 1157.95 | D109: 1159.47 | E109: 1148.33 | F109: 1138.72 | G109: 1127.58 | H109: 1169.08 | I109: 1180.22 | J109: 1189.83 | K109: 1170.6 | L109: 1149.85 | M109: 5.97121
A110: 101 | B110: CONCOR | C110: 676.4 | D110: 676.43 | E110: 666.97 | F110: 657.53 | G110: 648.07 | H110: 685.87 | I110: 695.33 | J110: 704.77 | K110: 685.9 | L110: 667 | M110: 5.20569
A111: 102 | B111: COROMANDEL | C111: 400.65 | D111: 403.20 | E111: 395.50 | F111: 390.35 | G111: 382.65 | H111: 408.35 | I111: 416.05 | J111: 421.20 | K111: 410.9 | L111: 398.05 | M111: 1.00401
A112: 103 | B112: COX&KINGS | C112: 185.6 | D112: 186.32 | E112: 184.38 | F112: 183.17 | G112: 181.23 | H112: 187.53 | I112: 189.47 | J112: 190.68 | K112: 188.25 | L112: 185.1 | M112: 0.09898
A113: 104 | B113: CRISIL | C113: 1496.5 | D113: 1498.12 | E113: 1488.48 | F113: 1480.47 | G113: 1470.83 | H113: 1506.13 | I113: 1515.77 | J113: 1523.78 | K113: 1507.75 | L113: 1490.1 | M113: 0.07766
A114: 105 | B114: CROMPTON | C114: 204 | D114: 204.02 | E114: 202.03 | F114: 200.07 | G114: 198.08 | H114: 205.98 | I114: 207.97 | J114: 209.93 | K114: 206 | L114: 202.05 | M114: 5.98727
A115: 106 | B115: CUB | C115: 167.7 | D115: 167.22 | E115: 165.48 | F115: 163.27 | G115: 161.53 | H115: 169.43 | I115: 171.17 | J115: 173.38 | K115: 168.95 | L115: 165 | M115: 4.36181
A116: 107 | B116: CUMMINSIND | C116: 785.25 | D116: 788.52 | E116: 772.23 | F116: 759.22 | G116: 742.93 | H116: 801.53 | I116: 817.82 | J116: 830.83 | K116: 804.8 | L116: 775.5 | M116: 11.58802
A117: 108 | B117: CYIENT | C117: 640.6 | D117: 640.48 | E117: 628.97 | F117: 617.33 | G117: 605.82 | H117: 652.12 | I117: 663.63 | J117: 675.27 | K117: 652 | L117: 628.85 | M117: 3.19917
A118: 109 | B118: DABUR | C118: 394.1 | D118: 397.88 | E118: 389.32 | F118: 384.53 | G118: 375.97 | H118: 402.67 | I118: 411.23 | J118: 416.02 | K118: 406.45 | L118: 393.1 | M118: 17.34543
A119: 110 | B119: DBCORP | C119: 180.7 | D119: 180.90 | E119: 177.80 | F119: 174.90 | G119: 171.80 | H119: 183.80 | I119: 186.90 | J119: 189.80 | K119: 184 | L119: 178 | M119: 0.52654
A120: 111 | B120: DBL | C120: 480.25 | D120: 482.57 | E120: 472.73 | F120: 465.22 | G120: 455.38 | H120: 490.08 | I120: 499.92 | J120: 507.43 | K120: 492.4 | L120: 475.05 | M120: 3.12205
A121: 112 | B121: DBREALTY | C121: 20.25 | D121: 20.25 | E121: 20.00 | F121: 19.75 | G121: 19.50 | H121: 20.50 | I121: 20.75 | J121: 21.00 | K121: 20.5 | L121: 20 | M121: 2.38899
A122: 113 | B122: DCAL | C122: 240.05 | D122: 240.87 | E122: 236.83 | F122: 233.62 | G122: 229.58 | H122: 244.08 | I122: 248.12 | J122: 251.33 | K122: 244.9 | L122: 237.65 | M122: 2.82611
A123: 114 | B123: DCBBANK | C123: 156.6 | D123: 157.20 | E123: 154.95 | F123: 153.30 | G123: 151.05 | H123: 158.85 | I123: 161.10 | J123: 162.75 | K123: 159.45 | L123: 155.55 | M123: 9.83543
A124: 115 | B124: DCMSHRIRAM | C124: 386.15 | D124: 390.10 | E124: 378.25 | F124: 370.35 | G124: 358.50 | H124: 398.00 | I124: 409.85 | J124: 417.75 | K124: 401.95 | L124: 382.2 | M124: 1.0341
A125: 116 | B125: DEEPAKFERT | C125: 166.4 | D125: 169.12 | E125: 162.53 | F125: 158.67 | G125: 152.08 | H125: 172.98 | I125: 179.57 | J125: 183.43 | K125: 175.7 | L125: 165.25 | M125: 4.13373
A126: 117 | B126: DELTACORP | C126: 241.05 | D126: 240.15 | E126: 237.40 | F126: 233.75 | G126: 231.00 | H126: 243.80 | I126: 246.55 | J126: 250.20 | K126: 242.9 | L126: 236.5 | M126: 7.78697
A127: 118 | B127: DEN | C127: 69.7 | D127: 70.23 | E127: 68.47 | F127: 67.23 | G127: 65.47 | H127: 71.47 | I127: 73.23 | J127: 74.47 | K127: 72 | L127: 69 | M127: 4.41146
A128: 119 | B128: DENABANK | C128: 16.55 | D128: 16.53 | E128: 16.17 | F128: 15.78 | G128: 15.42 | H128: 16.92 | I128: 17.28 | J128: 17.67 | K128: 16.9 | L128: 16.15 | M128: 12.80809
A129: 120 | B129: DHFL | C129: 225.3 | D129: 228.92 | E129: 216.38 | F129: 207.47 | G129: 194.93 | H129: 237.83 | I129: 250.37 | J129: 259.28 | K129: 241.45 | L129: 220 | M129: 221.2057
A130: 121 | B130: DISHTV | C130: 37.8 | D130: 38.02 | E130: 37.03 | F130: 36.27 | G130: 35.28 | H130: 38.78 | I130: 39.77 | J130: 40.53 | K130: 39 | L130: 37.25 | M130: 48.47608
A131: 122 | B131: DIVISLAB | C131: 1534.3 | D131: 1544.47 | E131: 1519.93 | F131: 1505.57 | G131: 1481.03 | H131: 1558.83 | I131: 1583.37 | J131: 1597.73 | K131: 1569 | L131: 1530.1 | M131: 5.0827
A132: 123 | B132: DIXON | C132: 2033.5 | D132: 2029.83 | E132: 2004.67 | F132: 1975.83 | G132: 1950.67 | H132: 2058.67 | I132: 2083.83 | J132: 2112.67 | K132: 2055 | L132: 2001 | M132: 0.08641
A133: 124 | B133: DLF | C133: 174.9 | D133: 173.48 | E133: 171.32 | F133: 167.73 | G133: 165.57 | H133: 177.07 | I133: 179.23 | J133: 182.82 | K133: 175.65 | L133: 169.9 | M133: 69.84983
A134: 125 | B134: DMART | C134: 1412.5 | D134: 1415.85 | E134: 1394.30 | F134: 1376.10 | G134: 1354.55 | H134: 1434.05 | I134: 1455.60 | J134: 1473.80 | K134: 1437.4 | L134: 1397.65 | M134: 5.77012
A135: 126 | B135: DREDGECORP | C135: 376.8 | D135: 369.23 | E135: 353.87 | F135: 330.93 | G135: 315.57 | H135: 392.17 | I135: 407.53 | J135: 430.47 | K135: 384.6 | L135: 346.3 | M135: 10.20916
A136: 127 | B136: DRREDDY | C136: 2443.15 | D136: 2466.93 | E136: 2413.77 | F136: 2384.38 | G136: 2331.22 | H136: 2496.32 | I136: 2549.48 | J136: 2578.87 | K136: 2520.1 | L136: 2437.55 | M136: 5.41117
A137: 128 | B137: ECLERX | C137: 1103.65 | D137: 1106.35 | E137: 1094.30 | F137: 1084.95 | G137: 1072.90 | H137: 1115.70 | I137: 1127.75 | J137: 1137.10 | K137: 1118.4 | L137: 1097 | M137: 0.06169
A138: 129 | B138: EDELWEISS | C138: 171.2 | D138: 172.77 | E138: 168.58 | F138: 165.97 | G138: 161.78 | H138: 175.38 | I138: 179.57 | J138: 182.18 | K138: 176.95 | L138: 170.15 | M138: 24.69637
A139: 130 | B139: EICHERMOT | C139: 24595.8 | D139: 24798.78 | E139: 24247.57 | F139: 23899.33 | G139: 23348.12 | H139: 25147.02 | I139: 25698.23 | J139: 26046.47 | K139: 25350 | L139: 24450.55 | M139: 1.03074
A140: 131 | B140: EIDPARRY | C140: 228.4 | D140: 229.87 | E140: 223.88 | F140: 219.37 | G140: 213.38 | H140: 234.38 | I140: 240.37 | J140: 244.88 | K140: 235.85 | L140: 225.35 | M140: 0.73826
A141: 132 | B141: EIHOTEL | C141: 168.25 | D141: 167.27 | E141: 165.03 | F141: 161.82 | G141: 159.58 | H141: 170.48 | I141: 172.72 | J141: 175.93 | K141: 169.5 | L141: 164.05 | M141: 1.07376
A142: 133 | B142: EMAMILTD | C142: 444.7 | D142: 446.88 | E142: 435.87 | F142: 427.03 | G142: 416.02 | H142: 455.72 | I142: 466.73 | J142: 475.57 | K142: 457.9 | L142: 438.05 | M142: 1.19029
A143: 134 | B143: ENDURANCE | C143: 1102.9 | D143: 1106.57 | E143: 1094.33 | F143: 1085.77 | G143: 1073.53 | H143: 1115.13 | I143: 1127.37 | J143: 1135.93 | K143: 1118.8 | L143: 1098 | M143: 0.32051
A144: 135 | B144: ENGINERSIN | C144: 116.75 | D144: 116.80 | E144: 115.20 | F144: 113.65 | G144: 112.05 | H144: 118.35 | I144: 119.95 | J144: 121.50 | K144: 118.4 | L144: 115.25 | M144: 12.72939
A145: 136 | B145: EQUITAS | C145: 108.4 | D145: 109.88 | E145: 105.92 | F145: 103.43 | G145: 99.47 | H145: 112.37 | I145: 116.33 | J145: 118.82 | K145: 113.85 | L145: 107.4 | M145: 17.78166
A146: 137 | B146: ERIS | C146: 615.15 | D146: 613.43 | E146: 608.97 | F146: 602.78 | G146: 598.32 | H146: 619.62 | I146: 624.08 | J146: 630.27 | K146: 617.9 | L146: 607.25 | M146: 0.16706
A147: 138 | B147: EROSMEDIA | C147: 97.8 | D147: 98.15 | E147: 96.35 | F147: 94.90 | G147: 93.10 | H147: 99.60 | I147: 101.40 | J147: 102.85 | K147: 99.95 | L147: 96.7 | M147: 2.89279
A148: 139 | B148: ESCORTS | C148: 659.65 | D148: 665.20 | E148: 651.45 | F148: 643.25 | G148: 629.50 | H148: 673.40 | I148: 687.15 | J148: 695.35 | K148: 678.95 | L148: 657 | M148: 12.11705
A149: 140 | B149: EVEREADY | C149: 207.95 | D149: 208.23 | E149: 204.97 | F149: 201.98 | G149: 198.72 | H149: 211.22 | I149: 214.48 | J149: 217.47 | K149: 211.5 | L149: 205.25 | M149: 5.0349
A150: 141 | B150: EXIDEIND | C150: 238.9 | D150: 239.57 | E150: 236.38 | F150: 233.87 | G150: 230.68 | H150: 242.08 | I150: 245.27 | J150: 247.78 | K150: 242.75 | L150: 237.05 | M150: 42.34658
A151: 142 | B151: FCONSUMER | C151: 49.7 | D151: 50.17 | E151: 48.93 | F151: 48.17 | G151: 46.93 | H151: 50.93 | I151: 52.17 | J151: 52.93 | K151: 51.4 | L151: 49.4 | M151: 18.65524
A152: 143 | B152: FEDERALBNK | C152: 80 | D152: 80.27 | E152: 78.63 | F152: 77.27 | G152: 75.63 | H152: 81.63 | I152: 83.27 | J152: 84.63 | K152: 81.9 | L152: 78.9 | M152: 99.27482
A153: 144 | B153: FINCABLES | C153: 471.6 | D153: 478.45 | E153: 463.45 | F153: 455.30 | G153: 440.30 | H153: 486.60 | I153: 501.60 | J153: 509.75 | K153: 493.45 | L153: 470.3 | M153: 0.2341
A154: 145 | B154: FINPIPE | C154: 520.05 | D154: 519.62 | E154: 516.93 | F154: 513.82 | G154: 511.13 | H154: 522.73 | I154: 525.42 | J154: 528.53 | K154: 522.3 | L154: 516.5 | M154: 0.08569
A155: 146 | B155: FLFL | C155: 385 | D155: 384.00 | E155: 381.20 | F155: 377.40 | G155: 374.60 | H155: 387.80 | I155: 390.60 | J155: 394.40 | K155: 386.8 | L155: 380.2 | M155: 0.53294
A156: 147 | B156: FSL | C156: 52.95 | D156: 53.52 | E156: 52.13 | F156: 51.32 | G156: 49.93 | H156: 54.33 | I156: 55.72 | J156: 56.53 | K156: 54.9 | L156: 52.7 | M156: 18.07081
A157: 148 | B157: GAIL | C157: 344.05 | D157: 342.58 | E157: 339.17 | F157: 334.28 | G157: 330.87 | H157: 347.47 | I157: 350.88 | J157: 355.77 | K157: 346 | L157: 337.7 | M157: 62.11451
A158: 149 | B158: GATI | C158: 81.75 | D158: 81.77 | E158: 80.33 | F158: 78.92 | G158: 77.48 | H158: 83.18 | I158: 84.62 | J158: 86.03 | K158: 83.2 | L158: 80.35 | M158: 2.71849
A159: 150 | B159: GDL | C159: 156.4 | D159: 157.95 | E159: 153.95 | F159: 151.50 | G159: 147.50 | H159: 160.40 | I159: 164.40 | J159: 166.85 | K159: 161.95 | L159: 155.5 | M159: 2.43973
A160: 151 | B160: GEPIL | C160: 844.75 | D160: 847.92 | E160: 834.83 | F160: 824.92 | G160: 811.83 | H160: 857.83 | I160: 870.92 | J160: 880.83 | K160: 861 | L160: 838 | M160: 0.05463
A161: 152 | B161: GESHIP | C161: 286.45 | D161: 287.17 | E161: 281.33 | F161: 276.22 | G161: 270.38 | H161: 292.28 | I161: 298.12 | J161: 303.23 | K161: 293 | L161: 282.05 | M161: 0.1886
A162: 153 | B162: GET&D | C162: 222.7 | D162: 225.03 | E162: 218.67 | F162: 214.63 | G162: 208.27 | H162: 229.07 | I162: 235.43 | J162: 239.47 | K162: 231.4 | L162: 221 | M162: 0.38054
A163: 154 | B163: GHCL | C163: 214.45 | D163: 215.15 | E163: 212.30 | F163: 210.15 | G163: 207.30 | H163: 217.30 | I163: 220.15 | J163: 222.30 | K163: 218 | L163: 213 | M163: 0.2265
A164: 155 | B164: GICRE | C164: 306.75 | D164: 307.20 | E164: 305.20 | F164: 303.65 | G164: 301.65 | H164: 308.75 | I164: 310.75 | J164: 312.30 | K164: 309.2 | L164: 305.65 | M164: 1.8503
A165: 156 | B165: GILLETTE | C165: 6531.9 | D165: 6521.00 | E165: 6467.00 | F165: 6402.10 | G165: 6348.10 | H165: 6585.90 | I165: 6639.90 | J165: 6704.80 | K165: 6575 | L165: 6456.1 | M165: 0.0106
A166: 157 | B166: GLAXO | C166: 1355.5 | D166: 1351.87 | E166: 1338.73 | F166: 1321.97 | G166: 1308.83 | H166: 1368.63 | I166: 1381.77 | J166: 1398.53 | K166: 1365 | L166: 1335.1 | M166: 0.07217
A167: 158 | B167: GLENMARK | C167: 635.4 | D167: 637.37 | E167: 625.28 | F167: 615.17 | G167: 603.08 | H167: 647.48 | I167: 659.57 | J167: 669.68 | K167: 649.45 | L167: 627.25 | M167: 10.53489
A168: 159 | B168: GMDCLTD | C168: 86.75 | D168: 86.62 | E168: 86.23 | F168: 85.72 | G168: 85.33 | H168: 87.13 | I168: 87.52 | J168: 88.03 | K168: 87 | L168: 86.1 | M168: 1.03302
A169: 160 | B169: GMRINFRA | C169: 16.25 | D169: 16.50 | E169: 15.90 | F169: 15.55 | G169: 14.95 | H169: 16.85 | I169: 17.45 | J169: 17.80 | K169: 17.1 | L169: 16.15 | M169: 247.09162
A170: 161 | B170: GNFC | C170: 343.1 | D170: 346.42 | E170: 337.88 | F170: 332.67 | G170: 324.13 | H170: 351.63 | I170: 360.17 | J170: 365.38 | K170: 354.95 | L170: 341.2 | M170: 3.28884
A171: 162 | B171: GODFRYPHLP | C171: 852.95 | D171: 860.13 | E171: 839.32 | F171: 825.68 | G171: 804.87 | H171: 873.77 | I171: 894.58 | J171: 908.22 | K171: 880.95 | L171: 846.5 | M171: 2.68913
A172: 163 | B172: GODREJAGRO | C172: 510.15 | D172: 511.68 | E172: 507.52 | F172: 504.88 | G172: 500.72 | H172: 514.32 | I172: 518.48 | J172: 521.12 | K172: 515.85 | L172: 509.05 | M172: 0.39252
A173: 164 | B173: GODREJCP | C173: 708.2 | D173: 713.88 | E173: 699.42 | F173: 690.63 | G173: 676.17 | H173: 722.67 | I173: 737.13 | J173: 745.92 | K173: 728.35 | L173: 705.1 | M173: 4.78063
A174: 165 | B174: GODREJIND | C174: 524.4 | D174: 524.50 | E174: 515.35 | F174: 506.30 | G174: 497.15 | H174: 533.55 | I174: 542.70 | J174: 551.75 | K174: 533.65 | L174: 515.45 | M174: 10.29639
A175: 166 | B175: GODREJPROP | C175: 640.15 | D175: 635.03 | E175: 625.12 | F175: 610.08 | G175: 600.17 | H175: 650.07 | I175: 659.98 | J175: 675.02 | K175: 644.95 | L175: 620 | M175: 1.9336
A176: 167 | B176: GPPL | C176: 95.95 | D176: 96.55 | E176: 94.60 | F176: 93.25 | G176: 91.30 | H176: 97.90 | I176: 99.85 | J176: 101.20 | K176: 98.5 | L176: 95.2 | M176: 0.63831
A177: 168 | B177: GRANULES | C177: 98.15 | D177: 99.37 | E177: 95.83 | F177: 93.52 | G177: 89.98 | H177: 101.68 | I177: 105.22 | J177: 107.53 | K177: 102.9 | L177: 97.05 | M177: 20.23055
A178: 169 | B178: GRAPHITE | C178: 980.65 | D178: 982.02 | E178: 973.63 | F178: 966.62 | G178: 958.23 | H178: 989.03 | I178: 997.42 | J178: 1004.43 | K178: 990.4 | L178: 975 | M178: 4.56296
A179: 170 | B179: GRASIM | C179: 837.95 | D179: 844.42 | E179: 825.83 | F179: 813.72 | G179: 795.13 | H179: 856.53 | I179: 875.12 | J179: 887.23 | K179: 863 | L179: 832.3 | M179: 16.45503
A180: 171 | B180: GREAVESCOT | C180: 127.6 | D180: 128.02 | E180: 126.18 | F180: 124.77 | G180: 122.93 | H180: 129.43 | I180: 131.27 | J180: 132.68 | K180: 129.85 | L180: 126.6 | M180: 2.851
A181: 172 | B181: GREENPLY | C181: 131.8 | D181: 132.30 | E181: 129.70 | F181: 127.60 | G181: 125.00 | H181: 134.40 | I181: 137.00 | J181: 139.10 | K181: 134.9 | L181: 130.2 | M181: 1.18678
A182: 173 | B182: GRUH | C182: 294.15 | D182: 294.12 | E182: 290.53 | F182: 286.92 | G182: 283.33 | H182: 297.73 | I182: 301.32 | J182: 304.93 | K182: 297.7 | L182: 290.5 | M182: 1.713
A183: 174 | B183: GSFC | C183: 104.25 | D183: 105.38 | E183: 102.27 | F183: 100.28 | G183: 97.17 | H183: 107.37 | I183: 110.48 | J183: 112.47 | K183: 108.5 | L183: 103.4 | M183: 21.92909
A184: 175 | B184: GSKCONS | C184: 7147.35 | D184: 7169.62 | E184: 7100.23 | F184: 7053.12 | G184: 6983.73 | H184: 7216.73 | I184: 7286.12 | J184: 7333.23 | K184: 7239 | L184: 7122.5 | M184: 0.2411
A185: 176 | B185: GSPL | C185: 182.05 | D185: 181.98 | E185: 179.97 | F185: 177.88 | G185: 175.87 | H185: 184.07 | I185: 186.08 | J185: 188.17 | K185: 184 | L185: 179.9 | M185: 1.48048
A186: 177 | B186: GUJALKALI | C186: 555.3 | D186: 559.38 | E186: 548.82 | F186: 542.33 | G186: 531.77 | H186: 565.87 | I186: 576.43 | J186: 582.92 | K186: 569.95 | L186: 552.9 | M186: 0.27705
A187: 178 | B187: GUJFLUORO | C187: 884 | D187: 886.17 | E187: 876.33 | F187: 868.67 | G187: 858.83 | H187: 893.83 | I187: 903.67 | J187: 911.33 | K187: 896 | L187: 878.5 | M187: 0.38979
A188: 179 | B188: GUJGASLTD | C188: 618.75 | D188: 619.93 | E188: 615.07 | F188: 611.38 | G188: 606.52 | H188: 623.62 | I188: 628.48 | J188: 632.17 | K188: 624.8 | L188: 616.25 | M188: 0.18381
A189: 180 | B189: GULFOILLUB | C189: 760 | D189: 757.05 | E189: 747.95 | F189: 735.90 | G189: 726.80 | H189: 769.10 | I189: 778.20 | J189: 790.25 | K189: 766.15 | L189: 745 | M189: 0.06752
A190: 181 | B190: GVKPIL | C190: 7.65 | D190: 7.70 | E190: 7.55 | F190: 7.45 | G190: 7.30 | H190: 7.80 | I190: 7.95 | J190: 8.05 | K190: 7.85 | L190: 7.6 | M190: 9.69601
A191: 182 | B191: HATHWAY | C191: 30.7 | D191: 30.87 | E191: 30.43 | F191: 30.17 | G191: 29.73 | H191: 31.13 | I191: 31.57 | J191: 31.83 | K191: 31.3 | L191: 30.6 | M191: 5.16695
A192: 183 | B192: HATSUN | C192: 620.35 | D192: 619.45 | E192: 613.90 | F192: 607.45 | G192: 601.90 | H192: 625.90 | I192: 631.45 | J192: 637.90 | K192: 625 | L192: 613 | M192: 0.03793
A193: 184 | B193: HAVELLS | C193: 677.7 | D193: 679.42 | E193: 673.33 | F193: 668.97 | G193: 662.88 | H193: 683.78 | I193: 689.87 | J193: 694.23 | K193: 685.5 | L193: 675.05 | M193: 7.09538
A194: 185 | B194: HCC | C194: 12.5 | D194: 12.72 | E194: 12.08 | F194: 11.67 | G194: 11.03 | H194: 13.13 | I194: 13.77 | J194: 14.18 | K194: 13.35 | L194: 12.3 | M194: 189.95519
A195: 186 | B195: HCL-INSYS | C195: 26.3 | D195: 26.35 | E195: 25.55 | F195: 24.80 | G195: 24.00 | H195: 27.10 | I195: 27.90 | J195: 28.65 | K195: 27.15 | L195: 25.6 | M195: 18.5786
A196: 187 | B196: HCLTECH | C196: 1008.95 | D196: 1015.75 | E196: 996.50 | F196: 984.05 | G196: 964.80 | H196: 1028.20 | I196: 1047.45 | J196: 1059.90 | K196: 1035 | L196: 1003.3 | M196: 13.14282
A197: 188 | B197: HDFC | C197: 1876.8 | D197: 1884.28 | E197: 1864.57 | F197: 1852.33 | G197: 1832.62 | H197: 1896.52 | I197: 1916.23 | J197: 1928.47 | K197: 1904 | L197: 1872.05 | M197: 21.23458
A198: 189 | B198: HDFCBANK | C198: 2012.45 | D198: 2010.37 | E198: 2001.13 | F198: 1989.82 | G198: 1980.58 | H198: 2021.68 | I198: 2030.92 | J198: 2042.23 | K198: 2019.6 | L198: 1999.05 | M198: 14.26292
A199: 190 | B199: HDIL | C199: 21.65 | D199: 21.75 | E199: 21.30 | F199: 20.95 | G199: 20.50 | H199: 22.10 | I199: 22.55 | J199: 22.90 | K199: 22.2 | L199: 21.4 | M199: 16.98127
A200: 191 | B200: HEG | C200: 4349.5 | D200: 4378.17 | E200: 4281.33 | F200: 4213.17 | G200: 4116.33 | H200: 4446.33 | I200: 4543.17 | J200: 4611.33 | K200: 4475 | L200: 4310 | M200: 3.06357
A201: 192 | B201: HEIDELBERG | C201: 143.6 | D201: 144.60 | E201: 142.00 | F201: 140.40 | G201: 137.80 | H201: 146.20 | I201: 148.80 | J201: 150.40 | K201: 147.2 | L201: 143 | M201: 1.13847
A202: 193 | B202: HERITGFOOD | C202: 523.15 | D202: 520.02 | E202: 511.13 | F202: 499.12 | G202: 490.23 | H202: 532.03 | I202: 540.92 | J202: 552.93 | K202: 528.9 | L202: 508 | M202: 0.25889
A203: 194 | B203: HEROMOTOCO | C203: 2960.1 | D203: 2965.35 | E203: 2935.75 | F203: 2911.40 | G203: 2881.80 | H203: 2989.70 | I203: 3019.30 | J203: 3043.65 | K203: 2994.95 | L203: 2941 | M203: 1.61818
A204: 195 | B204: HEXAWARE | C204: 308.75 | D204: 310.30 | E204: 305.60 | F204: 302.45 | G204: 297.75 | H204: 313.45 | I204: 318.15 | J204: 321.30 | K204: 315 | L204: 307.15 | M204: 14.51455
A205: 196 | B205: HFCL | C205: 19.2 | D205: 19.38 | E205: 18.92 | F205: 18.63 | G205: 18.17 | H205: 19.67 | I205: 20.13 | J205: 20.42 | K205: 19.85 | L205: 19.1 | M205: 25.72643
A206: 197 | B206: HIMATSEIDE | C206: 234.8 | D206: 234.93 | E206: 230.87 | F206: 226.93 | G206: 222.87 | H206: 238.87 | I206: 242.93 | J206: 246.87 | K206: 239 | L206: 231 | M206: 0.28516
... 304 more rows

Sheet Bulk Deals
E6: Back To Main Page
A7: Subject : | B7: BULK DEAL | D7: =Main!B10 -> 2018-11-21
A9: Date | B9: Scrip code | C9: Scrip Name | D9: Client Name | E9: Buy / Sell | F9: Quantity Traded | G9: Trade Price / Wt.Avg.trade price | H9: Exchange
A10: 2018-11-20 | B10: 532172 | C10: ADROITINFO | D10: PARO SECURITIES P LTD | E10: BUY | F10: 102,647 | G10: 18.55 | H10: BSE
A11: 2018-11-20 | B11: 532172 | C11: ADROITINFO | D11: PARO SECURITIES P LTD | E11: SELL | F11: 11 | G11: 18.68 | H11: BSE
A12: 2018-11-20 | B12: 532172 | C12: ADROITINFO | D12: AMBE SECURITIES PRIVATE LIMITED | E12: SELL | F12: 104,400 | G12: 18.55 | H12: BSE
A13: 2018-11-20 | B13: 500102 | C13: BALLARPUR | D13: FINQUEST FINANCIAL SOLUTIONS PVT. LTD. | E13: SELL | F13: 40,150,000 | G13: 6.51 | H13: BSE
A14: 2018-11-20 | B14: 500102 | C14: BALLARPUR | D14: HYPNOS FUND LIMITED | E14: BUY | F14: 40,000,000 | G14: 6.51 | H14: BSE
A15: 2018-11-20 | B15: 538521 | C15: CROWNTOURS | D15: JAY BHAVSAR | E15: BUY | F15: 26,768 | G15: 21.69 | H15: BSE
A16: 2018-11-20 | B16: 532332 | C16: CURATECH | D16: PRAVEEN GUPTA & SONS HUF | E16: BUY | F16: 54,001 | G16: 3.91 | H16: BSE
A17: 2018-11-20 | B17: 532332 | C17: CURATECH | D17: SATISH KUMAR | E17: BUY | F17: 50,000 | G17: 3.9 | H17: BSE
A18: 2018-11-20 | B18: 532332 | C18: CURATECH | D18: KADAYAM RAMNATHAN BHARAT | E18: SELL | F18: 104,001 | G18: 3.9 | H18: BSE
A19: 2018-11-20 | B19: 533137 | C19: DEN | D19: SHAILENDER NATH SHARMA | E19: SELL | F19: 1,000,000 | G19: 68 | H19: BSE
A20: 2018-11-20 | B20: 531502 | C20: ESARIND | D20: CRB TRUSTEE LIMITED | E20: SELL | F20: 170,924 | G20: 0.64 | H20: BSE
A21: 2018-11-20 | B21: 531502 | C21: ESARIND | D21: SONU ARGAL | E21: SELL | F21: 148,140 | G21: 0.64 | H21: BSE
A22: 2018-11-20 | B22: 531502 | C22: ESARIND | D22: RUPAL BHAVIN SHAH | E22: BUY | F22: 350,000 | G22: 0.64 | H22: BSE
A23: 2018-11-20 | B23: 531502 | C23: ESARIND | D23: BHARATI ARVIND SHAH | E23: BUY | F23: 400,000 | G23: 0.64 | H23: BSE
A24: 2018-11-20 | B24: 531502 | C24: ESARIND | D24: RAMU JOMDAR JSONEYA | E24: SELL | F24: 437,288 | G24: 0.64 | H24: BSE
A25: 2018-11-20 | B25: 526717 | C25: GOPALA | D25: TEJ JITENDRABHAI SHAH | E25: BUY | F25: 75,000 | G25: 78.58 | H25: BSE
A26: 2018-11-20 | B26: 526717 | C26: GOPALA | D26: DIPESH SITARAM GORULE | E26: SELL | F26: 89,715 | G26: 78.71 | H26: BSE
A27: 2018-11-20 | B27: 526717 | C27: GOPALA | D27: DIPESH SITARAM GORULE | E27: BUY | F27: 56,701 | G27: 76.51 | H27: BSE
A28: 2018-11-20 | B28: 539224 | C28: HCKKVENTURE | D28: HARISH VEERAPPA KANCHAN | E28: BUY | F28: 48,900 | G28: 43 | H28: BSE
A29: 2018-11-20 | B29: 539224 | C29: HCKKVENTURE | D29: DHANANJAY P PATHAK | E29: SELL | F29: 48,900 | G29: 43 | H29: BSE
A30: 2018-11-20 | B30: 536709 | C30: INDRENEW | D30: VARSHA JITENDRA VAKHARIA | E30: SELL | F30: 39,393 | G30: 16.95 | H30: BSE
A31: 2018-11-20 | B31: 536709 | C31: INDRENEW | D31: EVERLON SOLAR ENERGY PVT.LTD | E31: SELL | F31: 80,606 | G31: 16.95 | H31: BSE
A32: 2018-11-20 | B32: 536709 | C32: INDRENEW | D32: HARSHADA MANOHAR BAING | E32: BUY | F32: 85,450 | G32: 16.94 | H32: BSE
A33: 2018-11-20 | B33: 536709 | C33: INDRENEW | D33: GANGARAM GOVIND WAINGANKAR | E33: SELL | F33: 17,983 | G33: 16.91 | H33: BSE
A34: 2018-11-20 | B34: 531512 | C34: ORIENTTR | D34: DAVINDER SINGH PAL BEDI | E34: BUY | F34: 70,000 | G34: 10.39 | H34: BSE
A35: 2018-11-20 | B35: 540125 | C35: RADHIKAJWE | D35: COMPETENT TEXTILES PVT LTD | E35: BUY | F35: 156,800 | G35: 20.3 | H35: BSE
A36: 2018-11-20 | B36: 534734 | C36: RMCHEM | D36: RAM ALLOY CASTINGS PRIVATE LIMITED | E36: SELL | F36: 4,988,000 | G36: 1.46 | H36: BSE
A37: 2018-11-20 | B37: 534734 | C37: RMCHEM | D37: TARLE NILESH RAJARAM | E37: BUY | F37: 1,600,000 | G37: 1.46 | H37: BSE
A38: 2018-11-20 | B38: 539520 | C38: SHAILJA | D38: SWAMINATHAN KRISHNAN | E38: SELL | F38: 49,500 | G38: 13.05 | H38: BSE
A39: 2018-11-20 | B39: 539520 | C39: SHAILJA | D39: SWAMINATHAN KRISHNAN | E39: BUY | F39: 38,477 | G39: 13.06 | H39: BSE
A40: 2018-11-20 | B40: 539520 | C40: SHAILJA | D40: ARVIND SHANTILAL SHAH | E40: BUY | F40: 38,000 | G40: 13.05 | H40: BSE
A41: 2018-11-20 | B41: 539520 | C41: SHAILJA | D41: SANJIV KUMAR MISHRA | E41: SELL | F41: 30,000 | G41: 13.06 | H41: BSE
A42: 2018-11-20 | B42: 534733 | C42: SUPREMEX | D42: VIPUL JAYANTILAL MODI | E42: SELL | F42: 4,311,539 | G42: 10.45 | H42: BSE
A43: 2018-11-20 | B43: 534733 | C43: SUPREMEX | D43: N K WEALTH SOLUTIONS LLP | E43: BUY | F43: 4,418,209 | G43: 10.45 | H43: BSE
A44: 2018-11-20 | B44: 539798 | C44: UMIYA | D44: HARSHADBHAI KHENGARBHAI PARMAR | E44: BUY | F44: 78,686 | G44: 23.06 | H44: BSE
A45: 2018-11-20 | B45: 531518 | C45: VIKASPROP | D45: EKTA MITTAL | E45: SELL | F45: 2,000,000 | G45: 2.29 | H45: BSE
A46: 2018-11-20 | B46: AGROPHOS | C46: Agro Phos India Limited | D46: BAKSHU TRADING PRIVATE LIMITED | E46: BUY | F46: 384,000 | G46: 36.05 | H46: NSE
A47: 2018-11-20 | B47: AGROPHOS | C47: Agro Phos India Limited | D47: MANSUKH SECURITIES & FINANCE LIMITED | E47: BUY | F47: 102,000 | G47: 37.03 | H47: NSE
A48: 2018-11-20 | B48: BEML | C48: BEML Limited | D48: ALPHAGREP SECURITIES PRIVATE LIMITED | E48: BUY | F48: 218,523 | G48: 756.2 | H48: NSE
A49: 2018-11-20 | B49: BEML | C49: BEML Limited | D49: GRAVITON RESEARCH CAPITAL LLP | E49: BUY | F49: 216,119 | G49: 755.25 | H49: NSE
A50: 2018-11-20 | B50: BEML | C50: BEML Limited | D50: SHAASTRA SECURITIES TRADING PRIVATE LIMITED | E50: BUY | F50: 394,355 | G50: 754.16 | H50: NSE
A51: 2018-11-20 | B51: FORTIS | C51: Fortis Healthcare Limited | D51: UBS PRINCIPAL CAPITAL ASIA LIMITED | E51: BUY | F51: 10,001,281 | G51: 147.05 | H51: NSE
A52: 2018-11-20 | B52: GRETEX | C52: Gretex Industries Ltd. | D52: SHYAMAL SARDAR | E52: BUY | F52: 48,000 | G52: 14.8 | H52: NSE
A53: 2018-11-20 | B53: INNOVATIVE | C53: Innovative Tyres & Tubes | D53: ARDENT VENTURES LLP | E53: BUY | F53: 93,000 | G53: 27.5 | H53: NSE
A54: 2018-11-20 | B54: JAKHARIA | C54: JAKHARIA FABRIC LIMITED | D54: JHAVERI TRADING AND INVESTMENT PVT LTD | E54: BUY | F54: 24,000 | G54: 214.13 | H54: NSE
A55: 2018-11-20 | B55: JETAIRWAYS | C55: Jet Airways (India) Ltd. | D55: ALPHAGREP SECURITIES PRIVATE LIMITED | E55: BUY | F55: 1,016,564 | G55: 312.72 | H55: NSE
A56: 2018-11-20 | B56: JETAIRWAYS | C56: Jet Airways (India) Ltd. | D56: ARORA AGRO TRADERS | E56: BUY | F56: 772,021 | G56: 314.54 | H56: NSE
A57: 2018-11-20 | B57: JETAIRWAYS | C57: Jet Airways (India) Ltd. | D57: CENTILLION RESEARCH INDIA LLP | E57: BUY | F57: 610,401 | G57: 312.54 | H57: NSE
A58: 2018-11-20 | B58: JETAIRWAYS | C58: Jet Airways (India) Ltd. | D58: GRAVITON RESEARCH CAPITAL LLP | E58: BUY | F58: 958,067 | G58: 313.43 | H58: NSE
A59: 2018-11-20 | B59: JETAIRWAYS | C59: Jet Airways (India) Ltd. | D59: SHAASTRA SECURITIES TRADING PRIVATE LIMITED | E59: BUY | F59: 1,418,776 | G59: 313.53 | H59: NSE
A60: 2018-11-20 | B60: JUSTDIAL | C60: Justdial Ltd. | D60: SHAASTRA SECURITIES TRADING PRIVATE LIMITED | E60: BUY | F60: 349,977 | G60: 508.36 | H60: NSE
A61: 2018-11-20 | B61: KARDA | C61: Karda Constructions Ltd | D61: PATEL MANAV NARESHBHAI | E61: BUY | F61: 13,827 | G61: 198.01 | H61: NSE
A62: 2018-11-20 | B62: PCJEWELLER | C62: PC Jeweller Ltd | D62: ARORA AGRO TRADERS | E62: BUY | F62: 2,477,762 | G62: 77.11 | H62: NSE
A63: 2018-11-20 | B63: SILGO | C63: Silgo Retail Limited | D63: OVERSKUD MULTI ASSET MANAGEMENT PRIVATE LIMITED | E63: BUY | F63: 48,000 | G63: 36.48 | H63: NSE
A64: 2018-11-20 | B64: AGROPHOS | C64: Agro Phos India Limited | D64: ABHAY NARAIN GUPTA | E64: SELL | F64: 120,000 | G64: 36.05 | H64: NSE
A65: 2018-11-20 | B65: AGROPHOS | C65: Agro Phos India Limited | D65: PRO FIN CAPITAL SERVICES LTD | E65: SELL | F65: 102,000 | G65: 36.85 | H65: NSE
A66: 2018-11-20 | B66: BEML | C66: BEML Limited | D66: ALPHAGREP SECURITIES PRIVATE LIMITED | E66: SELL | F66: 218,523 | G66: 756.66 | H66: NSE
A67: 2018-11-20 | B67: BEML | C67: BEML Limited | D67: GRAVITON RESEARCH CAPITAL LLP | E67: SELL | F67: 216,119 | G67: 755.84 | H67: NSE
A68: 2018-11-20 | B68: BEML | C68: BEML Limited | D68: SHAASTRA SECURITIES TRADING PRIVATE LIMITED | E68: SELL | F68: 394,355 | G68: 754.76 | H68: NSE
A69: 2018-11-20 | B69: FORTIS | C69: Fortis Healthcare Limited | D69: YORK ASIAN OPPORTUNITIES INVESTMENTS MASTER FUND LP | E69: SELL | F69: 10,000,000 | G69: 147.05 | H69: NSE
A70: 2018-11-20 | B70: GRETEX | C70: Gretex Industries Ltd. | D70: AYUSHMAN COMMOTRADE PRIVATE LIMITED | E70: SELL | F70: 30000 | G70: 14.8 | H70: NSE
A71: 2018-11-20 | B71: INNOVATIVE | C71: Innovative Tyres & Tubes | D71: RACHIT NITIN MANKAD | E71: SELL | F71: 93000 | G71: 27.5 | H71: NSE
A72: 2018-11-20 | B72: JAKHARIA | C72: JAKHARIA FABRIC LIMITED | D72: JHAVERI TRADING AND INVESTMENT PVT LTD | E72: SELL | F72: 800 | G72: 189 | H72: NSE
A73: 2018-11-20 | B73: JETAIRWAYS | C73: Jet Airways (India) Ltd. | D73: ALPHAGREP SECURITIES PRIVATE LIMITED | E73: SELL | F73: 1016564 | G73: 312.72 | H73: NSE
A74: 2018-11-20 | B74: JETAIRWAYS | C74: Jet Airways (India) Ltd. | D74: ARORA AGRO TRADERS | E74: SELL | F74: 772021 | G74: 314.86 | H74: NSE
A75: 2018-11-20 | B75: JETAIRWAYS | C75: Jet Airways (India) Ltd. | D75: CENTILLION RESEARCH INDIA LLP | E75: SELL | F75: 610401 | G75: 312.66 | H75: NSE
A76: 2018-11-20 | B76: JETAIRWAYS | C76: Jet Airways (India) Ltd. | D76: GRAVITON RESEARCH CAPITAL LLP | E76: SELL | F76: 958067 | G76: 313.17 | H76: NSE
A77: 2018-11-20 | B77: JETAIRWAYS | C77: Jet Airways (India) Ltd. | D77: SHAASTRA SECURITIES TRADING PRIVATE LIMITED | E77: SELL | F77: 1418776 | G77: 313.6 | H77: NSE
A78: 2018-11-20 | B78: JUSTDIAL | C78: Justdial Ltd. | D78: SHAASTRA SECURITIES TRADING PRIVATE LIMITED | E78: SELL | F78: 349977 | G78: 508.92 | H78: NSE
A79: 2018-11-20 | B79: KARDA | C79: Karda Constructions Ltd | D79: PATEL MANAV NARESHBHAI | E79: SELL | F79: 62569 | G79: 196.49 | H79: NSE
A80: 2018-11-20 | B80: PCJEWELLER | C80: PC Jeweller Ltd | D80: ARORA AGRO TRADERS | E80: SELL | F80: 2477762 | G80: 77.37 | H80: NSE
A81: 2018-11-20 | B81: SILGO | C81: Silgo Retail Limited | D81: AMRUTLAL GORDHANDAS THOBHANI | E81: SELL | F81: 45000 | G81: 36.48 | H81: NSE
A82: 2018-11-20 | B82: SILGO | C82: Silgo Retail Limited | D82: OVERSKUD MULTI ASSET MANAGEMENT PRIVATE LIMITED | E82: SELL | F82: 54000 | G82: 36.25 | H82: NSE

Sheet Call Tracker (Equity & F&O)
M5: Back To Main Page
A6: Retail Research Technical Calls & Fundamental Performance Report for the month of November -2018
M7: =Main!B10 -> 2018-11-21
B8: Positional Call
A9: Sr.no | B9: Date | D9: Company | E9: Rec | F9: Rec Price | G9: Stop Loss*** | H9: Call Closed At | I9: Target | J9: Remark | K9: Profit / Loss per Share | L9: Gain / Loss % | M9: Status | N9: Closed Date | O9: NSE Closed Price
A10: 1 | B10: 2018-10-25 | D10: SUNPHARMA | E10: Buy{} | F10: 569 | G10: 528 | H10: 587.5 | I10: 620-630 | J10: Profit of Rs.18.5/- | K10: =H10-F10 -> 18.5 | L10: =K10/F10 -> 3.25% | M10: Successful | N10: 2018-11-09 | R10: H
A11: 2 | B11: 2018-11-02 | D11: MARUTI | E11: Buy{} | F11: 6860 | G11: 6580 | H11: 7140 | I11: 7300-7500 | J11: Profit of Rs.280/- | K11: =H11-F11 -> 280 | L11: =K11/F11 -> 4.08% | M11: Successful | N11: 2018-11-05 | R11: H
A12: 3 | B12: 2018-11-09 | D12: RECLTD | E12: Buy | F12: 122.5 | G12: 116.3 | H12: 127 | I12: 133-137 | J12: Part profit of Rs.4.5/- | K12: =H12-F12 -> 4.5 | L12: =K12/F12 -> 3.67% | M12: Successful | N12: 2018-11-12 | R12: R
A13: 4 | B13: 2018-11-12 | D13: SRF | E13: Buy | F13: 2040 | G13: 1940 | H13: 2105 | I13: 2200-2250 | J13: Part profit of Rs.65/- | K13: =H13-F13 -> 65 | L13: =K13/F13 -> 3.19% | M13: Successful | N13: 2018-11-19 | R13: H
A14: 5 | B14: 2018-11-12 | D14: GAIL | E14: Buy | F14: 363.5 | G14: 348 | H14: 346 | I14: 385-395 | J14: Loss of Rs.17.50/- | K14: =H14-F14 -> -17.5 | L14: =K14/F14 -> -4.81% | M14: Unuccessful | N14: 2018-11-16 | R14: H
A15: 6 | B15: 2018-11-13 | D15: IOC | E15: Buy | F15: 137.5 | G15: 134 | H15: 142.25 | I15: 146-150 | J15: Profit of Rs.4.75/- | K15: =H15-F15 -> 4.75 | L15: =K15/F15 -> 3.45% | M15: Successful | N15: 2018-11-13 | R15: H
A16: 7 | B16: 2018-11-13 | D16: NIITTECH | E16: Buy | F16: 1195 | G16: 1144.4 | H16: 1144.4 | I16: 1300-1310 | J16: Loss of Rs.50.6/- | K16: =H16-F16 -> -50.6 | L16: =K16/F16 -> -4.23% | M16: Unuccessful | N16: 2018-11-14 | R16: R
A17: 8 | B17: 2018-11-14 | D17: ASHOKLEY | E17: Buy | F17: 107.5-108.5 | G17: 100.7 | I17: 122-125 | J17: Open | O17: =VLOOKUP(D17,Sheet2!A6:M1642,6,0) -> 107.65 | R17: R
A18: 9 | B18: 2018-11-16 | D18: JSWSTEEL | E18: Buy | F18: 337-339 | G18: 324 | I18: 365-375 | J18: Open | O18: =VLOOKUP(D18,Sheet2!A7:M1643,6,0) -> 328.25 | R18: H
A19: 10 | B19: 2018-11-20 | D19: GLENMARK | E19: Buy | F19: 625-630 | G19: 598.7 | I19: 700-710 | J19: Open | O19: =VLOOKUP(D19,Sheet2!A8:M1644,6,0) -> 635.4 | R19: R
A20: 11 | B20: 2018-11-20 | D20: NIITTECH | E20: Buy | F20: 1120-1127 | G20: 1078 | I20: 1180-1200 | J20: Open | O20: =VLOOKUP(D20,Sheet2!A9:M1645,6,0) -> 1108.65 | R20: H
A21: 12 | B21: 2018-11-20 | D21: FEDERALBNK | E21: Sell | F21: 80-80.50 | G21: 85.2 | I21: 68-70 | J21: Open | O21: =VLOOKUP(D21,Sheet2!A10:M1646,6,0) -> 80 | R21: R
A24: CLBS = Closing Basis *** | F24: Reinitiated $
A25: Dividend adjusted <> | F25: Revised stoploss #
A26: Part book {}
A27: Master Trade High Risk
A28: Sr.no | B28: Date | D28: Company | E28: Rec | F28: Rec Price | G28: Stop Loss | H28: Call Closed At | I28: Target | J28: Remark | K28: Profit / Loss per share | L28: Gain / Loss per Lot | M28: Lot | N28: Status | O28: Closed Date
A29: 1 | B29: 2018-11-01 | D29: NIFTY NOV FUT | E29: Sell | F29: 10435 | G29: 10620 | H29: 10355 | I29: 10250 | J29: Profit of Rs 53/- | K29: =F29-H29 -> 80 | L29: =M29*53 -> 3975 | M29: 75 | N29: Successful | O29: 2018-11-01 | R29: H
D30: NIFTY NOV 10300 PE | E30: Sell | F30: 165 | H30: 192 | K30: -27
A31: 2 | B31: 2018-11-01 | D31: WIPRO NOV FUT | E31: Sell | F31: 330 | G31: 338 | H31: 324.75 | I31: 315 | J31: Profit of Rs 4.25/- | K31: 5.25 | L31: =M31*4.25 -> 10200 | M31: 2400 | N31: Successful | O31: 2018-11-02 | R31: H
D32: WIPRO Nov 320 PE | E32: Sell | F32: 6.25 | H32: 7.25 | K32: -1
A33: 3 | B33: 2018-11-01 | D33: NIFTY NOV FUT | E33: Sell | F33: 10445 | G33: 10620 | H33: 10575 | I33: 10250 | J33: Loss of Rs.67.5/- | K33: -130 | L33: =-M33*67.5 -> -5062.5 | M33: 75 | N33: Unsuccessful | O33: 2018-11-02 | R33: H
D34: NIFTY NOV 10300 PE | E34: Sell | F34: 155 | H34: 92.5 | K34: 62.5
A35: 4 | B35: 2018-11-05 | D35: WIPRO NOV FUT | E35: Sell | F35: 321.5 | G35: 331 | H35: 319.5 | I35: 305 | J35: Profit of Rs 4/- | K35: =F35-H35 -> 2 | L35: 9600 | M35: 2400 | N35: Successful | O35: 2018-11-14 | R35: H
D36: WIPRO Nov 320 PE | E36: Sell | F36: 6.5 | H36: 4.5 | K36: 2 | R36: H
A37: 5 | B37: 2018-11-14 | D37: RELIANCE NOV FUT | E37: Sell | F37: 1105 | G37: 1126 | H37: 1089 | I37: 1070-1060 | J37: Profit of Rs.16/- | K37: =F37-H37 -> 16 | L37: =M37*K37 -> 8000 | M37: 500 | N37: Successful | O37: 2018-11-14 | R37: H
A38: 6 | B38: 2018-11-14 | D38: JSWSTEEL NOV FUT | E38: Buy | F38: 346.5 | G38: 338.5 | H38: 340 | I38: 362 | J38: Loss of Rs.6.5/- | K38: =H38-F38 -> -6.50 | L38: =M38*K38 -> -9750 | M38: 1500 | N38: Unsuccessful | O38: 2018-11-14 | R38: H
A39: 7 | B39: 2018-11-16 | D39: NIFTY NOV FUT | E39: Sell | F39: 10700-10710 | G39: 10875 | I39: 10450 | J39: Open | R39: H
A42: Master Trade Medium Risk
A43: Sr.no | B43: Date | D43: Company | E43: Rec | F43: Rec Price | G43: Stop Loss | H43: Call Closed At | I43: Target | J43: Remark | K43: Profit/ Loss per lot | L43: Gain / Loss per Lot | M43: Lot | N43: Status | O43: Closed Date
A44: 1 | B44: 2018-11-05 | D44: HDFCBANK NOV 2000 CE | E44: Buy | F44: 22 | G44: 8 | H44: 26.5 | I44: 45 | J44: Profit of Rs.4.50/- | K44: 4.5 | L44: =M44*K44 -> 1125 | M44: 250 | N44: Successful | O44: 2018-11-06 | R44: H
A45: 2 | B45: 2018-11-07 | D45: NIFTY NOV 10300 PE | E45: Buy | F45: 64 | G45: 17 | H45: 74 | I45: 120-130 | J45: Profit of Rs.10/- | K45: =H45-F45 -> 10 | L45: =M45*K45 -> 750 | M45: 75 | N45: Successful | O45: 2018-11-12 | R45: H
A46: 3 | B46: 2018-11-12 | D46: HDFCBANK NOV 1960 CE | E46: Buy | F46: 20.5 | G46: 8 | H46: 25.5 | I46: 45 | J46: Profit of Rs.5/- | K46: 5 | L46: =M46*K46 -> 1250 | M46: 250 | N46: Successful | O46: 2018-11-14 | R46: H
A47: 4 | B47: 2018-11-14 | D47: Nifty NOV 10600 PE | E47: Buy | F47: 130-132 | J47: Open | R47: H
D48: Nifty NOV 10450 PE | E48: Sell | F48: 80-82
A49: 5 | B49: 2018-11-16 | D49: HINDPETRO NOV 250 PE | E49: Buy | F49: 8.5 | H49: 13.5 | J49: Profit of Rs 2.75/- | K49: =H49-F49 -> 5 | L49: =1575*2.75 -> 4331.25 | M49: 1575 | N49: Successful | O49: 2018-11-16 | R49: H
D50: HINDPETRO NOV 240 PE | E50: Sell | F50: 5.25 | H50: 7.5 | K50: =F50-H50 -> -2.25
A51: 6 | B51: 2018-11-19 | D51: RELIANCE NOV 1100 PE | E51: Buy | F51: 8.0-9.0 | G51: 1.9 | I51: 18-20 | J51: Open | R51: H
A52: 7 | B52: 2018-11-20 | D52: MARUTI NOV 7200 PE | E52: Buy | F52: 58-62 | I52: 130 | J52: Open | R52: N
B54: Smart Delivery Trade
A55: Sr.no | B55: Date | D55: Company | E55: Rec | F55: Rec Price | G55: Stop Loss*** | H55: Call Closed At | I55: Target | J55: Remark | K55: Profit / Loss per Share | L55: Gain / Loss % | M55: Status | N55: Closed Date | O55: NSE Closed Price
A56: 1 | B56: 2018-11-02 | D56: JSWSTEEL | E56: Buy | F56: 346 | G56: 331 | H56: 354 | I56: 375 | J56: Profit of Rs.8/- | K56: =H56-F56 -> 8 | L56: =K56/F56 -> 2.31% | M56: Successful | N56: 2018-11-02 | R56: H
A57: 2 | B57: 2018-11-02 | D57: DABUR | E57: Buy<> | F57: 371.25 | G57: 358 | H57: 382.5 | I57: 390-400 | J57: Profit of Rs.11.25/- | K57: 11.25 | L57: 3.03% | M57: Successful | N57: 2018-11-12 | R57: H
A58: 3 | B58: 2018-11-02 | D58: BHARATFORG | E58: Buy | F58: 610 | G58: 589 | H58: 587.5 | I58: 640-650 | J58: Loss of Rs.22.5/- | K58: =H58-F58 -> -22.5 | L58: =K58/F58 -> -3.69% | M58: Unsuccessful | N58: 2018-11-09 | R58: H
A59: 4 | B59: 2018-11-09 | D59: SUVEN | E59: Buy | F59: 255 | G59: 247 | H59: 247 | I59: 270-275 | J59: Loss of Rs.8/- | K59: =H59-F59 -> -8 | L59: =K59/F59 -> -3.14% | M59: Unsuccessful | N59: 2018-11-14 | R59: R
A60: 5 | B60: 2018-11-09 | D60: JUBLFOOD | E60: Buy | F60: 1075 | G60: 1037 | H60: 1108.5 | I60: 1120-1140 | J60: Profit of Rs.33.5/- | K60: =H60-F60 -> 33.5 | L60: =K60/F60 -> 3.12% | M60: Successful | N60: 2018-11-12 | R60: H
A61: 6 | B61: 2018-11-12 | D61: HEROMOTOCO | E61: Buy | F61: 2910-2930 | G61: 2790 | I61: 3100-3200 | J61: Open | O61: =VLOOKUP(D61,Sheet2!A43:M1679,6,0) -> 2960.1 | R61: H
A62: 7 | B62: 2018-11-12 | D62: HINDALCO | E62: Buy | F62: 234.5 | G62: 227 | H62: 224 | I62: 247-250 | J62: Loss of Rs.10.5/- | K62: =H62-F62 -> -10.5 | L62: =K62/F62 -> -4.48% | M62: Unsuccessful | N62: 2018-11-22 | R62: R
A63: 8 | B63: 2018-11-13 | D63: DRREDDY | E63: Buy | F63: 2445 | G63: 2366.6 | H63: 2520 | I63: 2580-2600 | J63: Profit of Rs.75/- | K63: =H63-F63 -> 75 | L63: =K63/F63 -> 3.07% | M63: Successful | N63: 2018-11-19 | R63: R
A64: 9 | B64: 2018-11-14 | D64: ICICIBANK | E64: Sell | F64: 369 | G64: 381 | H64: 357.5 | I64: 340-345 | J64: Profit of Rs.11.5/- | K64: =F64-H64 -> 11.5 | L64: =K64/F64 -> 3.12% | M64: Successful | N64: 2018-11-20 | R64: R
A65: 10 | B65: 2018-11-15 | D65: CYIENT | E65: Buy | F65: 662 | G65: 638.7 | H65: 632.5 | I65: 710-720 | J65: Loss of Rs.29.5/- | K65: =H65-F65 -> -29.5 | L65: =K65/F65 -> -4.46% | M65: Unsuccessful | N65: 2018-11-14 | R65: R
A66: 11 | B66: 2018-11-15 | D66: DMART | E66: Buy | F66: 1390 | G66: 1348 | H66: 1435 | I66: 1470-1490 | J66: Profit of Rs.45/- | K66: 45 | L66: 3.24% | M66: Successful | N66: 2018-11-20 | R66: R
A67: 12 | B67: 2018-11-19 | D67: APOLLOHOSP | E67: Buy | F67: 1213-1223 | G67: 1170 | I67: 1260-1280 | J67: Open | O67: =VLOOKUP(D67,Sheet2!A49:M1685,6,0) -> 1192.8 | R67: H
A71: CLBS = Closing Basis *** | F71: Reinitiated $
A72: Dividend adjusted <> | F72: Revised stoploss #
B75: Momentum Call
A76: Sr.no | B76: Date | D76: Company | E76: Rec | F76: Rec Price | G76: Stop Loss | H76: Call Closed At | I76: Target | J76: Remark | K76: Profit / Loss per Share/Lot | L76: Gain / Loss % | M76: Gain / Loss per Lot | N76: Lot | O76: Status | P76: Closed Date
A77: 1 | B77: 2018-10-30 | D77: AMBUJACEM | E77: Buy | F77: 194.5 | G77: 189.5 | H77: 199.5 | I77: 202-205 | J77: Profit of Rs.5/- | K77: =H77-F77 -> 5 | L77: =K77/F77 -> 2.57% | O77: Successful | P77: 2018-11-01 | R77: H
A78: 2 | B78: 2018-10-31 | D78: EXIDEIND NOV FUT | E78: Sell | F78: 261.5 | G78: 266.6 | H78: 258.25 | I78: 250-247 | J78: Profit of Rs.3.25/- | K78: =F78-H78 -> 3.25 | M78: =N78*K78 -> 6500 | N78: 2000 | O78: Successful | P78: 2018-11-01 | R78: R
A79: 3 | B79: 2018-10-31 | D79: BAJFINANCE NOV FUT | E79: Sell | F79: 2365 | G79: 2411 | H79: 2411 | I79: 2250-2200 | J79: Loss of Rs.46/- | K79: =F79-H79 -> -46 | M79: =N79*K79 -> -11500 | N79: 250 | O79: Unsuccessful | P79: 2018-11-01 | R79: R
A80: 4 | B80: 2018-11-01 | D80: EXIDEIND NOV FUT | E80: Buy | F80: 255.5 | G80: 249.8 | H80: 259.5 | I80: 262-264 | J80: Profit of Rs.4/- | K80: =H80-F80 -> 4 | M80: 8000 | N80: 2000 | O80: Successful | P80: 2018-11-02 | R80: N
A81: 5 | B81: 2018-11-02 | D81: HDFCBANK | E81: Buy | F81: 1925 | G81: 1890 | H81: 1956.5 | I81: 1980-2000 | J81: Profit of Rs.31.5/- | K81: 31.5 | L81: =K81/F81 -> 1.64% | O81: Successful | P81: 2018-11-02 | R81: H
A82: 6 | B82: 2018-11-02 | D82: ICICIBANK NOV FUT | E82: Sell | F82: 356 | G82: 361.8 | H82: 350 | I82: 345 | J82: Profit of Rs.6/- | K82: =F82-H82 -> 6 | M82: =N82*K82 -> 16500 | N82: 2750 | O82: Successful | P82: 2018-11-05 | R82: R
A83: 7 | B83: 2018-11-05 | D83: CONCOR | E83: Buy | F83: 652.5 | G83: 634 | H83: 678 | I83: 680-690 | J83: Profit of Rs.25.50/- | K83: =H83-F83 -> 25.5 | L83: =K83/F83 -> 3.91% | O83: Successful | P83: 2018-11-06 | R83: H
A84: 8 | B84: 2018-11-05 | D84: AMARAJABAT NOV FUT | E84: Buy | F84: 781.5 | G84: 765 | H84: 769 | I84: 800-810 | J84: Loss of Rs.12.50/- | K84: =H84-F84 -> -12.5 | M84: =N84*K84 -> -8750 | N84: 700 | O84: Unsuccessful | P84: 2018-11-06 | R84: N
A85: 9 | B85: 2018-11-06 | D85: HDFC NOV FUT | E85: Buy | F85: 1807.5 | G85: 1785 | H85: 1817.5 | I85: 1840 | J85: Profit of Rs.10/- | K85: =H85-F85 -> 10 | M85: 5000 | N85: 500 | O85: Successful | P85: 2018-11-07 | R85: H
A86: 10 | B86: 2018-11-06 | D86: HINDUNILVR NOV FUT | E86: Buy | F86: 1627.5 | G86: 1608 | H86: 1640 | I86: 1670 | J86: Profit of Rs.12.5/- | K86: =H86-F86 -> 12.5 | M86: =N86*K86 -> 7500 | N86: 600 | O86: Successful | P86: 2018-11-07 | R86: N
A87: 11 | B87: 2018-11-09 | D87: LT NOV FUT | E87: Sell | F87: 1375.5 | G87: 1405 | H87: 1405 | I87: 1320 | J87: Loss of Rs.29.5/- | K87: =F87-H87 -> -29.5 | M87: -11062.5 | N87: 375 | O87: Unsuccessful | P87: 2018-11-15 | R87: H
A88: 12 | B88: 2018-11-09 | D88: ASHOKLEY NOV FUT | E88: Buy | F88: 121.25 | G88: 118.25 | H88: 118.25 | I88: 127 | J88: Loss of Rs.3/- | K88: =H88-F88 -> -3 | M88: =N88*K88 -> -12000 | N88: 4000 | O88: Unsuccessful | P88: 2018-11-12 | R88: N
A89: 13 | B89: 2018-11-12 | D89: JUBLFOOD NOV FUT | E89: Buy | F89: 1086.5 | G89: 1064 | H89: 1102 | I89: 1140 | J89: Profit of Rs.15.5/- | K89: =H89-F89 -> 15.5 | M89: 7750 | N89: 500 | O89: Successful | P89: 2018-11-12 | R89: N
A90: 14 | B90: 2018-11-12 | D90: CUMMINSIND NOV FUT | E90: Sell | F90: 806 | G90: 821.3 | H90: 794.5 | I90: 780 | J90: Profit of Rs.11.5/- | K90: =F90-H90 -> 11.5 | M90: 8050 | N90: 700 | O90: Successful | P90: 2018-11-12 | R90: R
A91: 15 | B91: 2018-11-13 | D91: BIOCON NOV FUT | E91: Buy | F91: 630 | G91: 617.7 | H91: 617.7 | I91: 645-650 | J91: Loss of Rs.12.3/- | K91: =H91-F91 -> -12.3 | M91: =N91*K91 -> -11070 | N91: 900 | O91: Unsuccessful | P91: 2018-11-13 | R91: R
A92: 16 | B92: 2018-11-13 | D92: HAVELLS NOV FUT | E92: Buy | F92: 663.5 | G92: 653 | H92: 672.5 | I92: 685 | J92: Profit of Rs.9/- | K92: =H92-F92 -> 9 | M92: 9000 | N92: 1000 | O92: Successful | P92: 2018-11-14 | R92: R
A93: 17 | B93: 2018-11-13 | D93: ASIANPAINT NOV FUT | E93: Buy | F93: 1291 | G93: 1272 | H93: 1318 | I93: 1330 | J93: Profit of Rs.27/- | K93: =H93-F93 -> 27 | M93: =N93*K93 -> 16200 | N93: 600 | O93: Successful | P93: 2018-11-14 | R93: N
A94: 18 | B94: 2018-11-14 | D94: BALKRISIND | E94: Buy | F94: 965 | G94: 945 | H94: 945 | I94: 1000-1020 | J94: Loss of Rs.20/- | K94: -20 | L94: =K94/F94 -> -2.07% | O94: Unsuccessful | P94: 2018-11-16 | R94: H
A95: 19 | B95: 2018-11-14 | D95: CUMMINSIND NOV FUT | E95: Sell | F95: 806 | G95: 821.3 | H95: 796 | I95: 780 | J95: Profit of Rs.10/- | K95: =F95-H95 -> 10 | M95: =N95*K95 -> 7000 | N95: 700 | O95: Successful | P95: 2018-11-14 | R95: R
A96: 20 | B96: 2018-11-14 | D96: COLPAL NOV FUT | E96: Buy | F96: 1111.5 | G96: 1096 | H96: 1123 | I96: 1150 | J96: Profit of Rs.11.5/- | K96: =H96-F96 -> 11.5 | M96: 8050 | N96: 700 | O96: Successful | P96: 2018-11-15 | R96: N
A97: 21 | B97: 2018-11-15 | D97: SBIN NOV FUT | E97: Buy | F97: 282.75 | G97: 279 | H97: 286.25 | I97: 290 | J97: Profit of Rs.3.5/- | K97: =H97-F97 -> 3.5 | M97: =N97*K97 -> 10500 | N97: 3000 | O97: Successful | P97: 2018-11-15 | R97: H
A98: 22 | B98: 2018-11-15 | D98: MARUTI NOV FUT | E98: Buy | F98: 7405 | G98: 7280 | H98: 7495 | I98: 7600-7700 | J98: Profit of Rs.90/- | K98: =H98-F98 -> 90 | M98: =N98*K98 -> 6750 | N98: 75 | O98: Successful | P98: 2018-11-15 | R98: H
A99: 23 | B99: 2018-11-15 | D99: AXISBANK NOV FUT | E99: Sell | F99: 622 | G99: 634.3 | H99: 634.4 | I99: 600 | J99: Loss of Rs.12.4/- | K99: =F99-H99 -> -12.4 | M99: -12400 | N99: 1000 | O99: Unsuccessful | P99: 2018-11-16 | R99: R
A100: 24 | B100: 2018-11-15 | D100: CUMMINSIND NOV FUT | E100: Sell | F100: 806 | G100: 821.3 | H100: 821.3 | I100: 780 | J100: Loss of Rs.15.3/- | K100: =F100-H100 -> -15.3 | M100: =N100*K100 -> -10710 | N100: 700 | O100: Unsuccessful | P100: 2018-11-15 | R100: R
A101: 25 | B101: 2018-11-15 | D101: RAYMOND NOV FUT | E101: Buy | F101: 769 | G101: 754 | H101: 779.5 | I101: 795 | J101: Profit of Rs.10.5/- | K101: =H101-F101 -> 10.5 | M101: 7350 | N101: 700 | O101: Successful | P101: 2018-11-16 | R101: N
A102: 26 | B102: 2018-11-15 | D102: DIVISLAB NOV FUT | E102: Sell | F102: 1536 | G102: 1562.6 | H102: 1562.6 | I102: 1500-1490 | J102: Loss of Rs.26.6/- | K102: =F102-H102 -> -26.6 | M102: -10640 | N102: 400 | O102: Unsuccessful | P102: 2018-11-16 | R102: R
A103: 27 | B103: 2018-11-19 | D103: APOLLOHOSP NOV FUT | E103: Buy | F103: 1237.5 | G103: 1212 | H103: 1263 | I103: 1285 | J103: Profit of Rs.25.5/- | K103: =H103-F103 -> 25.5 | M103: =N103*K103 -> 12750 | N103: 500 | O103: Successful | P103: 2018-11-19 | R103: N
A104: 28 | B104: 2018-11-19 | D104: DABUR NOV FUT | E104: Sell | F104: 402.5 | G104: 411.3 | H104: 395.5 | I104: 385-390 | J104: Profit of Rs.7/- | K104: =F104-H104 -> 7 | M104: 8750 | N104: 1250 | O104: Successful | P104: 2018-11-20 | R104: R
A105: 29 | B105: 2018-11-20 | D105: MINDTREE NOV FUT | E105: Buy | F105: 848-850 | G105: 832.7 | I105: 880-890 | J105: Open | R105: R
A110: CLBS = Closing Basis ***
A111: Dividend adjusted <> | F111: Reinitiated $
F112: Revised stoploss #
B113: Quick Pick Intraday
A114: Sr.no | B114: Date | D114: Company | E114: Rec | F114: Rec Price | G114: Stop Loss*** | H114: Call Closed At | I114: Target | J114: Remark | K114: Profit / Loss per Share | L114: Status | M114: Closed Date
A128: Techno -Funda (positional)
A129: Sr.no | B129: Date | D129: Company | E129: Rec | F129: Rec Price | G129: Stop Loss*** | H129: Call Closed At | I129: Target | J129: Remark | K129: Profit / Loss per Share | L129: Gain / Loss % | M129: Status | N129: Closed Date | O129: NSE Closed Price
A132: CLBS = Closing Basis *** | F132: Reinitiated $
A133: Dividend adjusted <> | F133: Revised stoploss #
B138: Investment Idea
A139: Sr.no | B139: Date | D139: Company | E139: Rec | F139: Rec Price | G139: Point of Review | H139: Close Rate | I139: Target | J139: Remark | K139: Profit / Loss per Share | L139: Gain / Loss % | M139: Status | N139: Closed Date
A140: 1 | B140: 2013-11-01 | D140: L&T Finance Holding | E140: Accu | F140: 82.00 | G140: - | H140: 100 | I140: 100.00 | J140: Target Achieved | K140: =H140-F140 -> 18.00 | L140: =K140/F140 -> 21.95% | M140: Successful | N140: 2016-10-14
A141: 2 | B141: 2014-06-04 | D141: Finolex Inds | E141: Buy | F141: 257.00 | G141: - | H141: 300 | I141: 300.00 | J141: Target Achieved | K141: =H141-F141 -> 43.00 | L141: 16.73% | M141: Successful | N141: 2014-07-02
A142: =1+A141 -> 3 | B142: 2014-07-08 | D142: JK Cement | E142: Buy | F142: 393.00 | G142: - | H142: 468 | I142: 468.00 | J142: Target Achieved | K142: =H142-F142 -> 75.00 | L142: 19.08% | M142: Successful | N142: 2014-08-12
A143: 4 | B143: 2014-08-06 | D143: Finolex Cables | E143: Buy | F143: 205.00 | G143: - | H143: 275 | I143: 250.00 | J143: Target Achieved | K143: 70.00 | L143: 34.15% | M143: Successful | N143: 2014-11-19
A144: 5 | B144: 2014-09-04 | D144: Exide Inds | E144: Buy | F144: 162.00 | G144: - | H144: 190 | I144: 190.00 | J144: Target Achieved | K144: 28.00 | L144: 17.28% | M144: Successful | N144: 2015-01-02
A145: 6 | B145: 2014-09-04 | D145: Deepak Nitrite | E145: Buy | F145: 75.00 | G145: - | H145: 91.5 | I145: 95-100 | J145: Profit of Rs.16.50/- | K145: 16.50 | L145: 22.00% | M145: Successful | N145: 2014-11-11
A146: 7 | B146: 2014-10-01 | D146: Mercks | E146: Buy | F146: 850.00 | G146: - | H146: 982.5 | I146: 1050.00 | J146: Profit of Rs.132.50/- | K146: 132.50 | L146: 15.59% | M146: Successful | N146: 2015-02-04
A147: 8 | B147: 2014-10-01 | D147: Grindwell Norton | E147: Buy | F147: 475.00 | G147: - | H147: 515 | I147: 600.00 | J147: Profit of Rs.40/- | K147: 40.00 | L147: 8.42% | M147: Successful | N147: 2014-10-27
A148: 9 | B148: 2014-10-01 | D148: Snowman Logistics | E148: Buy | F148: 86.00 | G148: - | H148: 99 | I148: 140.00 | J148: Profit of Rs.13.00/- | K148: 13.00 | L148: 15.12% | M148: Successful | N148: 2014-10-27
A149: 10 | B149: 2014-10-14 | D149: Birla Corp | E149: Buy | F149: 496.60 | G149: - | H149: 621 | I149: 580.00 | J149: Target Achieved | K149: 124.40 | L149: 25.05% | M149: Successful | N149: 2016-08-23
A150: 11 | B150: 2014-10-14 | D150: Ultratech Cem | E150: Buy | F150: 2481.90 | G150: - | H150: 2840 | I150: 2870.00 | J150: Profit of Rs.358.10/- | K150: 358.10 | L150: 14.43% | M150: Successful | N150: 2015-01-13
A151: =1+A148 -> 10 | B151: 2014-10-16 | D151: Sintex Inds | E151: Buy | F151: 84.50 | G151: - | H151: 93 | I151: 110.00 | J151: Profit of Rs.8.50/- | K151: 8.50 | L151: 10.06% | M151: Successful | N151: 2014-10-27
A152: =1+A151 -> 11 | B152: 2014-10-16 | D152: HSIL | E152: Buy | F152: 401.00 | G152: - | H152: 428 | I152: 450.00 | J152: Profit of Rs.27.00/- | K152: 27.00 | L152: 6.73% | M152: Successful | N152: 2015-01-16
A153: 12 | B153: 2014-10-16 | D153: Eveready Inds | E153: Buy | F153: 101.00 | G153: - | H153: 112 | I153: 120.00 | J153: Profit of Rs.11.00/- | K153: 11.00 | L153: 10.89% | M153: Successful | N153: 2014-10-27
A154: 13 | B154: 2014-11-11 | D154: Pennar Inds | E154: Buy | F154: 59.00 | G154: - | H154: 76 | I154: 76.00 | J154: Target Achieved | K154: 17.00 | L154: 28.81% | M154: Successful | N154: 2017-10-24
A155: 14 | B155: 2014-11-11 | D155: Snowman Logistics | E155: Buy | F155: 99.00 | G155: - | H155: 120 | I155: 120.00 | J155: Profit of Rs.21/- | K155: 21.00 | L155: 21.21% | M155: Successful | N155: 2014-11-17
A156: 15 | B156: 2014-11-13 | D156: Dharamsi Morarji Chem | E156: Buy | F156: 22.00 | G156: - | H156: 33.55 | I156: 32.00 | J156: Profit of Rs 11.55/- | K156: 11.55 | L156: 52.50% | M156: Successful | N156: 2015-07-03
A157: 16 | B157: 2014-12-03 | D157: Tatachem | E157: Buy | F157: 440.00 | G157: - | H157: 520 | I157: 520.00 | J157: Profit of Rs 80.00/- | K157: 80.00 | L157: 18.18% | M157: Successful | N157: 2015-07-23
A158: 17 | B158: 2014-12-03 | D158: Advanta | E158: Buy | F158: 360.00 | G158: - | H158: 427 | I158: 425.00 | J158: Profit of Rs.67.00/- | K158: 67.00 | L158: 18.61% | M158: Successful | N158: 2015-02-23
A159: 18 | B159: 2015-01-08 | D159: GDL | E159: Buy | F159: 360.00 | G159: - | H159: 455 | I159: 420.00 | J159: Profit of Rs.95.00/- | K159: 95.00 | L159: 26.39% | M159: Successful | N159: 2015-01-20
A160: 19 | B160: 2015-01-08 | D160: NRB Bearing | E160: Buy | F160: 130.00 | H160: 175.5 | I160: 165.00 | J160: Profit of Rs 45.50/- | K160: 45.50 | L160: 35.00% | M160: Successful | N160: 2017-12-19
A161: 20 | B161: 2015-02-05 | D161: GSFC | E161: Accu | F161: 98.00 | H161: 120 | I161: 120.00 | J161: Target Achieved | K161: 22.00 | L161: 22.45% | M161: Successful | N161: 2017-01-18
A162: 21 | B162: 2015-02-05 | D162: Sundrmfast | E162: Accu | F162: 196.00 | H162: 262 | I162: 255.00 | J162: Target Achieved | K162: 66.00 | L162: 33.67% | M162: Successful | N162: 2016-08-17
A163: 22 | B163: 2015-03-04 | D163: GPPL | E163: Accu | F163: 230-240 | I163: 280-285 | J163: Open
A164: 23 | B164: 2015-03-04 | D164: ORIENTCEM | E164: Accu | F164: 185.00 | H164: 224 | I164: 220-225 | J164: Target Achieved | K164: 39.00 | L164: =K164/F164 -> 21.08% | M164: Successful | N164: 2016-10-04
A165: 24 | B165: 2015-03-27 | D165: PFS | E165: Accu | F165: 49-50 | I165: 67.00 | J165: Open
A166: 25 | B166: 2015-03-30 | D166: Walchandnagar Ind Ltd | E166: Accu | F166: 183.50 | H166: 219 | I166: 218.00 | J166: Profit of Rs.35.50/- | K166: 35.50 | L166: =K166/F166 -> 19.35% | M166: Successful | N166: 2015-04-09
A167: 26 | B167: 2015-04-20 | D167: Kalpataru Power Transmission Ltd | E167: Accu | F167: =(227+237)/2 -> 232.00 | H167: 298 | I167: 298.00 | J167: Target Achieved | K167: 66.00 | L167: 28.45% | M167: Successful | N167: 2017-03-29
A168: 27 | B168: 2015-05-04 | D168: Mastek Ltd | E168: Buy | F168: 385.00 | H168: =212.5+331 -> 543.5 | I168: 510.00 | J168: Profit of Rs 158.50/- | K168: 158.50 | L168: 41.17% | M168: Successful | N168: 2015-08-19
A169: 28 | B169: 2015-05-04 | D169: Suprajit Eng | E169: Buy | F169: 115.50 | H169: 146 | I169: 142.00 | J169: Profit of Rs 30.50/- | K169: 30.50 | L169: 26.41% | M169: Successful | N169: 2015-07-17
A170: 29 | B170: 2015-05-27 | D170: TCI | E170: Buy | F170: 237.50 | H170: 279.5 | I170: 278.00 | J170: Target Achieved | K170: 42.00 | L170: 17.68% | M170: Successful | N170: 2015-08-06
A171: 30 | B171: 2015-06-19 | D171: HSIL | E171: Accu | F171: 340.00 | H171: 448 | I171: 448.00 | J171: Target Achieved | K171: 108.00 | L171: 31.76% | M171: Successful | N171: 2017-10-10
A172: 31 | B172: 2015-07-06 | D172: Capital First | E172: Accu | F172: 390.00 | H172: 460 | I172: 460.00 | J172: Target Achieved | K172: 70.00 | L172: 17.95% | M172: Successful | N172: 2016-04-18
A173: 32 | B173: 2015-07-10 | D173: Dolphin OffShore | E173: Accu | F173: 122.5 | H173: 61.00 | I173: 172.00 | J173: Loss of Rs.61.50/- | K173: -61.50 | L173: -50.20% | M173: Unsuccessful | N173: 2018-08-21
A174: 33 | B174: 2015-08-03 | D174: Allcargo logistics | E174: Accu | F174: 297.50 | H174: 350 | I174: 360.00 | J174: Profit of Rs 52.50/- | K174: 52.50 | L174: =K174/F174 -> 17.65% | M174: Successful | N174: 2015-08-16
A175: 34 | B175: 2015-08-03 | D175: Camline Fine | E175: Accu | F175: 115.50 | H175: 149 | I175: 140.00 | J175: Profit of Rs 33.50/- | K175: 33.50 | L175: 29.00% | M175: Successful | N175: 2017-01-05
A176: 35 | B176: 2015-09-04 | D176: TCI | E176: Accu | F176: 226.00 | H176: 292 | I176: 292.00 | J176: Target Achieved | K176: 66.00 | L176: 29.20% | M176: Successful | N176: 2015-10-09
A177: 36 | B177: 2015-09-07 | D177: Kalpataru Power Transmission Ltd | E177: Accu | F177: 232.50 | H177: 312.5 | I177: 310.00 | J177: Target Achieved | K177: 80.00 | L177: 34.41% | M177: Successful | N177: 2017-03-29
A178: 37 | B178: 2015-09-21 | D178: LLOYD ELECTRIC & ENG LTD | E178: Accu | F178: 196.50 | H178: 238 | I178: 238.00 | J178: Target Achieved | K178: 41.50 | L178: 21.12% | M178: Successful | N178: 2015-10-14
A179: 38 | B179: 2015-09-24 | D179: L&T Finance Holding | E179: Accu | F179: 65.00 | H179: 82 | I179: 82.00 | J179: Target Achieved | K179: 17.00 | L179: 26.15% | M179: Successful | N179: 2016-07-27
A180: 39 | B180: 2015-10-14 | D180: KEC International ltd | E180: Accu | F180: 144.00 | H180: 182.5 | I180: 181.00 | J180: Target Achieved | K180: 38.50 | L180: 26.74% | M180: Successful | N180: 2017-03-23
A181: 40 | B181: 2015-10-14 | D181: Gruh Finance | E181: Accu | F181: 264.00 | H181: 311 | I181: 311.00 | J181: Target Achieved | K181: 47.00 | L181: 17.80% | M181: Successful | N181: 2016-08-22
A182: 41 | B182: 2015-11-10 | D182: Pidilitind | E182: Buy | F182: 549.50 | H182: 630 | I182: 630.00 | J182: Target Achieved | K182: 80.50 | L182: 14.65% | M182: Successful | N182: 2016-02-19
A183: 42 | B183: 2015-12-04 | D183: Zensar Technology | E183: Accu | F183: 1027.50 | H183: 1315 | I183: 1250.00 | J183: Target Achieved | K183: =H183-F183 -> 287.50 | L183: 27.98% | M183: Successful | N183: 2018-05-24
A184: 43 | B184: 2015-12-29 | D184: Vinati Organics Ltd | E184: Accu | F184: 465.00 | H184: 540 | I184: 540.00 | J184: Target Achieved | K184: 75.00 | L184: =K184/F184 -> 16.13% | M184: Successful | N184: 2016-06-09
A185: 44 | B185: 2016-01-11 | D185: GSFC | E185: Buy | F185: 81.00 | H185: 110 | I185: 110.00 | J185: Target Achieved | K185: 29.00 | L185: 35.80% | M185: Successful | N185: 2017-01-10
A186: 45 | B186: 2016-01-13 | D186: SSWL | E186: Buy | F186: 417.50 | H186: 547 | I186: 535.00 | J186: Target Achieved | K186: 129.50 | L186: 31.02% | M186: Successful | N186: 2016-07-27
A187: 46 | B187: 2016-02-08 | D187: Persistent System Ltd | E187: Accu | F187: 650.00 | H187: 800 | I187: 800.00 | J187: Target Achieved | K187: 150.00 | L187: 23.08% | M187: Successful | N187: 2018-02-23
A188: 47 | B188: 2016-03-04 | D188: UPL | E188: Accu | F188: 437.50 | H188: 504.5 | I188: 522.00 | J188: Profit of Rs.67/- | K188: 67.00 | L188: 15.31% | M188: Successful | N188: 2016-04-20
A189: 48 | B189: 2016-03-09 | D189: Ashoka Buildcon Ltd | E189: Accu | F189: 189.50 | H189: 218 | I189: 218.00 | J189: Target Achieved | K189: 28.50 | L189: 15.04% | M189: Successful | N189: 2017-10-26
A190: 49 | B190: 2016-04-11 | D190: PTC INDIA FIN SERV LTD | E190: Accu | F190: 36-37 | I190: 60.00 | J190: Open
A191: 50 | B191: 2016-04-12 | D191: CAMLINFINE $ | E191: Accu | F191: 93.00 | H191: 149 | I191: 140.00 | J191: Profit of Rs 56/- | K191: 56.00 | L191: =K191/F191 -> 60.22% | M191: Successful | N191: 2017-01-05
A192: 51 | B192: 2016-04-12 | D192: Greaves Cotton Ltd. | E192: Accu | F192: 130.00 | H192: 150 | I192: 150-155 | J192: Target Achieved | K192: 20.00 | L192: 15.38% | M192: Successful | N192: 2016-07-13
A193: 52 | B193: 2016-04-13 | D193: DHFL | E193: Accu | F193: 196.00 | H193: 299 | I193: 299.00 | J193: Target Achieved | K193: 103.00 | L193: 52.55% | M193: Successful | N193: 2016-09-07
A194: 53 | B194: 2016-04-13 | D194: Magma | E194: Accu | F194: 88.00 | H194: 103 | I194: 103.00 | J194: Target Achieved | K194: 15.00 | L194: 17.05% | M194: Successful | N194: 2016-06-09
A195: 54 | B195: 2016-05-02 | D195: KEC International ltd $ | E195: Accu | F195: 127.50 | H195: 148 | I195: 148-150 | J195: Target Achieved | K195: 20.50 | L195: 16.08% | M195: Successful | N195: 2016-07-13
A196: 55 | B196: 2016-05-03 | D196: Mindtree | E196: Accu | F196: 675.00 | H196: 815 | I196: 790-800 | J196: Target Achieved | K196: 140.00 | L196: 20.74% | M196: Successful | N196: 2018-02-23
A197: 56 | B197: 2016-06-01 | D197: Atulauto | E197: Accu | F197: 495-505 | I197: 565-570 | J197: Open
A198: 57 | B198: 2016-06-06 | D198: TRITURBINE | E198: Accu | F198: 110.00 | H198: 126.5 | I198: 125.00 | J198: Profit of Rs.16.50/- | K198: 16.50 | L198: =K198/F198 -> 15.00% | M198: Successful | N198: 2016-07-01
A199: 58 | B199: 2016-06-17 | D199: Pennar Industries Ltd | E199: Accu | F199: 44.00 | H199: 69.5 | I199: 69.50 | J199: Profit of Rs.25.50/- | K199: 25.50 | L199: =K199/F199 -> 57.95% | M199: Successful | N199: 2017-08-30
A200: 59 | B200: 2016-06-28 | D200: EVEREADY INDS. IND. LTD. | E200: Accu | F200: 262.50 | H200: 340 | I200: 333.00 | J200: Profit of Rs.77.50/- | K200: 77.50 | L200: =K200/F200 -> 29.52% | M200: Successful | N200: 2017-10-09
A201: 60 | B201: 2016-06-28 | D201: FIEM INDUSTRIES LIMITED | E201: Accu | F201: 840.00 | H201: 1230 | I201: 1230.00 | J201: Target Achieved | K201: 390.00 | L201: =K201/F201 -> 46.43% | M201: Successful | N201: 2016-10-06
A202: 61 | B202: 2016-07-05 | D202: Bajaj Corp Ltd | E202: Accu | F202: 395 | H202: 468.50 | I202: 510.00 | J202: Part profit of Rs.73.50/- | K202: 73.50 | L202: =K202/F202 -> 19% | M202: Successful | N202: 2017-08-30
A203: 62 | B203: 2016-08-02 | D203: GPPL $ | E203: Buy | F203: 167-172 | I203: 198-200 | J203: Open
A204: 63 | B204: 2016-08-04 | D204: WONDERLA HOLIDAYS LTD | E204: Accu | F204: 395-405 | I204: 475.00 | J204: Open
A205: 64 | B205: 2016-08-11 | D205: CAMLINFINE | E205: Accu | F205: 86.50 | H205: 130 | I205: 130.00 | J205: Profit of Rs.43.50/- | K205: =H205-F205 -> 43.50 | L205: =K205/F205 -> 50.29% | M205: Successful | N205: 2017-12-22
A206: 65 | B206: 2016-08-18 | D206: GRANULES | E206: Accu | F206: 133.5 | H206: 126.50 | I206: 178.00 | J206: Exit | K206: -7.00 | L206: -5.24% | M206: Unsuccessful | N206: 2016-09-02
A207: 66 | B207: 2016-08-31 | D207: VA TECH WABAG | E207: Accu | F207: 560.00 | H207: 725 | I207: 725.00 | J207: Target Achieved | K207: 165.00 | L207: 29.46% | M207: Successful | N207: 2016-03-27
A208: 67 | B208: 2016-09-01 | D208: SKIPPER LIMITED | E208: Accu | F208: 160.50 | H208: 210 | I208: 210.00 | J208: Target Achieved | K208: 49.50 | L208: 30.84% | M208: Successful | N208: 2017-05-16
A209: 68 | B209: 2016-10-03 | D209: IFB Industries | E209: Accu | F209: 430.00 | H209: 596 | I209: 575.00 | J209: Profit of Rs.166/- | K209: 166.00 | L209: 38.60% | M209: Successful | N209: 2017-02-03
A210: 69 | B210: 2016-10-14 | D210: ASIANTILES | E210: Accu | F210: 280.00 | H210: 345 | I210: 345.00 | J210: Target Achieved | K210: 65.00 | L210: 23.21% | M210: Successful | N210: 2017-03-20
A211: 70 | B211: 2016-10-14 | D211: DEEPIND | E211: Accu | F211: 245.00 | H211: 325.5 | I211: 330.00 | J211: Profit of Rs.80.5/- | K211: 80.50 | L211: 32.86% | M211: Successful | N211: 2017-02-03
A212: 71 | B212: 2016-10-17 | D212: DCBBANK | E212: Accu | F212: 125.00 | H212: 160 | I212: 160.00 | J212: Target Achieved | K212: 35.00 | L212: 28.00% | M212: Successful | N212: 2017-03-09
A213: 72 | B213: 2016-10-17 | D213: ORIENTREF | E213: Accu | F213: 114.00 | H213: 145 | I213: 145.00 | J213: Target Achieved | K213: 31.00 | L213: =K213/F213 -> 27.19% | M213: Successful | N213: 2017-05-04
A214: 73 | B214: 2016-10-17 | D214: GANECOS | E214: Accu | F214: 212.00 | H214: 280 | I214: 276.00 | J214: Profit of Rs.68/- | K214: 68.00 | L214: =K214/F214 -> 32.08% | M214: Successful | N214: 2017-05-03
A215: 74 | B215: 2016-11-04 | D215: NBCC | E215: Accu | F215: 155.00 | H215: 210 | I215: 210.00 | J215: Profit of Rs.55/- | K215: 55.00 | L215: =K215/F215 -> 35.48% | M215: Successful | N215: 2017-07-28
A216: 75 | B216: 2016-12-06 | D216: PRECAM | E216: Accu | F216: 150.5 | H216: 72.50 | I216: 174.00 | J216: Loss of Rs.78/- | K216: -78.00 | L216: =K216/F216 -> -51.83% | M216: Unsuccessful | N216: 2018-08-21
A217: 76 | B217: 2016-12-08 | D217: INFRATEL | E217: Accu | F217: 380.00 | H217: 478 | I217: 468.00 | J217: Target Achieved | K217: 98.00 | L217: =K217/F217 -> 25.79% | M217: Successful | N217: 2017-10-17
A218: 77 | B218: 2016-12-30 | D218: GODREJPROP | E218: Accu | F218: 305.00 | H218: 375 | I218: 375.00 | J218: Target Achieved | K218: 70.00 | L218: 22.95% | M218: Successful | N218: 2017-02-02
A219: 78 | B219: 2017-01-04 | D219: DEEPAKNTR | E219: Accu | F219: 99.50 | H219: 158 | I219: 158.00 | J219: Target Achieved | K219: 58.50 | L219: 58.79% | M219: Successful | N219: 2017-06-12
A220: 79 | B220: 2017-02-20 | D220: SUBROS | E220: Accu | F220: 202.50 | H220: 234 | I220: 234.00 | J220: Target Achieved | K220: 31.50 | L220: 15.56% | M220: Successful | N220: 2017-04-11
A221: 80 | B221: 2017-02-20 | D221: RECLTD | E221: Accu | F221: 140.50 | H221: 220 | I221: 220.00 | J221: Target Achieved | K221: 79.50 | L221: 56.58% | M221: Successful | N221: 2017-05-09
A222: 81 | B222: 2017-03-24 | D222: VRLLOG | E222: Accu | F222: 300.50 | H222: 417.5 | I222: 420.00 | J222: Profit of Rs.117/- | K222: 117.00 | L222: 38.94% | M222: Successful | N222: 2017-12-01
A223: 82 | B223: 2017-03-24 | D223: FIEMIND | E223: Accu | F223: 850.00 | H223: 1042.5 | I223: 1023.00 | J223: Profit of Rs 192.50/- | K223: 192.50 | L223: 22.65% | M223: Successful | N223: 2017-04-05
A224: 83 | B224: 2017-04-05 | D224: RATNAMANI | E224: Accu | F224: 785.00 | H224: 930 | I224: 920.00 | J224: Profit of Rs.145/- | K224: 145.00 | L224: 18.47% | M224: Successful | N224: 2017-08-29
A225: 84 | B225: 2017-04-06 | D225: ZEEMEDIA | E225: Accu | F225: 39-41 | I225: 60.00 | J225: Open
A226: 85 | B226: 2017-04-12 | D226: DABUR | E226: Accu | F226: 289.50 | H226: 354 | I226: 360.00 | J226: Profit of Rs.64.5/- | K226: 64.50 | L226: =K226/F226 -> 22.28% | M226: Successful | N226: 2017-11-01
A227: 86 | B227: 2017-04-20 | D227: KPRMILL | E227: Accu | F227: 700.00 | H227: 840 | I227: 840.00 | J227: Profit of Rs.140/- | K227: 140.00 | L227: =K227/F227 -> 20.00% | M227: Successful | N227: 2017-06-07
A228: 87 | B228: 2017-05-22 | D228: GREAVESCOT | E228: Accu | F228: 153-158 | I228: 190.00 | J228: Open
A229: 88 | B229: 2017-06-01 | D229: ESSELPACK | E229: Accu | F229: 260 | H229: 311.00 | I229: 340.00 | J229: Part profit of Rs.51/- | K229: =H229-F229 -> 51.00 | L229: =K229/F229 -> 20% | M229: Successful | N229: 2017-11-17
A230: 89 | B230: 2017-06-15 | D230: KEI | E230: Accu | F230: 214.50 | H230: 262 | I230: 262.00 | J230: Profit of Rs.47.5/- | K230: =H230-F230 -> 47.50 | L230: 22.14% | M230: Successful | N230: 2017-08-30
A231: 90 | B231: 2017-07-17 | D231: MAYURUNIQ | E231: Accu | F231: 370.00 | H231: 447.5 | I231: 450.00 | J231: Target Achieved | K231: 77.50 | L231: 20.95% | M231: Successful | N231: 2017-10-27
A232: 91 | B232: 2017-07-27 | D232: RAMCOCEM | E232: Accu | F232: 657.50 | H232: 825 | I232: 820.00 | J232: Target Achieved | K232: 167.50 | L232: 25.48% | M232: Successful | N232: 2017-12-21
A233: 92 | B233: 2017-08-17 | D233: FINPIPE | E233: Accu | F233: 605.00 | H233: 750 | I233: 750.00 | J233: Profit of Rs.145/- | K233: 145.00 | L233: 23.97% | M233: Successful | N233: 2017-10-19
A234: 93 | B234: 2017-09-01 | D234: SHK | E234: Accu | F234: 255 | H234: 307.50 | I234: 320.00 | J234: Part profit of Rs.52.5/- | K234: 52.50 | L234: 21% | M234: Successful | N234: 2017-12-29
A235: 94 | B235: 2017-09-19 | D235: SKIPPER | E235: Accu | F235: 215.00 | H235: 258 | I235: 258.00 | J235: Target Achieved | K235: 43.00 | L235: 20.00% | M235: Successful | N235: 2017-11-01
A236: 95 | B236: 2017-09-20 | D236: CAMLINFINE | E236: Accu | F236: 75.00 | H236: 90 | I236: 90.00 | J236: Profit of Rs.15.00/- | K236: 15.00 | L236: 20.00% | M236: Successful | N236: 2017-10-11
A237: 96 | B237: 2017-10-03 | D237: GNA | E237: Accu | F237: 315.00 | H237: 392 | I237: 384.00 | J237: Profit of Rs.77/- | K237: 77.00 | L237: 24.44% | M237: Successful | N237: 2017-10-09
... 45 more rows

Sheet Sheet2 (hidden)
A1: SYMBOL | B1: SERIES | C1: OPEN | D1: HIGH | E1: LOW | F1: CLOSE | G1: LAST | H1: PREVCLOSE | I1: TOTTRDQTY | J1: TOTTRDVAL | K1: TIMESTAMP | L1: TOTALTRADES | M1: ISIN | N1: ISIN
A2: 20MICRONS | B2: EQ | C2: 46 | D2: 46.8 | E2: 44.2 | F2: 44.55 | G2: 44.65 | H2: 46.5 | I2: 37379 | J2: 1693195.25 | K2: 2018-11-20 | L2: 588 | M2: INE144J01027
A3: 21STCENMGM | B3: EQ | C3: 23.2 | D3: 23.65 | E3: 23.2 | F3: 23.4 | G3: 23.5 | H3: 23.2 | I3: 1560 | J3: 36619.4 | K3: 2018-11-20 | L3: 20 | M3: INE253B01015
A4: 3IINFOTECH | B4: EQ | C4: 4.4 | D4: 4.75 | E4: 4.05 | F4: 4.35 | G4: 4.35 | H4: 4.4 | I4: 16982862 | J4: 75321352.7 | K4: 2018-11-20 | L4: 6852 | M4: INE748C01020
A5: 3MINDIA | B5: EQ | C5: 20400 | D5: 20499.8 | E5: 20200 | F5: 20290.2 | G5: 20280 | H5: 20433.75 | I5: 1274 | J5: 25913741.35 | K5: 2018-11-20 | L5: 363 | M5: INE470A01017
A6: 5PAISA | B6: EQ | C6: 202.9 | D6: 202.9 | E6: 197 | F6: 199.75 | G6: 197.65 | H6: 200.1 | I6: 3095 | J6: 620892.6 | K6: 2018-11-20 | L6: 131 | M6: INE618L01018
A7: 63MOONS | B7: EQ | C7: 87.5 | D7: 88 | E7: 83.1 | F7: 83.9 | G7: 83.2 | H7: 87.95 | I7: 240007 | J7: 20605309.5 | K7: 2018-11-20 | L7: 5374 | M7: INE111B01023
A8: 8KMILES | B8: EQ | C8: 130.8 | D8: 130.8 | E8: 121.6 | F8: 130.8 | G8: 130.8 | H8: 124.6 | I8: 816549 | J8: 106467359 | K8: 2018-11-20 | L8: 3521 | M8: INE650K01021
A9: A2ZINFRA | B9: EQ | C9: 14.1 | D9: 14.1 | E9: 13.5 | F9: 13.8 | G9: 14 | H9: 14.1 | I9: 143823 | J9: 1981536.3 | K9: 2018-11-20 | L9: 450 | M9: INE619I01012
A10: AARTIDRUGS | B10: EQ | C10: 567.95 | D10: 567.95 | E10: 475 | F10: 546.5 | G10: 554.95 | H10: 566 | I10: 124291 | J10: 65748828.45 | K10: 2018-11-20 | L10: 7177 | M10: INE767A01016
A11: AARTIIND | B11: EQ | C11: 1458 | D11: 1502 | E11: 1451 | F11: 1491.65 | G11: 1475.05 | H11: 1452.25 | I11: 119984 | J11: 178035784.5 | K11: 2018-11-20 | L11: 7590 | M11: INE769A01020
A12: AARVEEDEN | B12: EQ | C12: 24.7 | D12: 24.7 | E12: 24.3 | F12: 24.35 | G12: 24.3 | H12: 24.8 | I12: 814 | J12: 19855.2 | K12: 2018-11-20 | L12: 14 | M12: INE273D01019
A13: AAVAS | B13: EQ | C13: 680.45 | D13: 695 | E13: 676.55 | F13: 690.25 | G13: 690 | H13: 685.2 | I13: 7517 | J13: 5170107.05 | K13: 2018-11-20 | L13: 1452 | M13: INE216P01012
A14: ABAN | B14: EQ | C14: 81.5 | D14: 83.8 | E14: 80.65 | F14: 81.45 | G14: 80.85 | H14: 82 | I14: 590732 | J14: 48587803.5 | K14: 2018-11-20 | L14: 7063 | M14: INE421A01028
A15: ABB | B15: EQ | C15: 1348 | D15: 1350 | E15: 1336.9 | F15: 1342.7 | G15: 1340 | H15: 1350.7 | I15: 37580 | J15: 50475147.3 | K15: 2018-11-20 | L15: 3673 | M15: INE117A01022
A16: ABBOTINDIA | B16: EQ | C16: 7600 | D16: 7691 | E16: 7516.05 | F16: 7619.7 | G16: 7656 | H16: 7630.55 | I16: 3118 | J16: 23691301.85 | K16: 2018-11-20 | L16: 1457 | M16: INE358A01014
A17: ABCAPITAL | B17: EQ | C17: 115.65 | D17: 115.75 | E17: 112.3 | F17: 112.8 | G17: 112.75 | H17: 116.15 | I17: 1558279 | J17: 177970154.4 | K17: 2018-11-20 | L17: 14448 | M17: INE674K01013
A18: ABFRL | B18: EQ | C18: 190.6 | D18: 190.6 | E18: 186.25 | F18: 187.6 | G18: 186.8 | H18: 191.1 | I18: 551764 | J18: 104587245.6 | K18: 2018-11-20 | L18: 3454 | M18: INE647O01011
A19: ACC | B19: EQ | C19: 1491 | D19: 1498.3 | E19: 1467.3 | F19: 1469.95 | G19: 1470 | H19: 1501.65 | I19: 462997 | J19: 686288620.1 | K19: 2018-11-20 | L19: 15521 | M19: INE012A01025
A20: ACCELYA | B20: EQ | C20: 946 | D20: 951.2 | E20: 936.05 | F20: 943.3 | G20: 944.4 | H20: 946 | I20: 1752 | J20: 1651565.1 | K20: 2018-11-20 | L20: 204 | M20: INE793A01012
A21: ACE | B21: EQ | C21: 89.7 | D21: 89.85 | E21: 86 | F21: 87.85 | G21: 88 | H21: 89.7 | I21: 119225 | J21: 10467410.85 | K21: 2018-11-20 | L21: 2067 | M21: INE731H01025
A22: ADANIENT | B22: EQ | C22: 161.65 | D22: 163.65 | E22: 156.95 | F22: 160.15 | G22: 160.15 | H22: 162.1 | I22: 4293856 | J22: 688811771.2 | K22: 2018-11-20 | L22: 21427 | M22: INE423A01024
A23: ADANIGAS | B23: EQ | C23: 81 | D23: 88.5 | E23: 80.1 | F23: 80.9 | G23: 81.7 | H23: 77.8 | I23: 3819027 | J23: 321301715.4 | K23: 2018-11-20 | L23: 34652 | M23: INE399L01023
A24: ADANIGREEN | B24: EQ | C24: 41.25 | D24: 42.85 | E24: 41 | F24: 41.45 | G24: 41.6 | H24: 41.25 | I24: 364290 | J24: 15299387.9 | K24: 2018-11-20 | L24: 2096 | M24: INE364U01010
A25: ADANIPORTS | B25: EQ | C25: 349.85 | D25: 357.55 | E25: 347 | F25: 355.25 | G25: 355.5 | H25: 350.55 | I25: 5778336 | J25: 2050668017 | K25: 2018-11-20 | L25: 57206 | M25: INE742F01042
A26: ADANIPOWER | B26: EQ | C26: 47.4 | D26: 49 | E26: 46.75 | F26: 47.25 | G26: 46.85 | H26: 47.4 | I26: 14151952 | J26: 680116791.5 | K26: 2018-11-20 | L26: 21271 | M26: INE814H01011
A27: ADANITRANS | B27: EQ | C27: 229.95 | D27: 241.9 | E27: 226 | F27: 237.15 | G27: 237 | H27: 232.5 | I27: 1134477 | J27: 268512919.2 | K27: 2018-11-20 | L27: 19441 | M27: INE931S01010
A28: ADFFOODS | B28: EQ | C28: 244.7 | D28: 244.7 | E28: 238.5 | F28: 240.8 | G28: 240 | H28: 244.35 | I28: 30267 | J28: 7320530.5 | K28: 2018-11-20 | L28: 1227 | M28: INE982B01019
A29: ADHUNIK | B29: EQ | C29: 2.65 | D29: 2.8 | E29: 2.65 | F29: 2.8 | G29: 2.7 | H29: 2.7 | I29: 23235 | J29: 63658.45 | K29: 2018-11-20 | L29: 48 | M29: INE400H01019
A30: ADHUNIKIND | B30: EQ | C30: 50.2 | D30: 50.2 | E30: 43.6 | F30: 47.15 | G30: 47.5 | H30: 49.95 | I30: 12227 | J30: 579222.55 | K30: 2018-11-20 | L30: 108 | M30: INE452L01012
A31: ADLABS | B31: EQ | C31: 13.4 | D31: 13.6 | E31: 12.75 | F31: 12.75 | G31: 12.75 | H31: 13.4 | I31: 212037 | J31: 2718764.4 | K31: 2018-11-20 | L31: 611 | M31: INE172N01012
A32: ADORWELD | B32: EQ | C32: 371.95 | D32: 398 | E32: 366.65 | F32: 382.35 | G32: 382.4 | H32: 370.2 | I32: 41766 | J32: 16202094 | K32: 2018-11-20 | L32: 2108 | M32: INE045A01017
A33: ADROITINFO | B33: EQ | C33: 18.1 | D33: 19.65 | E33: 18.1 | F33: 19.65 | G33: 19.65 | H33: 19 | I33: 11958 | J33: 223164.1 | K33: 2018-11-20 | L33: 12 | M33: INE737B01033
A34: ADSL | B34: EQ | C34: 14.8 | D34: 14.8 | E34: 13.6 | F34: 13.7 | G34: 13.7 | H34: 13.9 | I34: 12394 | J34: 172095.7 | K34: 2018-11-20 | L34: 75 | M34: INE102I01027
A35: ADVANIHOTR | B35: EQ | C35: 57.35 | D35: 59.85 | E35: 57.35 | F35: 58.55 | G35: 58.5 | H35: 57.85 | I35: 2901 | J35: 169296.2 | K35: 2018-11-20 | L35: 64 | M35: INE199C01026
A36: ADVENZYMES | B36: EQ | C36: 185.15 | D36: 186.95 | E36: 183 | F36: 183.8 | G36: 183.9 | H36: 186.5 | I36: 57574 | J36: 10637525 | K36: 2018-11-20 | L36: 1730 | M36: INE837H01020
A37: AEGISCHEM | B37: EQ | C37: 222.3 | D37: 233 | E37: 222 | F37: 225.75 | G37: 226 | H37: 222.3 | I37: 368527 | J37: 84323748.4 | K37: 2018-11-20 | L37: 9707 | M37: INE208C01025
A38: AGARIND | B38: EQ | C38: 188 | D38: 194.95 | E38: 188 | F38: 188.15 | G38: 190.25 | H38: 190.05 | I38: 284 | J38: 53670.55 | K38: 2018-11-20 | L38: 14 | M38: INE204E01012
A39: AGCNET | B39: EQ | C39: 69 | D39: 69.9 | E39: 67.1 | F39: 68.9 | G39: 69.6 | H39: 68.85 | I39: 2784 | J39: 191888.6 | K39: 2018-11-20 | L39: 326 | M39: INE676A01019
A40: AGLSL | B40: EQ | C40: 76.15 | D40: 76.5 | E40: 76 | F40: 76.5 | G40: 76.5 | H40: 77.95 | I40: 914 | J40: 69657.3 | K40: 2018-11-20 | L40: 21 | M40: INE517U01013
A41: AGRITECH | B41: EQ | C41: 51.8 | D41: 51.8 | E41: 50 | F41: 50.25 | G41: 50.45 | H41: 51.55 | I41: 8239 | J41: 416352.95 | K41: 2018-11-20 | L41: 203 | M41: INE449G01018
A42: AHLEAST | B42: EQ | C42: 247.1 | D42: 253.85 | E42: 247 | F42: 250.75 | G42: 253.7 | H42: 248.6 | I42: 44 | J42: 10988.2 | K42: 2018-11-20 | L42: 9 | M42: INE926K01017
A43: AHLUCONT | B43: EQ | C43: 309.3 | D43: 318 | E43: 309.3 | F43: 312.45 | G43: 314 | H43: 307.2 | I43: 2879 | J43: 902515.15 | K43: 2018-11-20 | L43: 233 | M43: INE758C01029
A44: AIAENG | B44: EQ | C44: 1672 | D44: 1673.3 | E44: 1625 | F44: 1641.05 | G44: 1630.15 | H44: 1681.35 | I44: 53178 | J44: 87402768.8 | K44: 2018-11-20 | L44: 3463 | M44: INE212H01026
A45: AIFL | B45: EQ | C45: 43.25 | D45: 43.25 | E45: 43.25 | F45: 43.25 | G45: 43.25 | H45: 45.5 | I45: 21613 | J45: 934762.25 | K45: 2018-11-20 | L45: 117 | M45: INE428O01016
A46: AIONJSW | B46: EQ | C46: 36.6 | D46: 37.95 | E46: 35.3 | F46: 37.05 | G46: 37.95 | H46: 36.3 | I46: 56927 | J46: 2100304.1 | K46: 2018-11-20 | L46: 348 | M46: INE743C01021
A47: AJANTPHARM | B47: EQ | C47: 1147 | D47: 1148 | E47: 1099 | F47: 1107.95 | G47: 1099.55 | H47: 1136.55 | I47: 273737 | J47: 306510468.4 | K47: 2018-11-20 | L47: 24448 | M47: INE031B01049
A48: AJMERA | B48: EQ | C48: 162.7 | D48: 162.7 | E48: 155 | F48: 156.45 | G48: 156.15 | H48: 162.35 | I48: 27002 | J48: 4265947.5 | K48: 2018-11-20 | L48: 700 | M48: INE298G01027
A49: AKSHARCHEM | B49: EQ | C49: 447.35 | D49: 459.4 | E49: 447 | F49: 455 | G49: 456 | H49: 439.55 | I49: 8690 | J49: 3957183.05 | K49: 2018-11-20 | L49: 2531 | M49: INE542B01011
A50: AKSHOPTFBR | B50: EQ | C50: 26.6 | D50: 26.75 | E50: 26 | F50: 26.1 | G50: 26.15 | H50: 26.75 | I50: 506229 | J50: 13349167.6 | K50: 2018-11-20 | L50: 1628 | M50: INE523B01011
A51: AKZOINDIA | B51: EQ | C51: 1596.5 | D51: 1600 | E51: 1576.15 | F51: 1593.05 | G51: 1599.5 | H51: 1596.5 | I51: 1749 | J51: 2779438.7 | K51: 2018-11-20 | L51: 299 | M51: INE133A01011
A52: ALANKIT | B52: EQ | C52: 19.95 | D52: 20.3 | E52: 19.55 | F52: 19.75 | G52: 19.8 | H52: 20.05 | I52: 203906 | J52: 4054612.25 | K52: 2018-11-20 | L52: 691 | M52: INE914E01040
A53: ALBERTDAVD | B53: EQ | C53: 424.45 | D53: 452 | E53: 424.45 | F53: 424.45 | G53: 424.45 | H53: 446.75 | I53: 56315 | J53: 24414172.3 | K53: 2018-11-20 | L53: 2054 | M53: INE155C01010
A54: ALBK | B54: EQ | C54: 42.5 | D54: 44.9 | E54: 42.1 | F54: 44.65 | G54: 44.65 | H54: 43.55 | I54: 11631687 | J54: 511829224.2 | K54: 2018-11-20 | L54: 26313 | M54: INE428A01015
A55: ALCHEM | B55: BE | C55: 2.7 | D55: 2.9 | E55: 2.7 | F55: 2.7 | G55: 2.7 | H55: 2.8 | I55: 64169 | J55: 173793.05 | K55: 2018-11-20 | L55: 69 | M55: INE964B01033
A56: ALEMBICLTD | B56: EQ | C56: 41.4 | D56: 42.5 | E56: 40.9 | F56: 42.25 | G56: 41.95 | H56: 41.15 | I56: 245466 | J56: 10257633.7 | K56: 2018-11-20 | L56: 1289 | M56: INE426A01027
A57: ALICON | B57: EQ | C57: 628 | D57: 643.5 | E57: 619.25 | F57: 641.6 | G57: 643.5 | H57: 610.4 | I57: 9663 | J57: 6141491.85 | K57: 2018-11-20 | L57: 522 | M57: INE062D01024
A58: ALKALI | B58: EQ | C58: 56.15 | D58: 57.5 | E58: 55.45 | F58: 56.35 | G58: 56 | H58: 56.3 | I58: 16463 | J58: 927593.8 | K58: 2018-11-20 | L58: 183 | M58: INE773I01017
A59: ALKEM | B59: EQ | C59: 1940.05 | D59: 1962.15 | E59: 1917.2 | F59: 1947.75 | G59: 1935.05 | H59: 1947.5 | I59: 9224 | J59: 17935900.3 | K59: 2018-11-20 | L59: 1607 | M59: INE540L01014
A60: ALKYLAMINE | B60: EQ | C60: 773.75 | D60: 773.75 | E60: 753.05 | F60: 757.35 | G60: 755.2 | H60: 773.7 | I60: 3097 | J60: 2366299.2 | K60: 2018-11-20 | L60: 235 | M60: INE150B01021
A61: ALLCARGO | B61: EQ | C61: 108.9 | D61: 109.45 | E61: 106.05 | F61: 108 | G61: 107.9 | H61: 108.85 | I61: 261938 | J61: 28352368.55 | K61: 2018-11-20 | L61: 2491 | M61: INE418H01029
A62: ALLSEC | B62: EQ | C62: 226.6 | D62: 226.6 | E62: 215.65 | F62: 219.95 | G62: 220 | H62: 223.9 | I62: 2285 | J62: 505102.5 | K62: 2018-11-20 | L62: 182 | M62: INE835G01018
A63: ALMONDZ | B63: EQ | C63: 25.7 | D63: 25.7 | E63: 23.85 | F63: 24 | G63: 24 | H63: 24.8 | I63: 1507 | J63: 36737.95 | K63: 2018-11-20 | L63: 31 | M63: INE326B01027
A64: ALOKTEXT | B64: EQ | C64: 3.25 | D64: 3.25 | E64: 3.2 | F64: 3.2 | G64: 3.2 | H64: 3.2 | I64: 796438 | J64: 2567195.95 | K64: 2018-11-20 | L64: 402 | M64: INE270A01011
A65: ALPA | B65: EQ | C65: 26.25 | D65: 26.3 | E65: 24.4 | F65: 24.9 | G65: 24.75 | H65: 25.9 | I65: 23502 | J65: 593615.4 | K65: 2018-11-20 | L65: 158 | M65: INE385I01010
A66: ALPHAGEO | B66: EQ | C66: 485.95 | D66: 493.3 | E66: 482 | F66: 483.5 | G66: 482 | H66: 485.5 | I66: 2455 | J66: 1192363.7 | K66: 2018-11-20 | L66: 373 | M66: INE137C01018
A67: ALPSINDUS | B67: BE | C67: 3.05 | D67: 3.2 | E67: 3.05 | F67: 3.2 | G67: 3.2 | H67: 3.05 | I67: 19731 | J67: 63139.05 | K67: 2018-11-20 | L67: 39 | M67: INE093B01015
A68: AMARAJABAT | B68: EQ | C68: 730 | D68: 735.65 | E68: 723 | F68: 725.9 | G68: 725 | H68: 732.55 | I68: 237231 | J68: 173098224.9 | K68: 2018-11-20 | L68: 8081 | M68: INE885A01032
A69: AMBER | B69: EQ | C69: 890 | D69: 908.05 | E69: 875 | F69: 904.85 | G69: 905 | H69: 900.45 | I69: 4386 | J69: 3940124.15 | K69: 2018-11-20 | L69: 1124 | M69: INE371P01015
A70: AMBIKCO | B70: EQ | C70: 1186.8 | D70: 1223 | E70: 1186.8 | F70: 1216.8 | G70: 1215 | H70: 1213 | I70: 814 | J70: 990789.6 | K70: 2018-11-20 | L70: 214 | M70: INE540G01014
A71: AMBUJACEM | B71: EQ | C71: 219.25 | D71: 219.25 | E71: 214.05 | F71: 215 | G71: 214.75 | H71: 220.4 | I71: 1207441 | J71: 261772740.7 | K71: 2018-11-20 | L71: 9380 | M71: INE079A01024
A72: AMDIND | B72: EQ | C72: 19.7 | D72: 19.8 | E72: 19.5 | F72: 19.6 | G72: 19.55 | H72: 19.85 | I72: 3201 | J72: 62716.7 | K72: 2018-11-20 | L72: 17 | M72: INE005I01014
A73: AMJLAND | B73: EQ | C73: 22.5 | D73: 22.6 | E73: 22.3 | F73: 22.45 | G73: 22.55 | H73: 22.5 | I73: 686 | J73: 15378.75 | K73: 2018-11-20 | L73: 13 | M73: INE606A01024
A74: AMRUTANJAN | B74: EQ | C74: 251.05 | D74: 255 | E74: 249.5 | F74: 250.7 | G74: 250.6 | H74: 253.5 | I74: 6111 | J74: 1537280.9 | K74: 2018-11-20 | L74: 375 | M74: INE098F01031
A75: ANANTRAJ | B75: EQ | C75: 35 | D75: 35.3 | E75: 33.9 | F75: 34.5 | G75: 34.5 | H75: 35.1 | I75: 241639 | J75: 8347979.1 | K75: 2018-11-20 | L75: 1335 | M75: INE242C01024
A76: ANDHRABANK | B76: EQ | C76: 28.6 | D76: 29.15 | E76: 28.25 | F76: 28.6 | G76: 28.4 | H76: 28.9 | I76: 983748 | J76: 28213397 | K76: 2018-11-20 | L76: 2248 | M76: INE434A01013
A77: ANDHRACEMT | B77: EQ | C77: 6 | D77: 6.05 | E77: 5.9 | F77: 6 | G77: 6.05 | H77: 6 | I77: 45015 | J77: 269197.5 | K77: 2018-11-20 | L77: 126 | M77: INE666E01012
A78: ANDHRSUGAR | B78: EQ | C78: 358.85 | D78: 363.85 | E78: 347 | F78: 349.2 | G78: 350 | H78: 358.85 | I78: 44080 | J78: 15602521.35 | K78: 2018-11-20 | L78: 1317 | M78: INE715B01013
A79: ANGIND | B79: BE | C79: 1.5 | D79: 1.5 | E79: 1.45 | F79: 1.45 | G79: 1.45 | H79: 1.5 | I79: 1514 | J79: 2266.1 | K79: 2018-11-20 | L79: 11 | M79: INE017D01010
A80: ANIKINDS | B80: EQ | C80: 26.55 | D80: 26.55 | E80: 26.5 | F80: 26.5 | G80: 26.5 | H80: 27.05 | I80: 90 | J80: 2387.55 | K80: 2018-11-20 | L80: 5 | M80: INE087B01017
A81: ANKITMETAL | B81: BE | C81: 0.5 | D81: 0.5 | E81: 0.5 | F81: 0.5 | G81: 0.5 | H81: 0.55 | I81: 5089 | J81: 2544.5 | K81: 2018-11-20 | L81: 10 | M81: INE106I01010
A82: ANSALAPI | B82: EQ | C82: 11.4 | D82: 11.4 | E82: 11 | F82: 11.1 | G82: 11 | H82: 11.3 | I82: 18154 | J82: 202335.25 | K82: 2018-11-20 | L82: 89 | M82: INE436A01026
A83: ANSALHSG | B83: EQ | C83: 10.55 | D83: 10.9 | E83: 10.05 | F83: 10.6 | G83: 10.6 | H83: 10.65 | I83: 22064 | J83: 233804.6 | K83: 2018-11-20 | L83: 145 | M83: INE880B01015
A84: ANTGRAPHIC | B84: BE | C84: 0.45 | D84: 0.5 | E84: 0.45 | F84: 0.5 | G84: 0.5 | H84: 0.5 | I84: 28822 | J84: 14014 | K84: 2018-11-20 | L84: 13 | M84: INE414B01021
A85: APARINDS | B85: EQ | C85: 630 | D85: 630.3 | E85: 615.1 | F85: 626.95 | G85: 627 | H85: 625.95 | I85: 11059 | J85: 6897046.75 | K85: 2018-11-20 | L85: 972 | M85: INE372A01015
A86: APCL | B86: EQ | C86: 131.2 | D86: 132.8 | E86: 126.5 | F86: 126.75 | G86: 126.5 | H86: 130.6 | I86: 566 | J86: 72171.2 | K86: 2018-11-20 | L86: 26 | M86: INE071F01012
A87: APCOTEXIND | B87: EQ | C87: 534.05 | D87: 541.7 | E87: 523 | F87: 525.7 | G87: 525.5 | H87: 536.8 | I87: 5272 | J87: 2791316 | K87: 2018-11-20 | L87: 211 | M87: INE116A01024
A88: APEX | B88: EQ | C88: 381.7 | D88: 381.7 | E88: 367 | F88: 369.9 | G88: 369 | H88: 381.95 | I88: 43344 | J88: 16181322.25 | K88: 2018-11-20 | L88: 1429 | M88: INE346W01013
A89: APLAPOLLO | B89: EQ | C89: 1290 | D89: 1297 | E89: 1259 | F89: 1290.25 | G89: 1297 | H89: 1289.7 | I89: 12557 | J89: 15965457.75 | K89: 2018-11-20 | L89: 949 | M89: INE702C01019
A90: APLLTD | B90: EQ | C90: 565 | D90: 575 | E90: 564.3 | F90: 565.25 | G90: 565 | H90: 565 | I90: 31938 | J90: 18138324.75 | K90: 2018-11-20 | L90: 1097 | M90: INE901L01018
A91: APOLLO | B91: EQ | C91: 138.95 | D91: 138.95 | E91: 133.65 | F91: 134.55 | G91: 135 | H91: 138.45 | I91: 19039 | J91: 2592370.4 | K91: 2018-11-20 | L91: 705 | M91: INE713T01010
A92: APOLLOHOSP | B92: EQ | C92: 1227.2 | D92: 1239.9 | E92: 1188.55 | F92: 1192.8 | G92: 1191 | H92: 1225.05 | I92: 933231 | J92: 1130071993 | K92: 2018-11-20 | L92: 57316 | M92: INE437A01024
A93: APOLLOTYRE | B93: EQ | C93: 229 | D93: 229.8 | E93: 224.65 | F93: 225.3 | G93: 225 | H93: 229.15 | I93: 2820381 | J93: 637636077.1 | K93: 2018-11-20 | L93: 23499 | M93: INE438A01022
A94: APOLSINHOT | B94: EQ | C94: 840 | D94: 846 | E94: 802.35 | F94: 810.85 | G94: 806.2 | H94: 842.85 | I94: 1783 | J94: 1464937.05 | K94: 2018-11-20 | L94: 84 | M94: INE451F01024
A95: APTECHT | B95: EQ | C95: 157.1 | D95: 158.5 | E95: 155 | F95: 156 | G95: 155.5 | H95: 158.85 | I95: 123031 | J95: 19226967.3 | K95: 2018-11-20 | L95: 2614 | M95: INE266F01018
A96: ARCHIDPLY | B96: EQ | C96: 42.55 | D96: 42.55 | E96: 40.35 | F96: 41 | G96: 41.5 | H96: 41.75 | I96: 15656 | J96: 648267.1 | K96: 2018-11-20 | L96: 440 | M96: INE877I01016
A97: ARCHIES | B97: EQ | C97: 27.75 | D97: 27.75 | E97: 26.85 | F97: 26.95 | G97: 26.9 | H97: 27.55 | I97: 25132 | J97: 680717.35 | K97: 2018-11-20 | L97: 278 | M97: INE731A01020
A98: ARCOTECH | B98: EQ | C98: 7.95 | D98: 7.95 | E98: 7.95 | F98: 7.95 | G98: 7.95 | H98: 8.35 | I98: 56216 | J98: 446917.2 | K98: 2018-11-20 | L98: 79 | M98: INE574I01035
A99: ARIES | B99: EQ | C99: 101.5 | D99: 102.55 | E99: 98.5 | F99: 99.25 | G99: 99.45 | H99: 102.25 | I99: 32211 | J99: 3242973.8 | K99: 2018-11-20 | L99: 634 | M99: INE298I01015
A100: ARIHANT | B100: EQ | C100: 36 | D100: 37.85 | E100: 32.55 | F100: 33.55 | G100: 33.7 | H100: 35.95 | I100: 32081 | J100: 1081673.55 | K100: 2018-11-20 | L100: 220 | M100: INE413D01011
A101: ARIHANTSUP | B101: EQ | C101: 49.4 | D101: 51.1 | E101: 48.55 | F101: 49.85 | G101: 50.5 | H101: 49.35 | I101: 29734 | J101: 1484342.45 | K101: 2018-11-20 | L101: 247 | M101: INE643K01018
A102: ARMANFIN | B102: EQ | C102: 372.05 | D102: 383 | E102: 365 | F102: 379.1 | G102: 382.75 | H102: 375.05 | I102: 2550 | J102: 960174.3 | K102: 2018-11-20 | L102: 68 | M102: INE109C01017
A103: AROGRANITE | B103: EQ | C103: 56.1 | D103: 56.1 | E103: 54.15 | F103: 54.65 | G103: 54.6 | H103: 56.45 | I103: 9223 | J103: 508010.85 | K103: 2018-11-20 | L103: 186 | M103: INE210C01013
A104: ARROWGREEN | B104: EQ | C104: 99.95 | D104: 100.75 | E104: 94.3 | F104: 99.5 | G104: 98.7 | H104: 97.8 | I104: 12949 | J104: 1278134.25 | K104: 2018-11-20 | L104: 209 | M104: INE570D01018
A105: ARROWTEX | B105: EQ | C105: 25.9 | D105: 25.9 | E105: 24.6 | F105: 24.9 | G105: 25 | H105: 25.25 | I105: 1098 | J105: 27380.65 | K105: 2018-11-20 | L105: 25 | M105: INE933J01015
A106: ARSHIYA | B106: EQ | C106: 38 | D106: 38.55 | E106: 35.5 | F106: 36.45 | G106: 36.1 | H106: 37.55 | I106: 22663 | J106: 826437 | K106: 2018-11-20 | L106: 196 | M106: INE968D01022
A107: ARSSINFRA | B107: EQ | C107: 23.8 | D107: 23.8 | E107: 21.75 | F107: 23.4 | G107: 23.5 | H107: 22.35 | I107: 16045 | J107: 369489.9 | K107: 2018-11-20 | L107: 97 | M107: INE267I01010
A108: ARVIND | B108: EQ | C108: 316.85 | D108: 323.25 | E108: 315.1 | F108: 318.65 | G108: 318.55 | H108: 317.75 | I108: 2886552 | J108: 922169455 | K108: 2018-11-20 | L108: 37506 | M108: INE034A01011
A109: ARVSMART | B109: EQ | C109: 113 | D109: 114.6 | E109: 111 | F109: 113.1 | G109: 112 | H109: 113.3 | I109: 7740 | J109: 873594.8 | K109: 2018-11-20 | L109: 264 | M109: INE034S01021
A110: ASAHIINDIA | B110: EQ | C110: 270 | D110: 274.7 | E110: 264 | F110: 265.2 | G110: 266 | H110: 270.8 | I110: 16652 | J110: 4469927.65 | K110: 2018-11-20 | L110: 599 | M110: INE439A01020
A111: ASAHISONG | B111: EQ | C111: 222.4 | D111: 227.25 | E111: 216.3 | F111: 218.8 | G111: 216.3 | H111: 223.5 | I111: 4084 | J111: 897982.2 | K111: 2018-11-20 | L111: 203 | M111: INE228I01012
A112: ASAL | B112: EQ | C112: 56.55 | D112: 57.7 | E112: 56.25 | F112: 56.55 | G112: 56.35 | H112: 56.95 | I112: 5650 | J112: 321967.8 | K112: 2018-11-20 | L112: 90 | M112: INE900C01027
A113: ASHAPURMIN | B113: EQ | C113: 30.5 | D113: 32.9 | E113: 30.25 | F113: 31.05 | G113: 30.95 | H113: 31.75 | I113: 258099 | J113: 8201869.05 | K113: 2018-11-20 | L113: 2511 | M113: INE348A01023
A114: ASHIANA | B114: EQ | C114: 121.5 | D114: 125 | E114: 120.8 | F114: 124.65 | G114: 124 | H114: 121.45 | I114: 26502 | J114: 3277291.05 | K114: 2018-11-20 | L114: 433 | M114: INE365D01021
A115: ASHIMASYN | B115: EQ | C115: 14.5 | D115: 14.5 | E115: 14 | F115: 14.1 | G115: 14.1 | H115: 14.75 | I115: 15908 | J115: 226142.8 | K115: 2018-11-20 | L115: 96 | M115: INE440A01010
A116: ASHOKA | B116: EQ | C116: 127 | D116: 127 | E116: 124.7 | F116: 125.1 | G116: 125 | H116: 127.1 | I116: 135504 | J116: 16965199.2 | K116: 2018-11-20 | L116: 2481 | M116: INE442H01029
A117: ASHOKLEY | B117: EQ | C117: 108.9 | D117: 110.25 | E117: 106.85 | F117: 107.65 | G117: 107.6 | H117: 108.8 | I117: 30908911 | J117: 3359708331 | K117: 2018-11-20 | L117: 102207 | M117: INE208A01029
A118: ASIANHOTNR | B118: EQ | C118: 149.05 | D118: 151 | E118: 145.05 | F118: 148.2 | G118: 145.1 | H118: 150 | I118: 837 | J118: 124252.6 | K118: 2018-11-20 | L118: 30 | M118: INE363A01022
A119: ASIANPAINT | B119: EQ | C119: 1317 | D119: 1331.05 | E119: 1304.7 | F119: 1306.85 | G119: 1307.25 | H119: 1312.15 | I119: 867729 | J119: 1142729401 | K119: 2018-11-20 | L119: 32532 | M119: INE021A01026
A120: ASIANTILES | B120: EQ | C120: 180.05 | D120: 183.75 | E120: 177.05 | F120: 181.45 | G120: 181.8 | H120: 183.15 | I120: 35338 | J120: 6387924.5 | K120: 2018-11-20 | L120: 1265 | M120: INE022I01019
A121: ASPINWALL | B121: EQ | C121: 185.95 | D121: 191.85 | E121: 185.95 | F121: 189.6 | G121: 189 | H121: 189.45 | I121: 60 | J121: 11192.25 | K121: 2018-11-20 | L121: 11 | M121: INE991I01015
A122: ASSAMCO | B122: EQ | C122: 1.85 | D122: 1.85 | E122: 1.85 | F122: 1.85 | G122: 1.85 | H122: 1.8 | I122: 162730 | J122: 301050.5 | K122: 2018-11-20 | L122: 58 | M122: INE442A01024
A123: ASTEC | B123: EQ | C123: 531.15 | D123: 531.15 | E123: 525.2 | F123: 527.4 | G123: 526.25 | H123: 531.15 | I123: 5025 | J123: 2654640.9 | K123: 2018-11-20 | L123: 272 | M123: INE563J01010
A124: ASTERDM | B124: EQ | C124: 157 | D124: 157.4 | E124: 150.1 | F124: 150.9 | G124: 151.2 | H124: 155.8 | I124: 32032 | J124: 4923131.3 | K124: 2018-11-20 | L124: 1025 | M124: INE914M01019
A125: ASTRAL | B125: EQ | C125: 1030 | D125: 1054.35 | E125: 1023.95 | F125: 1046.4 | G125: 1049 | H125: 1029.55 | I125: 76742 | J125: 80157419.65 | K125: 2018-11-20 | L125: 5723 | M125: INE006I01046
A126: ASTRAMICRO | B126: EQ | C126: 79.4 | D126: 79.75 | E126: 78.25 | F126: 78.65 | G126: 78.7 | H126: 79.85 | I126: 75026 | J126: 5925644.4 | K126: 2018-11-20 | L126: 1109 | M126: INE386C01029
A127: ASTRAZEN | B127: EQ | C127: 1651 | D127: 1664.9 | E127: 1623.05 | F127: 1647.1 | G127: 1634.25 | H127: 1650.35 | I127: 6879 | J127: 11302075.45 | K127: 2018-11-20 | L127: 680 | M127: INE203A01020
A128: ASTRON | B128: EQ | C128: 112.75 | D128: 112.9 | E128: 110.75 | F128: 111.15 | G128: 111.5 | H128: 112.75 | I128: 92087 | J128: 10313444.5 | K128: 2018-11-20 | L128: 835 | M128: INE646X01014
A129: ATFL | B129: EQ | C129: 503.05 | D129: 523.95 | E129: 503 | F129: 520.8 | G129: 519.05 | H129: 512.5 | I129: 5782 | J129: 2979416.65 | K129: 2018-11-20 | L129: 276 | M129: INE209A01019
A130: ATLANTA | B130: EQ | C130: 25.5 | D130: 25.75 | E130: 24.55 | F130: 24.55 | G130: 24.55 | H130: 25.8 | I130: 44313 | J130: 1103105.15 | K130: 2018-11-20 | L130: 437 | M130: INE285H01022
A131: ATUL | B131: EQ | C131: 3572 | D131: 3600 | E131: 3515.6 | F131: 3553.05 | G131: 3540 | H131: 3556.25 | I131: 26245 | J131: 93299531 | K131: 2018-11-20 | L131: 4359 | M131: INE100A01010
A132: ATULAUTO | B132: EQ | C132: 333.2 | D132: 338 | E132: 327.6 | F132: 330.75 | G132: 328.5 | H132: 334.55 | I132: 4554 | J132: 1511985.3 | K132: 2018-11-20 | L132: 427 | M132: INE951D01028
A133: AUBANK | B133: EQ | C133: 594.4 | D133: 603.9 | E133: 560.35 | F133: 588.75 | G133: 586 | H133: 592.6 | I133: 407832 | J133: 238573578.7 | K133: 2018-11-20 | L133: 23847 | M133: INE949L01017
A134: AURIONPRO | B134: EQ | C134: 155 | D134: 155.85 | E134: 150.2 | F134: 151.25 | G134: 151 | H134: 155.15 | I134: 5693 | J134: 867712.95 | K134: 2018-11-20 | L134: 173 | M134: INE132H01018
A135: AUROPHARMA | B135: EQ | C135: 791 | D135: 792.65 | E135: 777 | F135: 778.9 | G135: 778.5 | H135: 794 | I135: 1213467 | J135: 951671320.5 | K135: 2018-11-20 | L135: 34545 | M135: INE406A01037
A136: AUSOMENT | B136: EQ | C136: 53.5 | D136: 53.5 | E136: 50.6 | F136: 51.6 | G136: 51.15 | H136: 52.7 | I136: 2275 | J136: 116989.45 | K136: 2018-11-20 | L136: 234 | M136: INE218C01016
A137: AUTOAXLES | B137: EQ | C137: 1392.6 | D137: 1418 | E137: 1351.55 | F137: 1387.3 | G137: 1410 | H137: 1392.6 | I137: 11469 | J137: 15819270.2 | K137: 2018-11-20 | L137: 1183 | M137: INE449A01011
A138: AUTOIND | B138: EQ | C138: 59.55 | D138: 59.7 | E138: 58.75 | F138: 58.85 | G138: 58.85 | H138: 59.25 | I138: 8390 | J138: 495232.8 | K138: 2018-11-20 | L138: 286 | M138: INE718H01014
A139: AUTOLITIND | B139: EQ | C139: 42 | D139: 42 | E139: 40.25 | F139: 41 | G139: 41 | H139: 41.6 | I139: 3808 | J139: 155938.2 | K139: 2018-11-20 | L139: 139 | M139: INE448A01013
A140: AVADHSUGAR | B140: EQ | C140: 415.5 | D140: 422.9 | E140: 401.25 | F140: 405.2 | G140: 403 | H140: 415.95 | I140: 26319 | J140: 10872589.85 | K140: 2018-11-20 | L140: 1135 | M140: INE349W01017
A141: AVANTIFEED | B141: EQ | C141: 370 | D141: 377.2 | E141: 365 | F141: 366.95 | G141: 366 | H141: 368.5 | I141: 285344 | J141: 105793674.7 | K141: 2018-11-20 | L141: 13009 | M141: INE871C01038
A142: AVTNPL | B142: EQ | C142: 28.8 | D142: 28.8 | E142: 28.3 | F142: 28.5 | G142: 28.6 | H142: 28.95 | I142: 15841 | J142: 451691.2 | K142: 2018-11-20 | L142: 152 | M142: INE488D01021
A143: AXISBANK | B143: EQ | C143: 614.7 | D143: 619.6 | E143: 609.55 | F143: 612.65 | G143: 609.95 | H143: 616.3 | I143: 6658508 | J143: 4088506964 | K143: 2018-11-20 | L143: 71945 | M143: INE238A01034
A144: AXISCADES | B144: EQ | C144: 76.5 | D144: 80.5 | E144: 76.5 | F144: 79.7 | G144: 80.5 | H144: 77.7 | I144: 49803 | J144: 3949395.15 | K144: 2018-11-20 | L144: 742 | M144: INE555B01013
A145: AXISGOLD | B145: EQ | C145: 2751 | D145: 2779 | E145: 2720.55 | F145: 2749.35 | G145: 2726 | H145: 2750 | I145: 200 | J145: 547861.75 | K145: 2018-11-20 | L145: 41 | M145: INF846K01347
A146: AXISNIFTY | B146: EQ | C146: 1090 | D146: 1090 | E146: 1090 | F146: 1090 | G146: 1090 | H146: 1094.17 | I146: 3 | J146: 3270 | K146: 2018-11-20 | L146: 1 | M146: INF846K01ZL0
A147: AYMSYNTEX | B147: EQ | C147: 43.9 | D147: 44.8 | E147: 41.5 | F147: 41.95 | G147: 42.8 | H147: 43.1 | I147: 1099 | J147: 46703.65 | K147: 2018-11-20 | L147: 64 | M147: INE193B01039
A148: BAFNAPHARM | B148: EQ | C148: 13.65 | D148: 14.75 | E148: 13.55 | F148: 13.75 | G148: 13.6 | H148: 14 | I148: 2776 | J148: 39080 | K148: 2018-11-20 | L148: 111 | M148: INE878I01014
A149: BAGFILMS | B149: EQ | C149: 4.85 | D149: 4.9 | E149: 4.65 | F149: 4.7 | G149: 4.7 | H149: 4.85 | I149: 79082 | J149: 376331.45 | K149: 2018-11-20 | L149: 191 | M149: INE116D01028
A150: BAJAJ-AUTO | B150: EQ | C150: 2679.65 | D150: 2679.65 | E150: 2655 | F150: 2666.5 | G150: 2666.3 | H150: 2679.65 | I150: 146989 | J150: 391988408.5 | K150: 2018-11-20 | L150: 11809 | M150: INE917I01010
A151: BAJAJCORP | B151: EQ | C151: 357 | D151: 358.85 | E151: 351.1 | F151: 354.15 | G151: 357 | H151: 356.65 | I151: 270409 | J151: 95959171.35 | K151: 2018-11-20 | L151: 1778 | M151: INE933K01021
A152: BAJAJELEC | B152: EQ | C152: 485.9 | D152: 488.8 | E152: 480.5 | F152: 482.05 | G152: 481.7 | H152: 483.7 | I152: 213447 | J152: 103370205.2 | K152: 2018-11-20 | L152: 7386 | M152: INE193E01025
A153: BAJAJFINSV | B153: EQ | C153: 5715 | D153: 5764.7 | E153: 5648 | F153: 5688.55 | G153: 5675.1 | H153: 5725.95 | I153: 122296 | J153: 696434326.6 | K153: 2018-11-20 | L153: 18661 | M153: INE918I01018
A154: BAJAJHIND | B154: EQ | C154: 10.65 | D154: 10.85 | E154: 10.4 | F154: 10.5 | G154: 10.4 | H154: 10.65 | I154: 2964379 | J154: 31408462.2 | K154: 2018-11-20 | L154: 2955 | M154: INE306A01021
A155: BAJAJHLDNG | B155: EQ | C155: 3051 | D155: 3076.95 | E155: 3000 | F155: 3025.65 | G155: 3024.8 | H155: 3080.25 | I155: 10365 | J155: 31311057.3 | K155: 2018-11-20 | L155: 1994 | M155: INE118A01012
A156: BAJFINANCE | B156: EQ | C156: 2365 | D156: 2392.95 | E156: 2345.75 | F156: 2380.1 | G156: 2374 | H156: 2360.95 | I156: 1237702 | J156: 2938220648 | K156: 2018-11-20 | L156: 56952 | M156: INE296A01024
A157: BALAJITELE | B157: EQ | C157: 99.7 | D157: 99.7 | E157: 97 | F157: 98.75 | G157: 98.65 | H157: 98.75 | I157: 28500 | J157: 2794434.25 | K157: 2018-11-20 | L157: 503 | M157: INE794B01026
A158: BALAMINES | B158: EQ | C158: 494.5 | D158: 497.85 | E158: 480 | F158: 481.25 | G158: 480 | H158: 496.3 | I158: 17711 | J158: 8641924.85 | K158: 2018-11-20 | L158: 1168 | M158: INE050E01027
A159: BALKRISHNA | B159: EQ | C159: 54.5 | D159: 54.55 | E159: 52.15 | F159: 52.65 | G159: 52.35 | H159: 53.45 | I159: 9900 | J159: 522860.3 | K159: 2018-11-20 | L159: 158 | M159: INE875R01011
A160: BALKRISIND | B160: EQ | C160: 960.25 | D160: 972.6 | E160: 949 | F160: 953.4 | G160: 951.1 | H160: 965.35 | I160: 883159 | J160: 850392708 | K160: 2018-11-20 | L160: 29681 | M160: INE787D01026
A161: BALLARPUR | B161: EQ | C161: 6.15 | D161: 6.75 | E161: 6.1 | F161: 6.55 | G161: 6.45 | H161: 6.2 | I161: 6091465 | J161: 39672567.25 | K161: 2018-11-20 | L161: 3300 | M161: INE294A01037
A162: BALMLAWRIE | B162: EQ | C162: 193.1 | D162: 195.45 | E162: 191 | F162: 193.25 | G162: 193.1 | H162: 194.7 | I162: 32574 | J162: 6297528.2 | K162: 2018-11-20 | L162: 1202 | M162: INE164A01016
A163: BALPHARMA | B163: EQ | C163: 80.8 | D163: 84.35 | E163: 79.2 | F163: 80.5 | G163: 80.5 | H163: 80.4 | I163: 15720 | J163: 1283219.15 | K163: 2018-11-20 | L163: 248 | M163: INE083D01012
A164: BALRAMCHIN | B164: EQ | C164: 108.1 | D164: 110.8 | E164: 106 | F164: 106.25 | G164: 106.15 | H164: 108.25 | I164: 2475269 | J164: 268336179.9 | K164: 2018-11-20 | L164: 14215 | M164: INE119A01028
A165: BANARBEADS | B165: EQ | C165: 48.25 | D165: 48.25 | E165: 47.9 | F165: 47.9 | G165: 47.9 | H165: 48.45 | I165: 370 | J165: 17788.2 | K165: 2018-11-20 | L165: 5 | M165: INE655B01011
A166: BANARISUG | B166: EQ | C166: 1730 | D166: 1735.45 | E166: 1700.1 | F166: 1704.75 | G166: 1700.1 | H166: 1724.7 | I166: 836 | J166: 1436719.3 | K166: 2018-11-20 | L166: 135 | M166: INE459A01010
A167: BANCOINDIA | B167: EQ | C167: 177.95 | D167: 178.5 | E167: 174.05 | F167: 177.05 | G167: 177 | H167: 176.95 | I167: 23341 | J167: 4119045.2 | K167: 2018-11-20 | L167: 743 | M167: INE213C01025
A168: BANDHANBNK | B168: EQ | C168: 475.25 | D168: 475.25 | E168: 460 | F168: 462.15 | G168: 460.8 | H168: 478.2 | I168: 316673 | J168: 147452954.3 | K168: 2018-11-20 | L168: 9527 | M168: INE545U01014
A169: BANG | B169: EQ | C169: 51.05 | D169: 53.4 | E169: 50.45 | F169: 51.5 | G169: 50.45 | H169: 52.35 | I169: 14576 | J169: 757374.15 | K169: 2018-11-20 | L169: 133 | M169: INE863I01016
A170: BANKBARODA | B170: EQ | C170: 113.2 | D170: 115.6 | E170: 109.25 | F170: 110.2 | G170: 110 | H170: 115.35 | I170: 28258376 | J170: 3202870474 | K170: 2018-11-20 | L170: 65989 | M170: INE028A01039
A171: BANKBEES | B171: EQ | C171: 2675.77 | D171: 2679.6 | E171: 2661.52 | F171: 2667.75 | G171: 2665 | H171: 2687.77 | I171: 134794 | J171: 360270954.9 | K171: 2018-11-20 | L171: 389 | M171: INF732E01078
A172: BANKINDIA | B172: EQ | C172: 86.4 | D172: 88.1 | E172: 82.9 | F172: 85.85 | G172: 85.65 | H172: 87.45 | I172: 13867586 | J172: 1190871787 | K172: 2018-11-20 | L172: 39317 | M172: INE084A01016
A173: BANSWRAS | B173: EQ | C173: 97.5 | D173: 97.65 | E173: 93.5 | F173: 94.5 | G173: 93.5 | H173: 97.45 | I173: 103941 | J173: 9993483 | K173: 2018-11-20 | L173: 1200 | M173: INE629D01012
A174: BARTRONICS | B174: EQ | C174: 7.3 | D174: 7.45 | E174: 7.25 | F174: 7.25 | G174: 7.3 | H174: 7.45 | I174: 30494 | J174: 221672 | K174: 2018-11-20 | L174: 54 | M174: INE855F01034
A175: BASF | B175: EQ | C175: 1554.55 | D175: 1584.95 | E175: 1548.1 | F175: 1562.95 | G175: 1565 | H175: 1554.6 | I175: 4742 | J175: 7424849.3 | K175: 2018-11-20 | L175: 684 | M175: INE373A01013
A176: BATAINDIA | B176: EQ | C176: 994 | D176: 999.9 | E176: 980 | F176: 984.85 | G176: 984.95 | H176: 994.85 | I176: 380682 | J176: 376944919.1 | K176: 2018-11-20 | L176: 17120 | M176: INE176A01028
A177: BAYERCROP | B177: EQ | C177: 4083.15 | D177: 4097.95 | E177: 4035.25 | F177: 4049 | G177: 4049 | H177: 4066.15 | I177: 8361 | J177: 33889615.65 | K177: 2018-11-20 | L177: 1662 | M177: INE462A01022
A178: BBL | B178: EQ | C178: 1160 | D178: 1160 | E178: 1079.8 | F178: 1085.8 | G178: 1080 | H178: 1154.25 | I178: 18481 | J178: 20391443.8 | K178: 2018-11-20 | L178: 1637 | M178: INE464A01028
A179: BBTC | B179: EQ | C179: 1361 | D179: 1370.35 | E179: 1328.5 | F179: 1332.6 | G179: 1330 | H179: 1369.45 | I179: 55410 | J179: 74687300.75 | K179: 2018-11-20 | L179: 3660 | M179: INE050A01025
A180: BCG | B180: EQ | C180: 3 | D180: 3 | E180: 2.4 | F180: 2.55 | G180: 2.6 | H180: 3 | I180: 4515047 | J180: 11707702.4 | K180: 2018-11-20 | L180: 2130 | M180: INE425B01027
A181: BDL | B181: EQ | C181: 285 | D181: 285 | E181: 280 | F181: 282.45 | G181: 281 | H181: 281.4 | I181: 7147 | J181: 2009247.55 | K181: 2018-11-20 | L181: 671 | M181: INE171Z01018
A182: BEARDSELL | B182: EQ | C182: 24.75 | D182: 24.75 | E182: 24 | F182: 24.5 | G182: 24.5 | H182: 24.75 | I182: 152 | J182: 3691.2 | K182: 2018-11-20 | L182: 19 | M182: INE520H01022
A183: BEDMUTHA | B183: BE | C183: 18.9 | D183: 19.8 | E183: 18.9 | F183: 19.8 | G183: 19.8 | H183: 18.9 | I183: 7340 | J183: 144842 | K183: 2018-11-20 | L183: 22 | M183: INE844K01012
A184: BEL | B184: EQ | C184: 93.95 | D184: 96 | E184: 92.3 | F184: 92.9 | G184: 92.8 | H184: 93.9 | I184: 7064888 | J184: 665246745 | K184: 2018-11-20 | L184: 40376 | M184: INE263A01024
A185: BEML | B185: EQ | C185: 728 | D185: 767.8 | E185: 719.25 | F185: 755.95 | G185: 753 | H185: 730.3 | I185: 4103602 | J185: 3096858872 | K185: 2018-11-20 | L185: 79539 | M185: INE258A01016
A186: BEPL | B186: EQ | C186: 78.3 | D186: 79.9 | E186: 78 | F186: 78.5 | G186: 78.45 | H186: 79.5 | I186: 230625 | J186: 18131817.95 | K186: 2018-11-20 | L186: 4663 | M186: INE922A01025
A187: BERGEPAINT | B187: EQ | C187: 315.05 | D187: 320.2 | E187: 310.15 | F187: 312.9 | G187: 311.4 | H187: 315.5 | I187: 499115 | J187: 157360066.4 | K187: 2018-11-20 | L187: 9146 | M187: INE463A01038
A188: BFINVEST | B188: EQ | C188: 258 | D188: 263.8 | E188: 250.1 | F188: 252.8 | G188: 253 | H188: 259.7 | I188: 66141 | J188: 17001110.25 | K188: 2018-11-20 | L188: 2202 | M188: INE878K01010
A189: BFUTILITIE | B189: EQ | C189: 215 | D189: 217.1 | E189: 208.65 | F189: 211.2 | G189: 210.6 | H189: 216.25 | I189: 153417 | J189: 32723139.25 | K189: 2018-11-20 | L189: 4058 | M189: INE243D01012
A190: BGLOBAL | B190: BE | C190: 2.75 | D190: 2.75 | E190: 2.6 | F190: 2.6 | G190: 2.65 | H190: 2.7 | I190: 2641 | J190: 7022.6 | K190: 2018-11-20 | L190: 10 | M190: INE224M01013
A191: BGRENERGY | B191: EQ | C191: 66.6 | D191: 69 | E191: 63.4 | F191: 64.25 | G191: 63.6 | H191: 66.6 | I191: 250138 | J191: 16581637.1 | K191: 2018-11-20 | L191: 2572 | M191: INE661I01014
A192: BHAGERIA | B192: EQ | C192: 292.9 | D192: 294.35 | E192: 286.8 | F192: 287.55 | G192: 287 | H192: 293.8 | I192: 9052 | J192: 2623991 | K192: 2018-11-20 | L192: 398 | M192: INE354C01027
A193: BHAGYANGR | B193: EQ | C193: 31.45 | D193: 32 | E193: 30.95 | F193: 31.65 | G193: 31.4 | H193: 31 | I193: 6756 | J193: 213561 | K193: 2018-11-20 | L193: 67 | M193: INE458B01036
A194: BHAGYAPROP | B194: EQ | C194: 25 | D194: 29 | E194: 24.25 | F194: 26.25 | G194: 25.75 | H194: 25.5 | I194: 6205 | J194: 165577.3 | K194: 2018-11-20 | L194: 106 | M194: INE363W01018
A195: BHANDARI | B195: EQ | C195: 2.05 | D195: 2.15 | E195: 2.05 | F195: 2.15 | G195: 2.15 | H195: 2.05 | I195: 128742 | J195: 272947.95 | K195: 2018-11-20 | L195: 132 | M195: INE474E01029
A196: BHARATFIN | B196: EQ | C196: 954.75 | D196: 976 | E196: 945.3 | F196: 965.2 | G196: 962.5 | H196: 953.6 | I196: 1023702 | J196: 991685951.3 | K196: 2018-11-20 | L196: 34953 | M196: INE180K01011
A197: BHARATFORG | B197: EQ | C197: 592.2 | D197: 600.75 | E197: 571 | F197: 577.1 | G197: 577 | H197: 594.85 | I197: 1216501 | J197: 712115992.9 | K197: 2018-11-20 | L197: 30948 | M197: INE465A01025
A198: BHARATGEAR | B198: EQ | C198: 169 | D198: 179 | E198: 165.8 | F198: 173.55 | G198: 172.5 | H198: 169.75 | I198: 65155 | J198: 11401674.3 | K198: 2018-11-20 | L198: 2394 | M198: INE561C01019
A199: BHARATRAS | B199: EQ | C199: 5692.55 | D199: 5726.65 | E199: 5635 | F199: 5645.5 | G199: 5636 | H199: 5692.5 | I199: 470 | J199: 2664364.8 | K199: 2018-11-20 | L199: 197 | M199: INE838B01013
A200: BHARATWIRE | B200: EQ | C200: 71.45 | D200: 71.75 | E200: 69.95 | F200: 70.05 | G200: 70 | H200: 71.05 | I200: 13804 | J200: 968878.1 | K200: 2018-11-20 | L200: 108 | M200: INE316L01019
... 1439 more rows
